Transaction Date,Local Authority Department,BENEFICIARY,Purpose,Amount,Non Recoverable,Merchant Category
01-04-2023,Dedicated Schools Budget,Redacted - Personal Data,Private Contractors Payment - Other,5793.33,0,VENDOR
01-04-2023,oneSource - Non Shared,Juniper Ventures Ltd,Cleaning Services,522.86,0,COMMERCIAL SUPPLIER
01-04-2023,Inclusive Economy & Housing,Stratford City Shopping Centre (No.1) Gp Ltd,Rents Payable,9970,0,COMMERCIAL SUPPLIER
01-04-2023,Housing Revenue Account,CTR Triangle Ltd,Payments To Voluntary Sector,150090,0,VENDOR
01-04-2023,oneSource,Daisy Corporate Services Trading Ltd,Land Line Telephone Costs,4959.83,0,COMMERCIAL SUPPLIER
01-04-2023,oneSource,Daisy Corporate Services Trading Ltd,Land Line Telephone Costs,2285.03,0,COMMERCIAL SUPPLIER
01-04-2023,oneSource,Daisy Corporate Services Trading Ltd,Land Line Telephone Costs,13585.31,0,COMMERCIAL SUPPLIER
01-04-2023,Housing Revenue Account,Daisy Corporate Services Trading Ltd,Land Line Telephone Costs,778.54,0,COMMERCIAL SUPPLIER
01-04-2023,Housing Revenue Account,Daisy Corporate Services Trading Ltd,Land Line Telephone Costs,3648.91,0,COMMERCIAL SUPPLIER
01-04-2023,Inclusive Economy & Housing,Titan Containers A/S,Hire - Equipment Furniture And Materials,277.5,0,VENDOR
01-04-2023,Adults & Health,L M Installations Ltd,"Maintenance - Equipment, Furniture And Materials",239.85,0,CIS
01-04-2023,Adults & Health,L M Installations Ltd,"Maintenance - Equipment, Furniture And Materials",239.85,0,CIS
01-04-2023,Marketing,Overdrive,"Purchase - Equipment, Furniture And Materials",18550,0,COMMERCIAL SUPPLIER
01-04-2023,Children and Young People,Early Start Group Ltd,Private Contractors Payment - Other,64444,0,COMMERCIAL SUPPLIER
01-04-2023,Children and Young People,Early Start Group Ltd,Private Contractors Payment - Other,112879,0,COMMERCIAL SUPPLIER
01-04-2023,Transformation,RedQuadrant Ltd,Conference Expenses,13000,0,COMMERCIAL SUPPLIER
01-04-2023,oneSource,Bdi Securities,Security Services (Excluding Premises),1218.5,0,COMMERCIAL SUPPLIER
01-04-2023,oneSource,Bdi Securities,Security Services (Excluding Premises),464,0,COMMERCIAL SUPPLIER
01-04-2023,Children and Young People,The Fostering Network,Membership And Subscriptions,2018.06,0,COMMERCIAL SUPPLIER
01-04-2023,Children and Young People,The Fostering Network,Membership And Subscriptions,832,0,COMMERCIAL SUPPLIER
01-04-2023,Children and Young People,The Fostering Network,Membership And Subscriptions,2411.5,0,COMMERCIAL SUPPLIER
01-04-2023,Children and Young People,The Fostering Network,Membership And Subscriptions,1774.5,0,COMMERCIAL SUPPLIER
01-04-2023,Environment and Sustainable Transport,Chipside Ltd,Private Contractors Payment - Other,660,0,COMMERCIAL SUPPLIER
02-04-2023,Dedicated Schools Budget,Redacted - Personal Data,Private Contractors Payment - Other,2190,0,COMMERCIAL SUPPLIER
02-04-2023,Dedicated Schools Budget,Redacted - Personal Data,Private Contractors Payment - Other,2190,0,COMMERCIAL SUPPLIER
02-04-2023,Dedicated Schools Budget,Redacted - Personal Data,Staff Recruitment Costs,300.02,0,COMMERCIAL SUPPLIER
02-04-2023,RMS,British Standards Institution,Building Alterations And Materials,5626,0,COMMERCIAL SUPPLIER
02-04-2023,RMS,Hmg building services ltd,Private Contractors Payment - Other,1430,0,CIS
02-04-2023,oneSource,Graham Langley Limited,Printing,525,0,VENDOR
02-04-2023,RMS,Travis Perkins Trading Company Ltd,"Purchase - Equipment, Furniture And Materials",2502.18,0,COMMERCIAL SUPPLIER
02-04-2023,RMS,Travis Perkins Trading Company Ltd,"Purchase - Equipment, Furniture And Materials",2399.57,0,COMMERCIAL SUPPLIER
02-04-2023,RMS,Travis Perkins Trading Company Ltd,"Purchase - Equipment, Furniture And Materials",641.29,0,COMMERCIAL SUPPLIER
02-04-2023,RMS,Travis Perkins Trading Company Ltd,"Purchase - Equipment, Furniture And Materials",5757.21,0,COMMERCIAL SUPPLIER
02-04-2023,RMS,Travis Perkins Trading Company Ltd,"Purchase - Equipment, Furniture And Materials",13365.64,0,COMMERCIAL SUPPLIER
02-04-2023,RMS,Travis Perkins Trading Company Ltd,"Purchase - Equipment, Furniture And Materials",1230.12,0,COMMERCIAL SUPPLIER
02-04-2023,RMS,Travis Perkins Trading Company Ltd,"Purchase - Equipment, Furniture And Materials",1864.35,0,COMMERCIAL SUPPLIER
02-04-2023,RMS,Travis Perkins Trading Company Ltd,"Purchase - Equipment, Furniture And Materials",62795.28,0,COMMERCIAL SUPPLIER
02-04-2023,RMS,Travis Perkins Trading Company Ltd,"Purchase - Equipment, Furniture And Materials",1021.9,0,COMMERCIAL SUPPLIER
02-04-2023,RMS,Travis Perkins Trading Company Ltd,"Purchase - Equipment, Furniture And Materials",297.5,0,COMMERCIAL SUPPLIER
02-04-2023,RMS,Travis Perkins Trading Company Ltd,"Purchase - Equipment, Furniture And Materials",141.67,0,COMMERCIAL SUPPLIER
03-04-2023,Children and Young People,Redacted - Personal Data,Legal Fees,512.96,0,INDIVIDUALS
03-04-2023,Dedicated Schools Budget,Redacted - Personal Data,Professional Services - General,33141.67,0,COMMERCIAL SUPPLIER
03-04-2023,Dedicated Schools Budget,Redacted - Personal Data,Schools - Transfer Payment,25035,0,NON COMMERCIAL SUPPLIER
03-04-2023,Dedicated Schools Budget,Redacted - Personal Data,Schools - Transfer Payment,28861.67,0,NON COMMERCIAL SUPPLIER
03-04-2023,Dedicated Schools Budget,Redacted - Personal Data,Schools - Transfer Payment,17702.33,0,COMMERCIAL SUPPLIER
03-04-2023,Dedicated Schools Budget,Redacted - Personal Data,Schools - Transfer Payment,49277.86,0,VENDOR
03-04-2023,Dedicated Schools Budget,Redacted - Personal Data,Schools - Transfer Payment,64468,0,COMMERCIAL SUPPLIER
03-04-2023,Dedicated Schools Budget,Redacted - Personal Data,Schools - Transfer Payment,28935,0,VENDOR
03-04-2023,Dedicated Schools Budget,Redacted - Personal Data,Schools - Transfer Payment,15121.83,0,VENDOR
03-04-2023,Dedicated Schools Budget,Redacted - Personal Data,Schools - Transfer Payment,38875.94,0,NON COMMERCIAL SUPPLIER
03-04-2023,Dedicated Schools Budget,Redacted - Personal Data,Schools - Transfer Payment,17035,0,COMMERCIAL SUPPLIER
03-04-2023,Dedicated Schools Budget,Redacted - Personal Data,Schools - Transfer Payment,9242.83,0,COMMERCIAL SUPPLIER
03-04-2023,Dedicated Schools Budget,Redacted - Personal Data,Schools - Transfer Payment,22403.5,0,COMMERCIAL SUPPLIER
03-04-2023,Dedicated Schools Budget,Redacted - Personal Data,Schools - Transfer Payment,61261.83,0,COMMERCIAL SUPPLIER
03-04-2023,Dedicated Schools Budget,Redacted - Personal Data,Schools - Transfer Payment,19710,0,COMMERCIAL SUPPLIER
03-04-2023,Dedicated Schools Budget,Redacted - Personal Data,Schools - Transfer Payment,14915,0,COMMERCIAL SUPPLIER
03-04-2023,Dedicated Schools Budget,Redacted - Personal Data,Schools - Transfer Payment,15761.58,0,COMMERCIAL SUPPLIER
03-04-2023,Dedicated Schools Budget,Redacted - Personal Data,Schools - Transfer Payment,52727.17,0,COMMERCIAL SUPPLIER
03-04-2023,Dedicated Schools Budget,Redacted - Personal Data,Schools - Transfer Payment,22890.03,0,COMMERCIAL SUPPLIER
03-04-2023,Dedicated Schools Budget,Redacted - Personal Data,Schools - Transfer Payment,10536.67,0,COMMERCIAL SUPPLIER
03-04-2023,Dedicated Schools Budget,Redacted - Personal Data,Schools - Transfer Payment,23145.25,0,NON COMMERCIAL SUPPLIER
03-04-2023,Dedicated Schools Budget,Redacted - Personal Data,Schools - Transfer Payment,29059.5,0,COMMERCIAL SUPPLIER
03-04-2023,Dedicated Schools Budget,Redacted - Personal Data,Schools - Transfer Payment,9710.58,0,COMMERCIAL SUPPLIER
03-04-2023,Dedicated Schools Budget,Redacted - Personal Data,Schools - Transfer Payment,19714.78,0,COMMERCIAL SUPPLIER
03-04-2023,Dedicated Schools Budget,Redacted - Personal Data,Schools - Transfer Payment,65666.88,0,VENDOR
03-04-2023,Dedicated Schools Budget,Redacted - Personal Data,Schools - Transfer Payment,41664.92,0,LOCAL AUTHORITY SERVICES
03-04-2023,Dedicated Schools Budget,Redacted - Personal Data,Schools - Transfer Payment,35920,0,COMMERCIAL SUPPLIER
03-04-2023,Dedicated Schools Budget,Redacted - Personal Data,Schools - Transfer Payment,24219.75,0,COMMERCIAL SUPPLIER
03-04-2023,Dedicated Schools Budget,Redacted - Personal Data,Schools - Transfer Payment,14635,0,VENDOR
03-04-2023,Dedicated Schools Budget,Redacted - Personal Data,Schools - Transfer Payment,7495,0,VENDOR
03-04-2023,Dedicated Schools Budget,Redacted - Personal Data,Schools - Transfer Payment,38043,0,VENDOR
03-04-2023,Dedicated Schools Budget,Redacted - Personal Data,Schools - Transfer Payment,5325,0,VENDOR
03-04-2023,Dedicated Schools Budget,Redacted - Personal Data,Schools - Transfer Payment,31180,0,COMMERCIAL SUPPLIER
03-04-2023,Dedicated Schools Budget,Redacted - Personal Data,Schools - Transfer Payment,18932.78,0,COMMERCIAL SUPPLIER
03-04-2023,Dedicated Schools Budget,Redacted - Personal Data,Schools - Transfer Payment,22804.75,0,COMMERCIAL SUPPLIER
03-04-2023,Dedicated Schools Budget,Redacted - Personal Data,Schools - Transfer Payment,51751.04,0,NON COMMERCIAL SUPPLIER
03-04-2023,Dedicated Schools Budget,Redacted - Personal Data,Schools - Transfer Payment,15127.33,0,NON COMMERCIAL SUPPLIER
03-04-2023,Dedicated Schools Budget,Redacted - Personal Data,Schools - Transfer Payment,12506.67,0,NON COMMERCIAL SUPPLIER
03-04-2023,Dedicated Schools Budget,Redacted - Personal Data,Schools - Transfer Payment,16174.58,0,COMMERCIAL SUPPLIER
03-04-2023,Dedicated Schools Budget,Redacted - Personal Data,Schools - Transfer Payment,10050,0,INDIVIDUALS
03-04-2023,Dedicated Schools Budget,Redacted - Personal Data,Schools - Transfer Payment,18195,0,COMMERCIAL SUPPLIER
03-04-2023,Dedicated Schools Budget,Redacted - Personal Data,Schools - Transfer Payment,49668.5,0,COMMERCIAL SUPPLIER
03-04-2023,Dedicated Schools Budget,Redacted - Personal Data,Schools - Transfer Payment,24700,0,INDIVIDUALS
03-04-2023,Dedicated Schools Budget,Redacted - Personal Data,Schools - Transfer Payment,2530,0,COMMERCIAL SUPPLIER
03-04-2023,Dedicated Schools Budget,Redacted - Personal Data,Schools - Transfer Payment,10530,0,COMMERCIAL SUPPLIER
03-04-2023,Dedicated Schools Budget,Redacted - Personal Data,Schools - Transfer Payment,54725,0,VENDOR
03-04-2023,Dedicated Schools Budget,Redacted - Personal Data,Schools - Transfer Payment,17200,0,COMMERCIAL SUPPLIER
03-04-2023,Dedicated Schools Budget,Redacted - Personal Data,Schools - Transfer Payment,16554.33,0,NON COMMERCIAL SUPPLIER
03-04-2023,Dedicated Schools Budget,Redacted - Personal Data,Schools - Transfer Payment,26138,0,COMMERCIAL SUPPLIER
03-04-2023,Dedicated Schools Budget,Redacted - Personal Data,Schools - Transfer Payment,31740,0,NON COMMERCIAL SUPPLIER
03-04-2023,Dedicated Schools Budget,Redacted - Personal Data,Schools - Transfer Payment,128023,0,COMMERCIAL SUPPLIER
03-04-2023,Dedicated Schools Budget,Redacted - Personal Data,Schools - Transfer Payment,366888,0,NON COMMERCIAL SUPPLIER
03-04-2023,Dedicated Schools Budget,Redacted - Personal Data,Schools - Transfer Payment,20442.5,0,COMMERCIAL SUPPLIER
03-04-2023,Dedicated Schools Budget,Redacted - Personal Data,Schools - Transfer Payment,20442.5,0,COMMERCIAL SUPPLIER
03-04-2023,Dedicated Schools Budget,Redacted - Personal Data,Schools - Transfer Payment,53465,0,NON COMMERCIAL SUPPLIER
03-04-2023,Dedicated Schools Budget,Redacted - Personal Data,Schools - Transfer Payment,14152.5,0,COMMERCIAL SUPPLIER
03-04-2023,Dedicated Schools Budget,Redacted - Personal Data,Schools - Transfer Payment,25610.9,0,LOCAL AUTHORITY SERVICES
03-04-2023,Dedicated Schools Budget,Redacted - Personal Data,Schools - Transfer Payment,3621,0,NON COMMERCIAL SUPPLIER
03-04-2023,Dedicated Schools Budget,Redacted - Personal Data,Schools - Transfer Payment,24531,0,COMMERCIAL SUPPLIER
03-04-2023,Dedicated Schools Budget,Redacted - Personal Data,Schools - Transfer Payment,16932,0,VENDOR
03-04-2023,Dedicated Schools Budget,Redacted - Personal Data,Schools - Transfer Payment,22015,0,COMMERCIAL SUPPLIER
03-04-2023,Dedicated Schools Budget,Redacted - Personal Data,Schools - Transfer Payment,28305,0,COMMERCIAL SUPPLIER
03-04-2023,Dedicated Schools Budget,Redacted - Personal Data,Schools - Transfer Payment,18870,0,NON COMMERCIAL SUPPLIER
03-04-2023,Dedicated Schools Budget,Redacted - Personal Data,Schools - Transfer Payment,18870,0,COMMERCIAL SUPPLIER
03-04-2023,Dedicated Schools Budget,Redacted - Personal Data,Schools - Transfer Payment,51892.5,0,COMMERCIAL SUPPLIER
03-04-2023,Dedicated Schools Budget,Redacted - Personal Data,Schools - Transfer Payment,22015,0,COMMERCIAL SUPPLIER
03-04-2023,Dedicated Schools Budget,Redacted - Personal Data,Schools - Transfer Payment,28908.5,0,COMMERCIAL SUPPLIER
03-04-2023,Inclusive Economy & Housing,Redacted - Personal Data,Legal Fees,2220,0,COMMERCIAL SUPPLIER
03-04-2023,Children and Young People,Redacted - Personal Data,Legal Fees,3660,0,INDIVIDUALS
03-04-2023,Children and Young People,Redacted - Personal Data,Kinship Placement - Private Contractors Payment,256.68,0,INDIVIDUALS
03-04-2023,Children and Young People,Redacted - Personal Data,Kinship Placement - Private Contractors Payment,255,0,INDIVIDUALS
03-04-2023,Adults & Health,Redacted - Personal Data,Residential Care Income,-113.7,0,VENDOR
03-04-2023,Adults & Health,Redacted - Personal Data,Residential Care Income,-162.9,0,COMMERCIAL SUPPLIER
03-04-2023,Adults & Health,Redacted - Personal Data,Residential Care Income,-7167.6,0,COMMERCIAL SUPPLIER
03-04-2023,Adults & Health,Redacted - Personal Data,Residential Care Income,-162.9,0,COMMERCIAL SUPPLIER
03-04-2023,Adults & Health,Redacted - Personal Data,Residential Care Income,-162.9,0,COMMERCIAL SUPPLIER
03-04-2023,Adults & Health,Redacted - Personal Data,Contributions From Health (Income),-475,0,COMMERCIAL SUPPLIER
03-04-2023,Adults & Health,Redacted - Personal Data,Contributions From Health (Income),-475,0,COMMERCIAL SUPPLIER
03-04-2023,Adults & Health,Redacted - Personal Data,Contributions From Health (Income),-475,0,COMMERCIAL SUPPLIER
03-04-2023,Adults & Health,Redacted - Personal Data,Contributions From Health (Income),-475,0,COMMERCIAL SUPPLIER
03-04-2023,Adults & Health,Redacted - Personal Data,Contributions From Health (Income),-475,0,COMMERCIAL SUPPLIER
03-04-2023,Adults & Health,Redacted - Personal Data,Contributions From Health (Income),-475,0,COMMERCIAL SUPPLIER
03-04-2023,Adults & Health,Redacted - Personal Data,Contributions From Health (Income),-475,0,COMMERCIAL SUPPLIER
03-04-2023,Adults & Health,Redacted - Personal Data,Contributions From Health (Income),-475,0,COMMERCIAL SUPPLIER
03-04-2023,Adults & Health,Redacted - Personal Data,Contributions From Health (Income),-475,0,COMMERCIAL SUPPLIER
03-04-2023,Adults & Health,Redacted - Personal Data,Contributions From Health (Income),-475,0,COMMERCIAL SUPPLIER
03-04-2023,Adults & Health,Redacted - Personal Data,Contributions From Health (Income),-475,0,COMMERCIAL SUPPLIER
03-04-2023,Adults & Health,Redacted - Personal Data,Contributions From Health (Income),-475,0,COMMERCIAL SUPPLIER
03-04-2023,Adults & Health,Redacted - Personal Data,Contributions From Health (Income),-475,0,COMMERCIAL SUPPLIER
03-04-2023,Adults & Health,Redacted - Personal Data,Contributions From Health (Income),-475,0,COMMERCIAL SUPPLIER
03-04-2023,Adults & Health,Redacted - Personal Data,Contributions From Health (Income),-475,0,COMMERCIAL SUPPLIER
03-04-2023,Adults & Health,Redacted - Personal Data,Contributions From Health (Income),-475,0,COMMERCIAL SUPPLIER
03-04-2023,Adults & Health,Redacted - Personal Data,Contributions From Health (Income),-475,0,COMMERCIAL SUPPLIER
03-04-2023,Adults & Health,Redacted - Personal Data,Contributions From Health (Income),-475,0,COMMERCIAL SUPPLIER
03-04-2023,Adults & Health,Redacted - Personal Data,Contributions From Health (Income),-475,0,COMMERCIAL SUPPLIER
03-04-2023,Adults & Health,Redacted - Personal Data,Contributions From Health (Income),-475,0,COMMERCIAL SUPPLIER
03-04-2023,Adults & Health,Redacted - Personal Data,Contributions From Health (Income),-475,0,COMMERCIAL SUPPLIER
03-04-2023,Adults & Health,Redacted - Personal Data,Contributions From Health (Income),-475,0,COMMERCIAL SUPPLIER
03-04-2023,Adults & Health,Redacted - Personal Data,Contributions From Health (Income),-475,0,COMMERCIAL SUPPLIER
03-04-2023,Adults & Health,Redacted - Personal Data,Contributions From Health (Income),-475,0,COMMERCIAL SUPPLIER
03-04-2023,Adults & Health,Redacted - Personal Data,Contributions From Health (Income),-475,0,COMMERCIAL SUPPLIER
03-04-2023,Adults & Health,Redacted - Personal Data,Contributions From Health (Income),-475,0,COMMERCIAL SUPPLIER
03-04-2023,Adults & Health,Redacted - Personal Data,Contributions From Health (Income),-475,0,COMMERCIAL SUPPLIER
03-04-2023,Adults & Health,Redacted - Personal Data,Contributions From Health (Income),-475,0,COMMERCIAL SUPPLIER
03-04-2023,Adults & Health,Redacted - Personal Data,Contributions From Health (Income),-475,0,COMMERCIAL SUPPLIER
03-04-2023,Adults & Health,Redacted - Personal Data,Contributions From Health (Income),-475,0,COMMERCIAL SUPPLIER
03-04-2023,Adults & Health,Redacted - Personal Data,Contributions From Health (Income),-475,0,COMMERCIAL SUPPLIER
03-04-2023,Adults & Health,Redacted - Personal Data,Contributions From Health (Income),-475,0,COMMERCIAL SUPPLIER
03-04-2023,Adults & Health,Redacted - Personal Data,Contributions From Health (Income),-475,0,COMMERCIAL SUPPLIER
03-04-2023,Adults & Health,Redacted - Personal Data,Contributions From Health (Income),-475,0,COMMERCIAL SUPPLIER
03-04-2023,Adults & Health,Redacted - Personal Data,Contributions From Health (Income),-475,0,COMMERCIAL SUPPLIER
03-04-2023,Adults & Health,Redacted - Personal Data,Contributions From Health (Income),-475,0,COMMERCIAL SUPPLIER
03-04-2023,Adults & Health,Redacted - Personal Data,Contributions From Health (Income),-475,0,COMMERCIAL SUPPLIER
03-04-2023,Adults & Health,Redacted - Personal Data,Contributions From Health (Income),-475,0,COMMERCIAL SUPPLIER
03-04-2023,Adults & Health,Redacted - Personal Data,Contributions From Health (Income),-475,0,COMMERCIAL SUPPLIER
03-04-2023,Adults & Health,Redacted - Personal Data,Contributions From Health (Income),-475,0,COMMERCIAL SUPPLIER
03-04-2023,Adults & Health,Redacted - Personal Data,Contributions From Health (Income),-475,0,COMMERCIAL SUPPLIER
03-04-2023,Adults & Health,Redacted - Personal Data,Contributions From Health (Income),-475,0,COMMERCIAL SUPPLIER
03-04-2023,Adults & Health,Redacted - Personal Data,Contributions From Health (Income),-475,0,COMMERCIAL SUPPLIER
03-04-2023,Adults & Health,Redacted - Personal Data,Contributions From Health (Income),-475,0,COMMERCIAL SUPPLIER
03-04-2023,Adults & Health,Redacted - Personal Data,Contributions From Health (Income),-475,0,COMMERCIAL SUPPLIER
03-04-2023,Adults & Health,Redacted - Personal Data,Contributions From Health (Income),-475,0,COMMERCIAL SUPPLIER
03-04-2023,Adults & Health,Redacted - Personal Data,Contributions From Health (Income),-475,0,COMMERCIAL SUPPLIER
03-04-2023,Adults & Health,Redacted - Personal Data,Contributions From Health (Income),-475,0,COMMERCIAL SUPPLIER
03-04-2023,Adults & Health,Redacted - Personal Data,Contributions From Health (Income),-475,0,COMMERCIAL SUPPLIER
03-04-2023,Adults & Health,Redacted - Personal Data,Contributions From Health (Income),-475,0,COMMERCIAL SUPPLIER
03-04-2023,Adults & Health,Redacted - Personal Data,Contributions From Health (Income),-475,0,COMMERCIAL SUPPLIER
03-04-2023,Adults & Health,Redacted - Personal Data,Contributions From Health (Income),-475,0,COMMERCIAL SUPPLIER
03-04-2023,Adults & Health,Redacted - Personal Data,Contributions From Health (Income),-475,0,COMMERCIAL SUPPLIER
03-04-2023,Adults & Health,Redacted - Personal Data,Contributions From Health (Income),-475,0,COMMERCIAL SUPPLIER
03-04-2023,Adults & Health,Redacted - Personal Data,Contributions From Health (Income),-475,0,COMMERCIAL SUPPLIER
03-04-2023,Adults & Health,Redacted - Personal Data,Contributions From Health (Income),-475,0,COMMERCIAL SUPPLIER
03-04-2023,Adults & Health,Redacted - Personal Data,Contributions From Health (Income),-475,0,COMMERCIAL SUPPLIER
03-04-2023,Adults & Health,Redacted - Personal Data,Contributions From Health (Income),-475,0,COMMERCIAL SUPPLIER
03-04-2023,Adults & Health,Redacted - Personal Data,Contributions From Health (Income),-475,0,COMMERCIAL SUPPLIER
03-04-2023,Adults & Health,Redacted - Personal Data,Contributions From Health (Income),-475,0,COMMERCIAL SUPPLIER
03-04-2023,Adults & Health,Redacted - Personal Data,Contributions From Health (Income),-475,0,COMMERCIAL SUPPLIER
03-04-2023,Adults & Health,Redacted - Personal Data,Contributions From Health (Income),-475,0,COMMERCIAL SUPPLIER
03-04-2023,Adults & Health,Redacted - Personal Data,Contributions From Health (Income),-475,0,COMMERCIAL SUPPLIER
03-04-2023,Adults & Health,Redacted - Personal Data,Contributions From Health (Income),-475,0,COMMERCIAL SUPPLIER
03-04-2023,Adults & Health,Redacted - Personal Data,Contributions From Health (Income),-475,0,COMMERCIAL SUPPLIER
03-04-2023,Adults & Health,Redacted - Personal Data,Contributions From Health (Income),-475,0,COMMERCIAL SUPPLIER
03-04-2023,Adults & Health,Redacted - Personal Data,Contributions From Health (Income),-475,0,COMMERCIAL SUPPLIER
03-04-2023,Adults & Health,Redacted - Personal Data,Contributions From Health (Income),-475,0,COMMERCIAL SUPPLIER
03-04-2023,Adults & Health,Redacted - Personal Data,Contributions From Health (Income),-475,0,COMMERCIAL SUPPLIER
03-04-2023,Adults & Health,Redacted - Personal Data,Contributions From Health (Income),-475,0,COMMERCIAL SUPPLIER
03-04-2023,Adults & Health,Redacted - Personal Data,Contributions From Health (Income),-475,0,COMMERCIAL SUPPLIER
03-04-2023,Adults & Health,Redacted - Personal Data,Contributions From Health (Income),-475,0,COMMERCIAL SUPPLIER
03-04-2023,Adults & Health,Redacted - Personal Data,Contributions From Health (Income),-475,0,COMMERCIAL SUPPLIER
03-04-2023,Adults & Health,Redacted - Personal Data,Contributions From Health (Income),-475,0,COMMERCIAL SUPPLIER
03-04-2023,Adults & Health,Redacted - Personal Data,Contributions From Health (Income),-475,0,COMMERCIAL SUPPLIER
03-04-2023,Adults & Health,Redacted - Personal Data,Contributions From Health (Income),-475,0,COMMERCIAL SUPPLIER
03-04-2023,Adults & Health,Redacted - Personal Data,Contributions From Health (Income),-475,0,COMMERCIAL SUPPLIER
03-04-2023,Adults & Health,Redacted - Personal Data,Contributions From Health (Income),-475,0,COMMERCIAL SUPPLIER
03-04-2023,Adults & Health,Redacted - Personal Data,Contributions From Health (Income),-475,0,COMMERCIAL SUPPLIER
03-04-2023,Adults & Health,Redacted - Personal Data,Contributions From Health (Income),-475,0,COMMERCIAL SUPPLIER
03-04-2023,Adults & Health,Redacted - Personal Data,Contributions From Health (Income),-475,0,COMMERCIAL SUPPLIER
03-04-2023,Adults & Health,Redacted - Personal Data,Contributions From Health (Income),-475,0,COMMERCIAL SUPPLIER
03-04-2023,Adults & Health,Redacted - Personal Data,Contributions From Health (Income),-475,0,COMMERCIAL SUPPLIER
03-04-2023,Adults & Health,Redacted - Personal Data,Contributions From Health (Income),-475,0,COMMERCIAL SUPPLIER
03-04-2023,Adults & Health,Redacted - Personal Data,Contributions From Health (Income),-475,0,COMMERCIAL SUPPLIER
03-04-2023,Adults & Health,Redacted - Personal Data,Contributions From Health (Income),-475,0,COMMERCIAL SUPPLIER
03-04-2023,Adults & Health,Redacted - Personal Data,Contributions From Health (Income),-475,0,COMMERCIAL SUPPLIER
03-04-2023,Adults & Health,Redacted - Personal Data,Contributions From Health (Income),-475,0,COMMERCIAL SUPPLIER
03-04-2023,Adults & Health,Redacted - Personal Data,Contributions From Health (Income),-475,0,COMMERCIAL SUPPLIER
03-04-2023,Adults & Health,Redacted - Personal Data,Contributions From Health (Income),-475,0,COMMERCIAL SUPPLIER
03-04-2023,Adults & Health,Redacted - Personal Data,Contributions From Health (Income),-475,0,COMMERCIAL SUPPLIER
03-04-2023,Adults & Health,Redacted - Personal Data,Contributions From Health (Income),-475,0,COMMERCIAL SUPPLIER
03-04-2023,Adults & Health,Redacted - Personal Data,Contributions From Health (Income),-475,0,COMMERCIAL SUPPLIER
03-04-2023,Adults & Health,Redacted - Personal Data,Contributions From Health (Income),-475,0,COMMERCIAL SUPPLIER
03-04-2023,Adults & Health,Redacted - Personal Data,Contributions From Health (Income),-475,0,COMMERCIAL SUPPLIER
03-04-2023,Adults & Health,Redacted - Personal Data,Contributions From Health (Income),-475,0,COMMERCIAL SUPPLIER
03-04-2023,Adults & Health,Redacted - Personal Data,Contributions From Health (Income),-475,0,COMMERCIAL SUPPLIER
03-04-2023,Adults & Health,Redacted - Personal Data,Contributions From Health (Income),-475,0,COMMERCIAL SUPPLIER
03-04-2023,Adults & Health,Redacted - Personal Data,Contributions From Health (Income),-475,0,COMMERCIAL SUPPLIER
03-04-2023,Adults & Health,Redacted - Personal Data,Contributions From Health (Income),-475,0,COMMERCIAL SUPPLIER
03-04-2023,Adults & Health,Redacted - Personal Data,Contributions From Health (Income),-475,0,COMMERCIAL SUPPLIER
03-04-2023,Adults & Health,Redacted - Personal Data,Residential Care Income,-71.95,0,NON COMMERCIAL SUPPLIER
03-04-2023,Adults & Health,Redacted - Personal Data,Residential Care Income,-71.95,0,NON COMMERCIAL SUPPLIER
03-04-2023,Adults & Health,Redacted - Personal Data,Residential Care Income,-71.95,0,NON COMMERCIAL SUPPLIER
03-04-2023,Adults & Health,Redacted - Personal Data,Residential Care Income,-71.95,0,NON COMMERCIAL SUPPLIER
03-04-2023,Adults & Health,Redacted - Personal Data,Residential Care Income,-71.95,0,NON COMMERCIAL SUPPLIER
03-04-2023,Adults & Health,Redacted - Personal Data,Residential Care Income,-79.11,0,NON COMMERCIAL SUPPLIER
03-04-2023,Adults & Health,Redacted - Personal Data,Residential Care Income,-71.95,0,NON COMMERCIAL SUPPLIER
03-04-2023,Adults & Health,Redacted - Personal Data,Residential Care Income,-114.99,0,COMMERCIAL SUPPLIER
03-04-2023,Adults & Health,Redacted - Personal Data,Residential Care Income,-114.99,0,COMMERCIAL SUPPLIER
03-04-2023,Adults & Health,Redacted - Personal Data,Residential Care Income,-114.99,0,COMMERCIAL SUPPLIER
03-04-2023,Adults & Health,Redacted - Personal Data,Residential Care Income,-114.99,0,COMMERCIAL SUPPLIER
03-04-2023,Adults & Health,Redacted - Personal Data,Residential Care Income,-114.99,0,COMMERCIAL SUPPLIER
03-04-2023,Adults & Health,Redacted - Personal Data,Residential Care Income,-114.99,0,COMMERCIAL SUPPLIER
03-04-2023,Adults & Health,Redacted - Personal Data,Residential Care Income,-114.99,0,COMMERCIAL SUPPLIER
03-04-2023,Adults & Health,Redacted - Personal Data,Residential Care Income,-127.48,0,COMMERCIAL SUPPLIER
03-04-2023,Adults & Health,Redacted - Personal Data,Residential Care Income,-114.99,0,COMMERCIAL SUPPLIER
03-04-2023,Adults & Health,Redacted - Personal Data,Residential Care Income,-294.44,0,VENDOR
03-04-2023,Adults & Health,Redacted - Personal Data,Residential Care Income,-175.67,0,NON COMMERCIAL SUPPLIER
03-04-2023,Adults & Health,Redacted - Personal Data,Residential Care Income,-91.95,0,NON COMMERCIAL SUPPLIER
03-04-2023,Adults & Health,Redacted - Personal Data,Residential Care Income,-171.65,0,NON COMMERCIAL SUPPLIER
03-04-2023,Adults & Health,Redacted - Personal Data,Residential Care Income,-315.44,0,VENDOR
03-04-2023,Adults & Health,Redacted - Personal Data,Residential Care Income,-192.84,0,NON COMMERCIAL SUPPLIER
03-04-2023,Adults & Health,Redacted - Personal Data,Residential Care Income,-101.25,0,NON COMMERCIAL SUPPLIER
03-04-2023,Adults & Health,Redacted - Personal Data,Residential Care Income,-155.8,0,NON COMMERCIAL SUPPLIER
03-04-2023,Adults & Health,Redacted - Personal Data,Residential Care Income,-155.02,0,NON COMMERCIAL SUPPLIER
03-04-2023,Adults & Health,Redacted - Personal Data,Residential Care Income,-236.86,0,VENDOR
03-04-2023,Adults & Health,Redacted - Personal Data,Residential Care Income,-170.87,0,NON COMMERCIAL SUPPLIER
03-04-2023,Adults & Health,Redacted - Personal Data,Residential Care Income,-218.7,0,VENDOR
03-04-2023,Adults & Health,Redacted - Personal Data,Residential Care Income,-156.95,0,NON COMMERCIAL SUPPLIER
03-04-2023,Adults & Health,Redacted - Personal Data,Residential Care Income,-284.08,0,NON COMMERCIAL SUPPLIER
03-04-2023,Adults & Health,Redacted - Personal Data,Residential Care Income,-172.8,0,NON COMMERCIAL SUPPLIER
03-04-2023,Adults & Health,Redacted - Personal Data,Residential Care Income,-261.96,0,NON COMMERCIAL SUPPLIER
03-04-2023,Children and Young People,Redacted - Personal Data,Kinship Placement - Private Contractors Payment,255,0,INDIVIDUALS
03-04-2023,Children and Young People,Redacted - Personal Data,Kinship Placement - Private Contractors Payment,256.68,0,VENDOR
03-04-2023,Adults & Health,Redacted - Personal Data,Residential Care Income,-109.7,0,NON COMMERCIAL SUPPLIER
03-04-2023,Adults & Health,Redacted - Personal Data,Residential Care Income,-76.65,0,NON COMMERCIAL SUPPLIER
03-04-2023,Adults & Health,Redacted - Personal Data,Residential Care Income,-76.65,0,NON COMMERCIAL SUPPLIER
03-04-2023,Adults & Health,Redacted - Personal Data,Residential Care Income,-76.65,0,NON COMMERCIAL SUPPLIER
03-04-2023,Adults & Health,Redacted - Personal Data,Residential Care Income,-174.41,0,NON COMMERCIAL SUPPLIER
03-04-2023,Adults & Health,Redacted - Personal Data,Residential Care Income,-82.55,0,NON COMMERCIAL SUPPLIER
03-04-2023,Adults & Health,Redacted - Personal Data,Residential Care Income,-170.54,0,NON COMMERCIAL SUPPLIER
03-04-2023,Children and Young People,Redacted - Personal Data,Membership And Subscriptions,801.43,0,INDIVIDUALS
03-04-2023,Children and Young People,Hinds Care And Support Services,Private Contractors Payment - Other,1017,0,FOSTER CARERS
03-04-2023,Children and Young People,Hinds Care And Support Services,Private Contractors Payment - Other,1017,0,FOSTER CARERS
03-04-2023,Children and Young People,Hinds Care And Support Services,Private Contractors Payment - Other,1017,0,FOSTER CARERS
03-04-2023,Environment and Sustainable Transport,Openview Security Solutions Ltd,Security Services (Excluding Premises),616.24,0,COMMERCIAL SUPPLIER
03-04-2023,Environment and Sustainable Transport,Openview Security Solutions Ltd,Security Services (Excluding Premises),17085,0,COMMERCIAL SUPPLIER
03-04-2023,Adults & Health,TA PM Solutions Ltd,Consultancy Fees,6000,0,
03-04-2023,Inclusive Economy & Housing,Insurance Claims Accomodation Bureau Limited,Rents Payable,396,0,COMMERCIAL SUPPLIER
03-04-2023,Inclusive Economy & Housing,Insurance Claims Accomodation Bureau Limited,Rents Payable,308,0,COMMERCIAL SUPPLIER
03-04-2023,Inclusive Economy & Housing,Insurance Claims Accomodation Bureau Limited,Rents Payable,308,0,COMMERCIAL SUPPLIER
03-04-2023,Inclusive Economy & Housing,Insurance Claims Accomodation Bureau Limited,Rents Payable,462,0,COMMERCIAL SUPPLIER
03-04-2023,Inclusive Economy & Housing,Insurance Claims Accomodation Bureau Limited,Rents Payable,462,0,COMMERCIAL SUPPLIER
03-04-2023,Inclusive Economy & Housing,Insurance Claims Accomodation Bureau Limited,Rents Payable,308,0,COMMERCIAL SUPPLIER
03-04-2023,Inclusive Economy & Housing,Insurance Claims Accomodation Bureau Limited,Rents Payable,462,0,COMMERCIAL SUPPLIER
03-04-2023,Inclusive Economy & Housing,Insurance Claims Accomodation Bureau Limited,Rents Payable,462,0,COMMERCIAL SUPPLIER
03-04-2023,Inclusive Economy & Housing,Insurance Claims Accomodation Bureau Limited,Rents Payable,924,0,COMMERCIAL SUPPLIER
03-04-2023,Children and Young People,Hinds Care And Support Services,Private Contractors Payment - Other,1092,0,FOSTER CARERS
03-04-2023,Inclusive Economy & Housing,Insurance Claims Accomodation Bureau Limited,Rents Payable,1239.52,0,COMMERCIAL SUPPLIER
03-04-2023,Inclusive Economy & Housing,Insurance Claims Accomodation Bureau Limited,Rents Payable,2620,0,COMMERCIAL SUPPLIER
03-04-2023,Inclusive Economy & Housing,Insurance Claims Accomodation Bureau Limited,Rents Payable,1217.91,0,COMMERCIAL SUPPLIER
03-04-2023,Inclusive Economy & Housing,Insurance Claims Accomodation Bureau Limited,Rents Payable,1022.9,0,COMMERCIAL SUPPLIER
03-04-2023,Inclusive Economy & Housing,Insurance Claims Accomodation Bureau Limited,Rents Payable,1368.51,0,COMMERCIAL SUPPLIER
03-04-2023,Inclusive Economy & Housing,Insurance Claims Accomodation Bureau Limited,Rents Payable,734.31,0,COMMERCIAL SUPPLIER
03-04-2023,Inclusive Economy & Housing,Insurance Claims Accomodation Bureau Limited,Rents Payable,5800.43,0,COMMERCIAL SUPPLIER
03-04-2023,Inclusive Economy & Housing,Insurance Claims Accomodation Bureau Limited,Rents Payable,2872.61,0,COMMERCIAL SUPPLIER
03-04-2023,Inclusive Economy & Housing,Insurance Claims Accomodation Bureau Limited,Rents Payable,2437.61,0,COMMERCIAL SUPPLIER
03-04-2023,Inclusive Economy & Housing,Insurance Claims Accomodation Bureau Limited,Rents Payable,2094.41,0,COMMERCIAL SUPPLIER
03-04-2023,Inclusive Economy & Housing,Insurance Claims Accomodation Bureau Limited,Rents Payable,2458.61,0,COMMERCIAL SUPPLIER
03-04-2023,Inclusive Economy & Housing,Insurance Claims Accomodation Bureau Limited,Rents Payable,3474.41,0,COMMERCIAL SUPPLIER
03-04-2023,Inclusive Economy & Housing,Insurance Claims Accomodation Bureau Limited,Rents Payable,6107.63,0,COMMERCIAL SUPPLIER
03-04-2023,Inclusive Economy & Housing,Insurance Claims Accomodation Bureau Limited,Rents Payable,3284.81,0,COMMERCIAL SUPPLIER
03-04-2023,Inclusive Economy & Housing,Insurance Claims Accomodation Bureau Limited,Rents Payable,9518.44,0,COMMERCIAL SUPPLIER
03-04-2023,Inclusive Economy & Housing,Insurance Claims Accomodation Bureau Limited,Rents Payable,2792.21,0,COMMERCIAL SUPPLIER
03-04-2023,Inclusive Economy & Housing,Insurance Claims Accomodation Bureau Limited,Rents Payable,3920,0,COMMERCIAL SUPPLIER
03-04-2023,Inclusive Economy & Housing,Insurance Claims Accomodation Bureau Limited,Rents Payable,2470.61,0,COMMERCIAL SUPPLIER
03-04-2023,Inclusive Economy & Housing,Insurance Claims Accomodation Bureau Limited,Rents Payable,2869.61,0,COMMERCIAL SUPPLIER
03-04-2023,Inclusive Economy & Housing,Insurance Claims Accomodation Bureau Limited,Rents Payable,3031.61,0,COMMERCIAL SUPPLIER
03-04-2023,Inclusive Economy & Housing,Insurance Claims Accomodation Bureau Limited,Rents Payable,3261.41,0,COMMERCIAL SUPPLIER
03-04-2023,Inclusive Economy & Housing,Insurance Claims Accomodation Bureau Limited,Rents Payable,1775.81,0,COMMERCIAL SUPPLIER
03-04-2023,Inclusive Economy & Housing,Insurance Claims Accomodation Bureau Limited,Rents Payable,2569.66,0,COMMERCIAL SUPPLIER
03-04-2023,Inclusive Economy & Housing,Insurance Claims Accomodation Bureau Limited,Rents Payable,2823.41,0,COMMERCIAL SUPPLIER
03-04-2023,Inclusive Economy & Housing,Insurance Claims Accomodation Bureau Limited,Rents Payable,1663,0,COMMERCIAL SUPPLIER
03-04-2023,Inclusive Economy & Housing,Insurance Claims Accomodation Bureau Limited,Rents Payable,2480.21,0,COMMERCIAL SUPPLIER
03-04-2023,Inclusive Economy & Housing,Insurance Claims Accomodation Bureau Limited,Rents Payable,3595,0,COMMERCIAL SUPPLIER
03-04-2023,Inclusive Economy & Housing,Insurance Claims Accomodation Bureau Limited,Rents Payable,2180.21,0,COMMERCIAL SUPPLIER
03-04-2023,Inclusive Economy & Housing,Insurance Claims Accomodation Bureau Limited,Rents Payable,1753.61,0,COMMERCIAL SUPPLIER
03-04-2023,Inclusive Economy & Housing,Insurance Claims Accomodation Bureau Limited,Rents Payable,3485.81,0,COMMERCIAL SUPPLIER
03-04-2023,Inclusive Economy & Housing,Insurance Claims Accomodation Bureau Limited,Rents Payable,2618.21,0,COMMERCIAL SUPPLIER
03-04-2023,Inclusive Economy & Housing,Insurance Claims Accomodation Bureau Limited,Rents Payable,4815.32,0,COMMERCIAL SUPPLIER
03-04-2023,Inclusive Economy & Housing,Insurance Claims Accomodation Bureau Limited,Rents Payable,3489.41,0,COMMERCIAL SUPPLIER
03-04-2023,Inclusive Economy & Housing,Insurance Claims Accomodation Bureau Limited,Rents Payable,2968.61,0,COMMERCIAL SUPPLIER
03-04-2023,Inclusive Economy & Housing,Insurance Claims Accomodation Bureau Limited,Rents Payable,2079.41,0,COMMERCIAL SUPPLIER
03-04-2023,Inclusive Economy & Housing,Insurance Claims Accomodation Bureau Limited,Rents Payable,2400.41,0,COMMERCIAL SUPPLIER
03-04-2023,Inclusive Economy & Housing,Insurance Claims Accomodation Bureau Limited,Rents Payable,1474.11,0,COMMERCIAL SUPPLIER
03-04-2023,Inclusive Economy & Housing,Insurance Claims Accomodation Bureau Limited,Rents Payable,1162.73,0,COMMERCIAL SUPPLIER
03-04-2023,Inclusive Economy & Housing,Insurance Claims Accomodation Bureau Limited,Rents Payable,6824.49,0,COMMERCIAL SUPPLIER
03-04-2023,Inclusive Economy & Housing,Insurance Claims Accomodation Bureau Limited,Rents Payable,2350,0,COMMERCIAL SUPPLIER
03-04-2023,Inclusive Economy & Housing,Insurance Claims Accomodation Bureau Limited,Rents Payable,819,0,COMMERCIAL SUPPLIER
03-04-2023,Inclusive Economy & Housing,Insurance Claims Accomodation Bureau Limited,Rents Payable,1392.11,0,COMMERCIAL SUPPLIER
03-04-2023,Inclusive Economy & Housing,Insurance Claims Accomodation Bureau Limited,Rents Payable,5640.83,0,COMMERCIAL SUPPLIER
03-04-2023,Inclusive Economy & Housing,Insurance Claims Accomodation Bureau Limited,Rents Payable,1184.31,0,COMMERCIAL SUPPLIER
03-04-2023,Inclusive Economy & Housing,Insurance Claims Accomodation Bureau Limited,Rents Payable,982,0,COMMERCIAL SUPPLIER
03-04-2023,Inclusive Economy & Housing,Insurance Claims Accomodation Bureau Limited,Rents Payable,3790.43,0,COMMERCIAL SUPPLIER
03-04-2023,Inclusive Economy & Housing,Insurance Claims Accomodation Bureau Limited,Rents Payable,6258.83,0,COMMERCIAL SUPPLIER
03-04-2023,Inclusive Economy & Housing,Insurance Claims Accomodation Bureau Limited,Rents Payable,2554,0,COMMERCIAL SUPPLIER
03-04-2023,Inclusive Economy & Housing,Insurance Claims Accomodation Bureau Limited,Rents Payable,1609,0,COMMERCIAL SUPPLIER
03-04-2023,Inclusive Economy & Housing,Insurance Claims Accomodation Bureau Limited,Rents Payable,2554,0,COMMERCIAL SUPPLIER
03-04-2023,Adults & Health,London Care Plc,Home Care - Private Contractors Payment,294.84,0,COMMERCIAL SUPPLIER
03-04-2023,Adults & Health,London Care Plc,Home Care - Private Contractors Payment,294.84,0,COMMERCIAL SUPPLIER
03-04-2023,Adults & Health,London Care Plc,Home Care - Private Contractors Payment,44.74,0,COMMERCIAL SUPPLIER
03-04-2023,Adults & Health,London Care Plc,Home Care - Private Contractors Payment,294.84,0,COMMERCIAL SUPPLIER
03-04-2023,Adults & Health,London Care Plc,Home Care - Private Contractors Payment,234.71,0,COMMERCIAL SUPPLIER
03-04-2023,Adults & Health,London Care Plc,Home Care - Private Contractors Payment,234.71,0,COMMERCIAL SUPPLIER
03-04-2023,Adults & Health,London Care Plc,Home Care - Private Contractors Payment,234.71,0,COMMERCIAL SUPPLIER
03-04-2023,Adults & Health,London Care Plc,Home Care - Private Contractors Payment,234.71,0,COMMERCIAL SUPPLIER
03-04-2023,Environment and Sustainable Transport,R.A.M Fleet Solutions Ltd,"Purchase - Equipment, Furniture And Materials",3295,0,COMMERCIAL SUPPLIER
03-04-2023,Marketing,Askews and Holts Library Services Ltd,"Books, Publications And Resources",2680.09,0,COMMERCIAL SUPPLIER
03-04-2023,Marketing,Askews and Holts Library Services Ltd,"Books, Publications And Resources",942.51,0,COMMERCIAL SUPPLIER
03-04-2023,Marketing,Askews and Holts Library Services Ltd,"Books, Publications And Resources",644.08,0,COMMERCIAL SUPPLIER
03-04-2023,Marketing,Askews and Holts Library Services Ltd,"Books, Publications And Resources",440.89,0,COMMERCIAL SUPPLIER
03-04-2023,Children and Young People,Gordon Care Services Limited,Contact Costs (Placements),480,0,COMMERCIAL SUPPLIER
03-04-2023,Children and Young People,Gordon Care Services Limited,Contact Costs (Placements),480,0,COMMERCIAL SUPPLIER
03-04-2023,Children and Young People,Gordon Care Services Limited,Contact Costs (Placements),600,0,COMMERCIAL SUPPLIER
03-04-2023,Children and Young People,Gordon Care Services Limited,Contact Costs (Placements),360,0,COMMERCIAL SUPPLIER
03-04-2023,Environment and Sustainable Transport,Floglass Limited,"Purchase - Equipment, Furniture And Materials",215,0,COMMERCIAL SUPPLIER
03-04-2023,Housing Revenue Account,Matrix Solicitors,Legal Fees,2000,0,NON COMMERCIAL SUPPLIER
03-04-2023,Children and Young People,Hinds Care And Support Services,Private Contractors Payment - Other,1092,0,FOSTER CARERS
03-04-2023,Children and Young People,Hinds Care And Support Services,Private Contractors Payment - Other,2034,0,FOSTER CARERS
03-04-2023,Children and Young People,Goldline Cars Ltd,Client Transport,1890,0,COMMERCIAL SUPPLIER
03-04-2023,Children and Young People,Goldline Cars Ltd,Client Transport,860,0,COMMERCIAL SUPPLIER
03-04-2023,Environment and Sustainable Transport,Greener Solutions,Highway Services,3,0,VENDOR
03-04-2023,Environment and Sustainable Transport,Greener Solutions,Highway Services,3.7,0,VENDOR
03-04-2023,Environment and Sustainable Transport,Greener Solutions,Highway Services,147,0,VENDOR
03-04-2023,Environment and Sustainable Transport,Greener Solutions,Highway Services,78.95,0,VENDOR
03-04-2023,Environment and Sustainable Transport,Greener Solutions,Highway Services,68,0,VENDOR
03-04-2023,Environment and Sustainable Transport,Greener Solutions,Highway Services,115.35,0,VENDOR
03-04-2023,Environment and Sustainable Transport,Greener Solutions,Highway Services,132,0,VENDOR
03-04-2023,Children and Young People,Hinds Care And Support Services,Private Contractors Payment - Other,1017,0,FOSTER CARERS
03-04-2023,Adults & Health,Livability Nash College,Daycare - Private Contractors Payment,379.4,0,COMMERCIAL SUPPLIER
03-04-2023,Adults & Health,Livability Nash College,Daycare - Private Contractors Payment,569.1,0,COMMERCIAL SUPPLIER
03-04-2023,Adults & Health,Livability Nash College,Daycare - Private Contractors Payment,569.1,0,COMMERCIAL SUPPLIER
03-04-2023,Adults & Health,Livability Nash College,Daycare - Private Contractors Payment,569.1,0,COMMERCIAL SUPPLIER
03-04-2023,Adults & Health,Livability Nash College,Daycare - Private Contractors Payment,189.7,0,COMMERCIAL SUPPLIER
03-04-2023,Adults & Health,Access Independent Ltd,Occupational Health,376,0,COMMERCIAL SUPPLIER
03-04-2023,Adults & Health,Access Independent Ltd,Occupational Health,426.4,0,COMMERCIAL SUPPLIER
03-04-2023,Adults & Health,Chosen Care Group Ltd,Home Care - Private Contractors Payment,67.06,0,VENDOR
03-04-2023,Adults & Health,Chosen Care Group Ltd,Home Care - Private Contractors Payment,38.32,0,VENDOR
03-04-2023,Adults & Health,Chosen Care Group Ltd,Daycare - Private Contractors Payment,28.74,0,VENDOR
03-04-2023,Adults & Health,Chosen Care Group Ltd,Home Care - Private Contractors Payment,268.24,0,VENDOR
03-04-2023,Adults & Health,Chosen Care Group Ltd,Home Care - Private Contractors Payment,86.22,0,VENDOR
03-04-2023,Adults & Health,Chosen Care Group Ltd,Home Care - Private Contractors Payment,603.54,0,VENDOR
03-04-2023,Adults & Health,Chosen Care Group Ltd,Daycare - Private Contractors Payment,19.16,0,VENDOR
03-04-2023,Adults & Health,Chosen Care Group Ltd,Home Care - Private Contractors Payment,234.71,0,VENDOR
03-04-2023,Adults & Health,Chosen Care Group Ltd,Daycare - Private Contractors Payment,28.74,0,VENDOR
03-04-2023,Adults & Health,Chosen Care Group Ltd,Home Care - Private Contractors Payment,162.86,0,VENDOR
03-04-2023,Adults & Health,Chosen Care Group Ltd,Home Care - Private Contractors Payment,301.77,0,VENDOR
03-04-2023,Adults & Health,Chosen Care Group Ltd,Home Care - Private Contractors Payment,43.11,0,VENDOR
03-04-2023,Adults & Health,Chosen Care Group Ltd,Home Care - Private Contractors Payment,67.06,0,VENDOR
03-04-2023,Adults & Health,Chosen Care Group Ltd,Home Care - Private Contractors Payment,570.01,0,VENDOR
03-04-2023,Adults & Health,Chosen Care Group Ltd,Home Care - Private Contractors Payment,268.24,0,VENDOR
03-04-2023,Adults & Health,Chosen Care Group Ltd,Home Care - Private Contractors Payment,57.48,0,VENDOR
03-04-2023,Adults & Health,Chosen Care Group Ltd,Home Care - Private Contractors Payment,100.59,0,VENDOR
03-04-2023,Adults & Health,Chosen Care Group Ltd,Home Care - Private Contractors Payment,570.01,0,VENDOR
03-04-2023,Adults & Health,Chosen Care Group Ltd,Home Care - Private Contractors Payment,335.3,0,VENDOR
03-04-2023,Adults & Health,Chosen Care Group Ltd,Home Care - Private Contractors Payment,47.9,0,VENDOR
03-04-2023,Adults & Health,Chosen Care Group Ltd,Home Care - Private Contractors Payment,167.65,0,VENDOR
03-04-2023,Adults & Health,Chosen Care Group Ltd,Home Care - Private Contractors Payment,19.16,0,VENDOR
03-04-2023,Adults & Health,Chosen Care Group Ltd,Home Care - Private Contractors Payment,364.7,0,VENDOR
03-04-2023,Adults & Health,Chosen Care Group Ltd,Daycare - Private Contractors Payment,287.4,0,VENDOR
03-04-2023,Adults & Health,Chosen Care Group Ltd,Home Care - Private Contractors Payment,100.59,0,VENDOR
03-04-2023,Adults & Health,Chosen Care Group Ltd,Home Care - Private Contractors Payment,81.43,0,VENDOR
03-04-2023,Adults & Health,Chosen Care Group Ltd,Home Care - Private Contractors Payment,19.16,0,VENDOR
03-04-2023,Adults & Health,Chosen Care Group Ltd,Home Care - Private Contractors Payment,603.54,0,VENDOR
03-04-2023,Adults & Health,Chosen Care Group Ltd,Home Care - Private Contractors Payment,19.16,0,VENDOR
03-04-2023,Adults & Health,Chosen Care Group Ltd,Home Care - Private Contractors Payment,1207.08,0,VENDOR
03-04-2023,Adults & Health,Chosen Care Group Ltd,Home Care - Private Contractors Payment,301.77,0,VENDOR
03-04-2023,Adults & Health,Chosen Care Group Ltd,Home Care - Private Contractors Payment,570.01,0,VENDOR
03-04-2023,Adults & Health,Chosen Care Group Ltd,Home Care - Private Contractors Payment,268.24,0,VENDOR
03-04-2023,Adults & Health,Chosen Care Group Ltd,Home Care - Private Contractors Payment,201.18,0,VENDOR
03-04-2023,Adults & Health,Chosen Care Group Ltd,Home Care - Private Contractors Payment,100.59,0,VENDOR
03-04-2023,Adults & Health,Chosen Care Group Ltd,Home Care - Private Contractors Payment,570.01,0,VENDOR
03-04-2023,Adults & Health,Chosen Care Group Ltd,Daycare - Private Contractors Payment,19.16,0,VENDOR
03-04-2023,Adults & Health,Chosen Care Group Ltd,Home Care - Private Contractors Payment,100.59,0,VENDOR
03-04-2023,Adults & Health,Chosen Care Group Ltd,Home Care - Private Contractors Payment,57.48,0,VENDOR
03-04-2023,Adults & Health,Chosen Care Group Ltd,Home Care - Private Contractors Payment,167.65,0,VENDOR
03-04-2023,Adults & Health,Chosen Care Group Ltd,Home Care - Private Contractors Payment,536.48,0,VENDOR
03-04-2023,Adults & Health,Chosen Care Group Ltd,Home Care - Private Contractors Payment,67.06,0,VENDOR
03-04-2023,Adults & Health,Chosen Care Group Ltd,Home Care - Private Contractors Payment,167.65,0,VENDOR
03-04-2023,Adults & Health,Chosen Care Group Ltd,Home Care - Private Contractors Payment,301.77,0,VENDOR
03-04-2023,Adults & Health,Chosen Care Group Ltd,Home Care - Private Contractors Payment,19.16,0,VENDOR
03-04-2023,Adults & Health,Chosen Care Group Ltd,Home Care - Private Contractors Payment,215.55,0,VENDOR
03-04-2023,Adults & Health,Chosen Care Group Ltd,Daycare - Private Contractors Payment,172.44,0,VENDOR
03-04-2023,Adults & Health,Chosen Care Group Ltd,Home Care - Private Contractors Payment,86.22,0,VENDOR
03-04-2023,Adults & Health,Chosen Care Group Ltd,Home Care - Private Contractors Payment,335.3,0,VENDOR
03-04-2023,Adults & Health,Chosen Care Group Ltd,Home Care - Private Contractors Payment,47.9,0,VENDOR
03-04-2023,Adults & Health,Chosen Care Group Ltd,Home Care - Private Contractors Payment,167.65,0,VENDOR
03-04-2023,Adults & Health,Chosen Care Group Ltd,Home Care - Private Contractors Payment,19.16,0,VENDOR
03-04-2023,Adults & Health,Chosen Care Group Ltd,Home Care - Private Contractors Payment,325.5,0,VENDOR
03-04-2023,Adults & Health,Chosen Care Group Ltd,Daycare - Private Contractors Payment,287.4,0,VENDOR
03-04-2023,Adults & Health,Chosen Care Group Ltd,Home Care - Private Contractors Payment,435.89,0,VENDOR
03-04-2023,Adults & Health,Chosen Care Group Ltd,Home Care - Private Contractors Payment,100.59,0,VENDOR
03-04-2023,Adults & Health,Chosen Care Group Ltd,Daycare - Private Contractors Payment,19.16,0,VENDOR
03-04-2023,Adults & Health,Chosen Care Group Ltd,Home Care - Private Contractors Payment,100.59,0,VENDOR
03-04-2023,Adults & Health,Chosen Care Group Ltd,Home Care - Private Contractors Payment,100.59,0,VENDOR
03-04-2023,Adults & Health,Chosen Care Group Ltd,Home Care - Private Contractors Payment,124.54,0,VENDOR
03-04-2023,Adults & Health,Chosen Care Group Ltd,Home Care - Private Contractors Payment,95.8,0,VENDOR
03-04-2023,Adults & Health,Chosen Care Group Ltd,Home Care - Private Contractors Payment,167.65,0,VENDOR
03-04-2023,Adults & Health,Chosen Care Group Ltd,Home Care - Private Contractors Payment,100.59,0,VENDOR
03-04-2023,Adults & Health,Chosen Care Group Ltd,Home Care - Private Contractors Payment,52.69,0,VENDOR
03-04-2023,Adults & Health,Chosen Care Group Ltd,Home Care - Private Contractors Payment,201.18,0,VENDOR
03-04-2023,Adults & Health,Chosen Care Group Ltd,Home Care - Private Contractors Payment,301.77,0,VENDOR
03-04-2023,Adults & Health,Chosen Care Group Ltd,Reablement,234.71,0,VENDOR
03-04-2023,Adults & Health,Chosen Care Group Ltd,Home Care - Private Contractors Payment,234.71,0,VENDOR
03-04-2023,Adults & Health,Chosen Care Group Ltd,Home Care - Private Contractors Payment,14.37,0,VENDOR
03-04-2023,Adults & Health,Chosen Care Group Ltd,Home Care - Private Contractors Payment,301.77,0,VENDOR
03-04-2023,Adults & Health,Chosen Care Group Ltd,Home Care - Private Contractors Payment,301.77,0,VENDOR
03-04-2023,Adults & Health,Chosen Care Group Ltd,Home Care - Private Contractors Payment,536.48,0,VENDOR
03-04-2023,Adults & Health,Chosen Care Group Ltd,Home Care - Private Contractors Payment,38.32,0,VENDOR
03-04-2023,Adults & Health,Chosen Care Group Ltd,Home Care - Private Contractors Payment,67.06,0,VENDOR
03-04-2023,Adults & Health,Chosen Care Group Ltd,Daycare - Private Contractors Payment,28.74,0,VENDOR
03-04-2023,Adults & Health,Chosen Care Group Ltd,Home Care - Private Contractors Payment,124.54,0,VENDOR
03-04-2023,Adults & Health,Chosen Care Group Ltd,Home Care - Private Contractors Payment,167.65,0,VENDOR
03-04-2023,Adults & Health,Chosen Care Group Ltd,Home Care - Private Contractors Payment,134.12,0,VENDOR
03-04-2023,Adults & Health,Chosen Care Group Ltd,Daycare - Private Contractors Payment,67.22,0,VENDOR
03-04-2023,Adults & Health,Chosen Care Group Ltd,Home Care - Private Contractors Payment,214.71,0,VENDOR
03-04-2023,Adults & Health,Chosen Care Group Ltd,Reablement,167.65,0,VENDOR
03-04-2023,Adults & Health,Chosen Care Group Ltd,Home Care - Private Contractors Payment,282.61,0,VENDOR
03-04-2023,Adults & Health,Chosen Care Group Ltd,Home Care - Private Contractors Payment,95.8,0,VENDOR
03-04-2023,Adults & Health,Chosen Care Group Ltd,Home Care - Private Contractors Payment,167.65,0,VENDOR
03-04-2023,Adults & Health,Chosen Care Group Ltd,Home Care - Private Contractors Payment,191.6,0,VENDOR
03-04-2023,Adults & Health,Chosen Care Group Ltd,Home Care - Private Contractors Payment,100.59,0,VENDOR
03-04-2023,Adults & Health,Chosen Care Group Ltd,Home Care - Private Contractors Payment,301.77,0,VENDOR
03-04-2023,Adults & Health,Chosen Care Group Ltd,Home Care - Private Contractors Payment,201.18,0,VENDOR
03-04-2023,Adults & Health,Chosen Care Group Ltd,Home Care - Private Contractors Payment,301.77,0,VENDOR
03-04-2023,Adults & Health,Chosen Care Group Ltd,Reablement,234.71,0,VENDOR
03-04-2023,Adults & Health,Chosen Care Group Ltd,Home Care - Private Contractors Payment,234.71,0,VENDOR
03-04-2023,Adults & Health,Chosen Care Group Ltd,Home Care - Private Contractors Payment,14.37,0,VENDOR
03-04-2023,Adults & Health,Chosen Care Group Ltd,Home Care - Private Contractors Payment,301.77,0,VENDOR
03-04-2023,Adults & Health,Chosen Care Group Ltd,Home Care - Private Contractors Payment,100.59,0,VENDOR
03-04-2023,Adults & Health,Chosen Care Group Ltd,Home Care - Private Contractors Payment,28.74,0,VENDOR
03-04-2023,Adults & Health,Chosen Care Group Ltd,Home Care - Private Contractors Payment,124.54,0,VENDOR
03-04-2023,Adults & Health,Chosen Care Group Ltd,Respite Care - Private Contractors Payment,134.12,0,VENDOR
03-04-2023,Adults & Health,Chosen Care Group Ltd,Home Care - Private Contractors Payment,234.71,0,VENDOR
03-04-2023,Adults & Health,Chosen Care Group Ltd,Home Care - Private Contractors Payment,359.25,0,VENDOR
03-04-2023,Adults & Health,Chosen Care Group Ltd,Home Care - Private Contractors Payment,95.8,0,VENDOR
03-04-2023,Adults & Health,Chosen Care Group Ltd,Daycare - Private Contractors Payment,57.48,0,VENDOR
03-04-2023,Adults & Health,Chosen Care Group Ltd,Home Care - Private Contractors Payment,143.7,0,VENDOR
03-04-2023,Adults & Health,Chosen Care Group Ltd,Home Care - Private Contractors Payment,320.93,0,VENDOR
03-04-2023,Adults & Health,Chosen Care Group Ltd,Home Care - Private Contractors Payment,162.86,0,VENDOR
03-04-2023,Adults & Health,Chosen Care Group Ltd,Home Care - Private Contractors Payment,67.06,0,VENDOR
03-04-2023,Adults & Health,Chosen Care Group Ltd,Home Care - Private Contractors Payment,536.48,0,VENDOR
03-04-2023,Adults & Health,Chosen Care Group Ltd,Respite Care - Private Contractors Payment,172.44,0,VENDOR
03-04-2023,Adults & Health,Chosen Care Group Ltd,Home Care - Private Contractors Payment,134.12,0,VENDOR
03-04-2023,Adults & Health,Chosen Care Group Ltd,Home Care - Private Contractors Payment,167.65,0,VENDOR
03-04-2023,Adults & Health,Chosen Care Group Ltd,Daycare - Private Contractors Payment,47.9,0,VENDOR
03-04-2023,Adults & Health,Chosen Care Group Ltd,Home Care - Private Contractors Payment,100.59,0,VENDOR
03-04-2023,Adults & Health,Chosen Care Group Ltd,Home Care - Private Contractors Payment,301.77,0,VENDOR
03-04-2023,Adults & Health,Chosen Care Group Ltd,Home Care - Private Contractors Payment,1572.48,0,VENDOR
03-04-2023,Adults & Health,Chosen Care Group Ltd,Home Care - Private Contractors Payment,234.71,0,VENDOR
03-04-2023,Adults & Health,Chosen Care Group Ltd,Home Care - Private Contractors Payment,301.77,0,VENDOR
03-04-2023,Adults & Health,Chosen Care Group Ltd,Home Care - Private Contractors Payment,234.71,0,VENDOR
03-04-2023,Adults & Health,Chosen Care Group Ltd,Home Care - Private Contractors Payment,38.32,0,VENDOR
03-04-2023,Adults & Health,Chosen Care Group Ltd,Home Care - Private Contractors Payment,134.12,0,VENDOR
03-04-2023,Adults & Health,Chosen Care Group Ltd,Home Care - Private Contractors Payment,311.35,0,VENDOR
03-04-2023,Adults & Health,Chosen Care Group Ltd,Home Care - Private Contractors Payment,301.77,0,VENDOR
03-04-2023,Adults & Health,Chosen Care Group Ltd,Home Care - Private Contractors Payment,28.74,0,VENDOR
03-04-2023,Adults & Health,Chosen Care Group Ltd,Home Care - Private Contractors Payment,38.32,0,VENDOR
03-04-2023,Adults & Health,Chosen Care Group Ltd,Home Care - Private Contractors Payment,81.43,0,VENDOR
03-04-2023,Adults & Health,Chosen Care Group Ltd,Home Care - Private Contractors Payment,19.16,0,VENDOR
03-04-2023,Adults & Health,Chosen Care Group Ltd,Home Care - Private Contractors Payment,603.54,0,VENDOR
03-04-2023,Adults & Health,Chosen Care Group Ltd,Home Care - Private Contractors Payment,234.71,0,VENDOR
03-04-2023,Adults & Health,Chosen Care Group Ltd,Home Care - Private Contractors Payment,19.16,0,VENDOR
03-04-2023,Adults & Health,Chosen Care Group Ltd,Home Care - Private Contractors Payment,1207.08,0,VENDOR
03-04-2023,Adults & Health,Chosen Care Group Ltd,Home Care - Private Contractors Payment,292.19,0,VENDOR
03-04-2023,Adults & Health,Chosen Care Group Ltd,Daycare - Private Contractors Payment,38.32,0,VENDOR
03-04-2023,Adults & Health,Chosen Care Group Ltd,Home Care - Private Contractors Payment,172.44,0,VENDOR
03-04-2023,Adults & Health,Chosen Care Group Ltd,Home Care - Private Contractors Payment,320.93,0,VENDOR
03-04-2023,Adults & Health,Chosen Care Group Ltd,Home Care - Private Contractors Payment,234.71,0,VENDOR
03-04-2023,Adults & Health,Chosen Care Group Ltd,Daycare - Private Contractors Payment,105.38,0,VENDOR
03-04-2023,Adults & Health,Chosen Care Group Ltd,Home Care - Private Contractors Payment,67.06,0,VENDOR
03-04-2023,Adults & Health,Chosen Care Group Ltd,Home Care - Private Contractors Payment,38.32,0,VENDOR
03-04-2023,Adults & Health,Chosen Care Group Ltd,Home Care - Private Contractors Payment,134.12,0,VENDOR
03-04-2023,Adults & Health,Chosen Care Group Ltd,Home Care - Private Contractors Payment,340.09,0,VENDOR
03-04-2023,Adults & Health,Chosen Care Group Ltd,Home Care - Private Contractors Payment,100.59,0,VENDOR
03-04-2023,Adults & Health,Chosen Care Group Ltd,Daycare - Private Contractors Payment,19.16,0,VENDOR
03-04-2023,Adults & Health,Chosen Care Group Ltd,Home Care - Private Contractors Payment,100.59,0,VENDOR
03-04-2023,Adults & Health,Chosen Care Group Ltd,Home Care - Private Contractors Payment,100.59,0,VENDOR
03-04-2023,Adults & Health,Chosen Care Group Ltd,Home Care - Private Contractors Payment,67.06,0,VENDOR
03-04-2023,Adults & Health,Chosen Care Group Ltd,Home Care - Private Contractors Payment,67.06,0,VENDOR
03-04-2023,Adults & Health,Chosen Care Group Ltd,Home Care - Private Contractors Payment,38.32,0,VENDOR
03-04-2023,Adults & Health,Chosen Care Group Ltd,Daycare - Private Contractors Payment,28.74,0,VENDOR
03-04-2023,Adults & Health,Chosen Care Group Ltd,Home Care - Private Contractors Payment,268.24,0,VENDOR
03-04-2023,Adults & Health,Chosen Care Group Ltd,Home Care - Private Contractors Payment,26.74,0,VENDOR
03-04-2023,Adults & Health,Chosen Care Group Ltd,Home Care - Private Contractors Payment,134.12,0,VENDOR
03-04-2023,Adults & Health,Chosen Care Group Ltd,Home Care - Private Contractors Payment,325.72,0,VENDOR
03-04-2023,Adults & Health,Chosen Care Group Ltd,Home Care - Private Contractors Payment,325.5,0,VENDOR
03-04-2023,Adults & Health,Chosen Care Group Ltd,Daycare - Private Contractors Payment,287.4,0,VENDOR
03-04-2023,Adults & Health,Chosen Care Group Ltd,Home Care - Private Contractors Payment,205.97,0,VENDOR
03-04-2023,Adults & Health,Chosen Care Group Ltd,Home Care - Private Contractors Payment,234.71,0,VENDOR
03-04-2023,Adults & Health,Chosen Care Group Ltd,Home Care - Private Contractors Payment,368.83,0,VENDOR
03-04-2023,Adults & Health,Chosen Care Group Ltd,Home Care - Private Contractors Payment,134.12,0,VENDOR
03-04-2023,Adults & Health,Chosen Care Group Ltd,Daycare - Private Contractors Payment,57.48,0,VENDOR
03-04-2023,Adults & Health,Chosen Care Group Ltd,Home Care - Private Contractors Payment,234.71,0,VENDOR
03-04-2023,Adults & Health,Chosen Care Group Ltd,Home Care - Private Contractors Payment,536.48,0,VENDOR
03-04-2023,Adults & Health,Chosen Care Group Ltd,Home Care - Private Contractors Payment,67.06,0,VENDOR
03-04-2023,Adults & Health,Chosen Care Group Ltd,Home Care - Private Contractors Payment,167.65,0,VENDOR
03-04-2023,Adults & Health,Chosen Care Group Ltd,Home Care - Private Contractors Payment,301.77,0,VENDOR
03-04-2023,Adults & Health,Chosen Care Group Ltd,Home Care - Private Contractors Payment,86.22,0,VENDOR
03-04-2023,Adults & Health,Chosen Care Group Ltd,Home Care - Private Contractors Payment,603.54,0,VENDOR
03-04-2023,Adults & Health,Chosen Care Group Ltd,Daycare - Private Contractors Payment,19.16,0,VENDOR
03-04-2023,Adults & Health,Chosen Care Group Ltd,Home Care - Private Contractors Payment,234.71,0,VENDOR
03-04-2023,Adults & Health,Chosen Care Group Ltd,Daycare - Private Contractors Payment,28.74,0,VENDOR
03-04-2023,Adults & Health,Chosen Care Group Ltd,Home Care - Private Contractors Payment,162.86,0,VENDOR
03-04-2023,Adults & Health,Chosen Care Group Ltd,Home Care - Private Contractors Payment,167.65,0,VENDOR
03-04-2023,Adults & Health,Chosen Care Group Ltd,Home Care - Private Contractors Payment,100.59,0,VENDOR
03-04-2023,Adults & Health,Chosen Care Group Ltd,Home Care - Private Contractors Payment,134.12,0,VENDOR
03-04-2023,Adults & Health,Chosen Care Group Ltd,Daycare - Private Contractors Payment,67.06,0,VENDOR
03-04-2023,Adults & Health,Chosen Care Group Ltd,Home Care - Private Contractors Payment,234.71,0,VENDOR
03-04-2023,Adults & Health,Chosen Care Group Ltd,Home Care - Private Contractors Payment,38.32,0,VENDOR
03-04-2023,Adults & Health,Chosen Care Group Ltd,Home Care - Private Contractors Payment,19.16,0,VENDOR
03-04-2023,Adults & Health,Chosen Care Group Ltd,Home Care - Private Contractors Payment,215.55,0,VENDOR
03-04-2023,Adults & Health,Chosen Care Group Ltd,Daycare - Private Contractors Payment,172.44,0,VENDOR
03-04-2023,Adults & Health,Chosen Care Group Ltd,Home Care - Private Contractors Payment,71.85,0,VENDOR
03-04-2023,Adults & Health,Chosen Care Group Ltd,Daycare - Private Contractors Payment,19.16,0,VENDOR
03-04-2023,Adults & Health,Chosen Care Group Ltd,Home Care - Private Contractors Payment,100.59,0,VENDOR
03-04-2023,Adults & Health,Chosen Care Group Ltd,Home Care - Private Contractors Payment,43.11,0,VENDOR
03-04-2023,Adults & Health,Chosen Care Group Ltd,Home Care - Private Contractors Payment,67.06,0,VENDOR
03-04-2023,Adults & Health,Chosen Care Group Ltd,Home Care - Private Contractors Payment,67.06,0,VENDOR
03-04-2023,Adults & Health,Chosen Care Group Ltd,Home Care - Private Contractors Payment,38.32,0,VENDOR
03-04-2023,Adults & Health,Chosen Care Group Ltd,Daycare - Private Contractors Payment,28.74,0,VENDOR
03-04-2023,Adults & Health,Chosen Care Group Ltd,Home Care - Private Contractors Payment,268.24,0,VENDOR
03-04-2023,Adults & Health,Chosen Care Group Ltd,Reablement,167.65,0,VENDOR
03-04-2023,Adults & Health,Chosen Care Group Ltd,Home Care - Private Contractors Payment,301.77,0,VENDOR
03-04-2023,Adults & Health,Chosen Care Group Ltd,Home Care - Private Contractors Payment,100.59,0,VENDOR
03-04-2023,Adults & Health,Chosen Care Group Ltd,Home Care - Private Contractors Payment,191.6,0,VENDOR
03-04-2023,Adults & Health,Chosen Care Group Ltd,Home Care - Private Contractors Payment,43.11,0,VENDOR
03-04-2023,Adults & Health,Chosen Care Group Ltd,Home Care - Private Contractors Payment,301.77,0,VENDOR
03-04-2023,Adults & Health,Chosen Care Group Ltd,Home Care - Private Contractors Payment,201.18,0,VENDOR
03-04-2023,Adults & Health,Chosen Care Group Ltd,Respite Care - Private Contractors Payment,134.12,0,VENDOR
03-04-2023,Adults & Health,Chosen Care Group Ltd,Home Care - Private Contractors Payment,624.7,0,VENDOR
03-04-2023,Adults & Health,Chosen Care Group Ltd,Daycare - Private Contractors Payment,306.56,0,VENDOR
03-04-2023,Adults & Health,Chosen Care Group Ltd,Home Care - Private Contractors Payment,86.22,0,VENDOR
03-04-2023,Adults & Health,Chosen Care Group Ltd,Home Care - Private Contractors Payment,158.07,0,VENDOR
03-04-2023,Adults & Health,Chosen Care Group Ltd,Home Care - Private Contractors Payment,86.22,0,VENDOR
03-04-2023,Adults & Health,Chosen Care Group Ltd,Home Care - Private Contractors Payment,167.65,0,VENDOR
03-04-2023,Adults & Health,Chosen Care Group Ltd,Home Care - Private Contractors Payment,565.22,0,VENDOR
03-04-2023,Adults & Health,Chosen Care Group Ltd,Daycare - Private Contractors Payment,19.16,0,VENDOR
03-04-2023,Adults & Health,Chosen Care Group Ltd,Home Care - Private Contractors Payment,234.71,0,VENDOR
03-04-2023,Adults & Health,Chosen Care Group Ltd,Home Care - Private Contractors Payment,368.83,0,VENDOR
03-04-2023,Adults & Health,Chosen Care Group Ltd,Home Care - Private Contractors Payment,134.12,0,VENDOR
03-04-2023,Adults & Health,Chosen Care Group Ltd,Daycare - Private Contractors Payment,57.48,0,VENDOR
03-04-2023,Adults & Health,Chosen Care Group Ltd,Home Care - Private Contractors Payment,234.71,0,VENDOR
03-04-2023,Adults & Health,Chosen Care Group Ltd,Home Care - Private Contractors Payment,38.32,0,VENDOR
03-04-2023,Adults & Health,Chosen Care Group Ltd,Home Care - Private Contractors Payment,301.77,0,VENDOR
03-04-2023,Adults & Health,Chosen Care Group Ltd,Home Care - Private Contractors Payment,38.32,0,VENDOR
03-04-2023,Adults & Health,Chosen Care Group Ltd,Home Care - Private Contractors Payment,134.12,0,VENDOR
03-04-2023,Adults & Health,Chosen Care Group Ltd,Home Care - Private Contractors Payment,340.09,0,VENDOR
03-04-2023,Adults & Health,Chosen Care Group Ltd,Home Care - Private Contractors Payment,301.77,0,VENDOR
03-04-2023,Adults & Health,Chosen Care Group Ltd,Home Care - Private Contractors Payment,43.11,0,VENDOR
03-04-2023,Adults & Health,Chosen Care Group Ltd,Home Care - Private Contractors Payment,67.06,0,VENDOR
03-04-2023,Adults & Health,Chosen Care Group Ltd,Home Care - Private Contractors Payment,81.43,0,VENDOR
03-04-2023,Adults & Health,Chosen Care Group Ltd,Home Care - Private Contractors Payment,19.16,0,VENDOR
03-04-2023,Adults & Health,Chosen Care Group Ltd,Home Care - Private Contractors Payment,258.66,0,VENDOR
03-04-2023,Adults & Health,Chosen Care Group Ltd,Home Care - Private Contractors Payment,234.71,0,VENDOR
03-04-2023,Adults & Health,Chosen Care Group Ltd,Home Care - Private Contractors Payment,19.16,0,VENDOR
03-04-2023,Adults & Health,Chosen Care Group Ltd,Home Care - Private Contractors Payment,1207.08,0,VENDOR
03-04-2023,Adults & Health,Chosen Care Group Ltd,Home Care - Private Contractors Payment,301.77,0,VENDOR
03-04-2023,Adults & Health,Chosen Care Group Ltd,Home Care - Private Contractors Payment,234.71,0,VENDOR
03-04-2023,Adults & Health,Chosen Care Group Ltd,Home Care - Private Contractors Payment,67.06,0,VENDOR
03-04-2023,Adults & Health,Chosen Care Group Ltd,Home Care - Private Contractors Payment,134.12,0,VENDOR
03-04-2023,Adults & Health,Chosen Care Group Ltd,Home Care - Private Contractors Payment,340.09,0,VENDOR
03-04-2023,Adults & Health,Chosen Care Group Ltd,Home Care - Private Contractors Payment,301.77,0,VENDOR
03-04-2023,Adults & Health,Chosen Care Group Ltd,Home Care - Private Contractors Payment,43.11,0,VENDOR
03-04-2023,Adults & Health,Chosen Care Group Ltd,Home Care - Private Contractors Payment,67.06,0,VENDOR
03-04-2023,Adults & Health,Chosen Care Group Ltd,Home Care - Private Contractors Payment,81.43,0,VENDOR
03-04-2023,Adults & Health,Chosen Care Group Ltd,Home Care - Private Contractors Payment,19.16,0,VENDOR
03-04-2023,Adults & Health,Chosen Care Group Ltd,Home Care - Private Contractors Payment,603.54,0,VENDOR
03-04-2023,Adults & Health,Chosen Care Group Ltd,Home Care - Private Contractors Payment,234.71,0,VENDOR
03-04-2023,Adults & Health,Chosen Care Group Ltd,Respite Care - Private Contractors Payment,172.44,0,VENDOR
03-04-2023,Adults & Health,Chosen Care Group Ltd,Home Care - Private Contractors Payment,134.12,0,VENDOR
03-04-2023,Adults & Health,Chosen Care Group Ltd,Home Care - Private Contractors Payment,167.65,0,VENDOR
03-04-2023,Adults & Health,Chosen Care Group Ltd,Daycare - Private Contractors Payment,47.9,0,VENDOR
03-04-2023,Adults & Health,Chosen Care Group Ltd,Home Care - Private Contractors Payment,100.59,0,VENDOR
03-04-2023,Adults & Health,Chosen Care Group Ltd,Home Care - Private Contractors Payment,301.77,0,VENDOR
03-04-2023,Adults & Health,Chosen Care Group Ltd,Home Care - Private Contractors Payment,301.77,0,VENDOR
03-04-2023,Adults & Health,Chosen Care Group Ltd,Home Care - Private Contractors Payment,570.01,0,VENDOR
03-04-2023,Adults & Health,Chosen Care Group Ltd,Home Care - Private Contractors Payment,268.24,0,VENDOR
03-04-2023,Adults & Health,Chosen Care Group Ltd,Home Care - Private Contractors Payment,201.18,0,VENDOR
03-04-2023,Adults & Health,Chosen Care Group Ltd,Home Care - Private Contractors Payment,100.59,0,VENDOR
03-04-2023,Adults & Health,Chosen Care Group Ltd,Home Care - Private Contractors Payment,570.01,0,VENDOR
03-04-2023,Adults & Health,Chosen Care Group Ltd,Home Care - Private Contractors Payment,335.3,0,VENDOR
03-04-2023,Adults & Health,Chosen Care Group Ltd,Home Care - Private Contractors Payment,47.9,0,VENDOR
03-04-2023,Adults & Health,Chosen Care Group Ltd,Home Care - Private Contractors Payment,167.65,0,VENDOR
03-04-2023,Adults & Health,Chosen Care Group Ltd,Home Care - Private Contractors Payment,19.16,0,VENDOR
03-04-2023,Adults & Health,Chosen Care Group Ltd,Home Care - Private Contractors Payment,325.5,0,VENDOR
03-04-2023,Adults & Health,Chosen Care Group Ltd,Daycare - Private Contractors Payment,287.4,0,VENDOR
03-04-2023,Adults & Health,Chosen Care Group Ltd,Home Care - Private Contractors Payment,19.16,0,VENDOR
03-04-2023,Adults & Health,Chosen Care Group Ltd,Home Care - Private Contractors Payment,1207.08,0,VENDOR
03-04-2023,Adults & Health,Chosen Care Group Ltd,Home Care - Private Contractors Payment,301.77,0,VENDOR
03-04-2023,Adults & Health,Chosen Care Group Ltd,Home Care - Private Contractors Payment,570.01,0,VENDOR
03-04-2023,Adults & Health,Chosen Care Group Ltd,Home Care - Private Contractors Payment,268.24,0,VENDOR
03-04-2023,Adults & Health,Chosen Care Group Ltd,Home Care - Private Contractors Payment,201.18,0,VENDOR
03-04-2023,Adults & Health,Chosen Care Group Ltd,Home Care - Private Contractors Payment,100.59,0,VENDOR
03-04-2023,Adults & Health,Chosen Care Group Ltd,Home Care - Private Contractors Payment,570.01,0,VENDOR
03-04-2023,Adults & Health,Chosen Care Group Ltd,Home Care - Private Contractors Payment,335.3,0,VENDOR
03-04-2023,Adults & Health,Chosen Care Group Ltd,Home Care - Private Contractors Payment,47.9,0,VENDOR
03-04-2023,Adults & Health,Chosen Care Group Ltd,Home Care - Private Contractors Payment,167.65,0,VENDOR
03-04-2023,Adults & Health,Chosen Care Group Ltd,Home Care - Private Contractors Payment,19.16,0,VENDOR
03-04-2023,Adults & Health,Chosen Care Group Ltd,Home Care - Private Contractors Payment,1572.48,0,VENDOR
03-04-2023,Adults & Health,Chosen Care Group Ltd,Home Care - Private Contractors Payment,234.71,0,VENDOR
03-04-2023,Adults & Health,Chosen Care Group Ltd,Home Care - Private Contractors Payment,33.53,0,VENDOR
03-04-2023,Adults & Health,Chosen Care Group Ltd,Home Care - Private Contractors Payment,215.55,0,VENDOR
03-04-2023,Adults & Health,Chosen Care Group Ltd,Daycare - Private Contractors Payment,172.44,0,VENDOR
03-04-2023,Adults & Health,Chosen Care Group Ltd,Daycare - Private Contractors Payment,306.56,0,VENDOR
03-04-2023,Adults & Health,Chosen Care Group Ltd,Home Care - Private Contractors Payment,86.22,0,VENDOR
03-04-2023,Adults & Health,Chosen Care Group Ltd,Home Care - Private Contractors Payment,100.59,0,VENDOR
03-04-2023,Adults & Health,Chosen Care Group Ltd,Home Care - Private Contractors Payment,95.8,0,VENDOR
03-04-2023,Adults & Health,Chosen Care Group Ltd,Home Care - Private Contractors Payment,167.65,0,VENDOR
03-04-2023,Adults & Health,Chosen Care Group Ltd,Home Care - Private Contractors Payment,33.53,0,VENDOR
03-04-2023,Adults & Health,Chosen Care Group Ltd,Home Care - Private Contractors Payment,100.59,0,VENDOR
03-04-2023,Adults & Health,Chosen Care Group Ltd,Home Care - Private Contractors Payment,301.77,0,VENDOR
03-04-2023,Adults & Health,Chosen Care Group Ltd,Home Care - Private Contractors Payment,201.18,0,VENDOR
03-04-2023,Adults & Health,Chosen Care Group Ltd,Home Care - Private Contractors Payment,201.18,0,VENDOR
03-04-2023,Adults & Health,Chosen Care Group Ltd,Home Care - Private Contractors Payment,158.07,0,VENDOR
03-04-2023,Adults & Health,Chosen Care Group Ltd,Home Care - Private Contractors Payment,301.77,0,VENDOR
03-04-2023,Adults & Health,Chosen Care Group Ltd,Home Care - Private Contractors Payment,100.59,0,VENDOR
03-04-2023,Adults & Health,Chosen Care Group Ltd,Home Care - Private Contractors Payment,67.06,0,VENDOR
03-04-2023,Adults & Health,Chosen Care Group Ltd,Home Care - Private Contractors Payment,67.06,0,VENDOR
03-04-2023,Adults & Health,Chosen Care Group Ltd,Home Care - Private Contractors Payment,38.32,0,VENDOR
03-04-2023,Adults & Health,Chosen Care Group Ltd,Daycare - Private Contractors Payment,28.74,0,VENDOR
03-04-2023,Adults & Health,Chosen Care Group Ltd,Home Care - Private Contractors Payment,167.65,0,VENDOR
03-04-2023,Adults & Health,Chosen Care Group Ltd,Home Care - Private Contractors Payment,86.22,0,VENDOR
03-04-2023,Adults & Health,Chosen Care Group Ltd,Home Care - Private Contractors Payment,19.16,0,VENDOR
03-04-2023,Adults & Health,Chosen Care Group Ltd,Home Care - Private Contractors Payment,603.54,0,VENDOR
03-04-2023,Adults & Health,Chosen Care Group Ltd,Home Care - Private Contractors Payment,301.77,0,VENDOR
03-04-2023,Adults & Health,Chosen Care Group Ltd,Reablement,234.71,0,VENDOR
03-04-2023,Adults & Health,Chosen Care Group Ltd,Home Care - Private Contractors Payment,234.71,0,VENDOR
03-04-2023,Adults & Health,Chosen Care Group Ltd,Home Care - Private Contractors Payment,14.37,0,VENDOR
03-04-2023,Adults & Health,Chosen Care Group Ltd,Home Care - Private Contractors Payment,301.77,0,VENDOR
03-04-2023,Adults & Health,Chosen Care Group Ltd,Home Care - Private Contractors Payment,301.77,0,VENDOR
03-04-2023,Adults & Health,Chosen Care Group Ltd,Home Care - Private Contractors Payment,536.48,0,VENDOR
03-04-2023,Adults & Health,Chosen Care Group Ltd,Respite Care - Private Contractors Payment,172.44,0,VENDOR
03-04-2023,Adults & Health,Chosen Care Group Ltd,Home Care - Private Contractors Payment,134.12,0,VENDOR
03-04-2023,Adults & Health,Chosen Care Group Ltd,Home Care - Private Contractors Payment,167.65,0,VENDOR
03-04-2023,Adults & Health,Chosen Care Group Ltd,Daycare - Private Contractors Payment,47.9,0,VENDOR
03-04-2023,Adults & Health,Chosen Care Group Ltd,Home Care - Private Contractors Payment,100.59,0,VENDOR
03-04-2023,Adults & Health,Chosen Care Group Ltd,Daycare - Private Contractors Payment,19.16,0,VENDOR
03-04-2023,Adults & Health,Chosen Care Group Ltd,Home Care - Private Contractors Payment,201.18,0,VENDOR
03-04-2023,Adults & Health,Chosen Care Group Ltd,Daycare - Private Contractors Payment,28.74,0,VENDOR
03-04-2023,Adults & Health,Chosen Care Group Ltd,Home Care - Private Contractors Payment,162.86,0,VENDOR
03-04-2023,Adults & Health,Chosen Care Group Ltd,Home Care - Private Contractors Payment,167.65,0,VENDOR
03-04-2023,Adults & Health,Chosen Care Group Ltd,Home Care - Private Contractors Payment,67.06,0,VENDOR
03-04-2023,Adults & Health,Chosen Care Group Ltd,Home Care - Private Contractors Payment,134.12,0,VENDOR
03-04-2023,Adults & Health,Chosen Care Group Ltd,Daycare - Private Contractors Payment,67.06,0,VENDOR
03-04-2023,Adults & Health,Chosen Care Group Ltd,Home Care - Private Contractors Payment,234.71,0,VENDOR
03-04-2023,Adults & Health,Chosen Care Group Ltd,Home Care - Private Contractors Payment,76.64,0,VENDOR
03-04-2023,Adults & Health,Chosen Care Group Ltd,Reablement,167.65,0,VENDOR
03-04-2023,Adults & Health,Chosen Care Group Ltd,Home Care - Private Contractors Payment,301.77,0,VENDOR
03-04-2023,Adults & Health,Chosen Care Group Ltd,Home Care - Private Contractors Payment,301.77,0,VENDOR
03-04-2023,Adults & Health,Chosen Care Group Ltd,Home Care - Private Contractors Payment,1572.48,0,VENDOR
03-04-2023,Adults & Health,Chosen Care Group Ltd,Home Care - Private Contractors Payment,234.71,0,VENDOR
03-04-2023,Adults & Health,Chosen Care Group Ltd,Home Care - Private Contractors Payment,100.59,0,VENDOR
03-04-2023,Adults & Health,Chosen Care Group Ltd,Home Care - Private Contractors Payment,234.71,0,VENDOR
03-04-2023,Adults & Health,Chosen Care Group Ltd,Home Care - Private Contractors Payment,38.32,0,VENDOR
03-04-2023,Adults & Health,Chosen Care Group Ltd,Daycare - Private Contractors Payment,38.32,0,VENDOR
03-04-2023,Adults & Health,Chosen Care Group Ltd,Home Care - Private Contractors Payment,431.1,0,VENDOR
03-04-2023,Adults & Health,Chosen Care Group Ltd,Home Care - Private Contractors Payment,320.93,0,VENDOR
03-04-2023,Adults & Health,Chosen Care Group Ltd,Home Care - Private Contractors Payment,234.71,0,VENDOR
03-04-2023,Adults & Health,Chosen Care Group Ltd,Daycare - Private Contractors Payment,124.54,0,VENDOR
03-04-2023,Adults & Health,Chosen Care Group Ltd,Home Care - Private Contractors Payment,67.06,0,VENDOR
03-04-2023,Adults & Health,Chosen Care Group Ltd,Home Care - Private Contractors Payment,100.59,0,VENDOR
03-04-2023,Adults & Health,Chosen Care Group Ltd,Home Care - Private Contractors Payment,43.11,0,VENDOR
03-04-2023,Adults & Health,Chosen Care Group Ltd,Home Care - Private Contractors Payment,277.82,0,VENDOR
03-04-2023,Adults & Health,Chosen Care Group Ltd,Home Care - Private Contractors Payment,201.18,0,VENDOR
03-04-2023,Adults & Health,Chosen Care Group Ltd,Respite Care - Private Contractors Payment,134.12,0,VENDOR
03-04-2023,Adults & Health,Chosen Care Group Ltd,Home Care - Private Contractors Payment,268.24,0,VENDOR
03-04-2023,Adults & Health,Chosen Care Group Ltd,Home Care - Private Contractors Payment,766.4,0,VENDOR
03-04-2023,Adults & Health,Chosen Care Group Ltd,Home Care - Private Contractors Payment,536.48,0,VENDOR
03-04-2023,Adults & Health,Chosen Care Group Ltd,Home Care - Private Contractors Payment,67.06,0,VENDOR
03-04-2023,Adults & Health,Chosen Care Group Ltd,Home Care - Private Contractors Payment,105.38,0,VENDOR
03-04-2023,Adults & Health,Chosen Care Group Ltd,Home Care - Private Contractors Payment,167.65,0,VENDOR
03-04-2023,Adults & Health,Chosen Care Group Ltd,Home Care - Private Contractors Payment,100.59,0,VENDOR
03-04-2023,Adults & Health,Chosen Care Group Ltd,Home Care - Private Contractors Payment,134.12,0,VENDOR
03-04-2023,Adults & Health,Chosen Care Group Ltd,Daycare - Private Contractors Payment,67.06,0,VENDOR
03-04-2023,Adults & Health,Chosen Care Group Ltd,Home Care - Private Contractors Payment,234.71,0,VENDOR
03-04-2023,Adults & Health,Chosen Care Group Ltd,Home Care - Private Contractors Payment,320.93,0,VENDOR
03-04-2023,Adults & Health,Chosen Care Group Ltd,Home Care - Private Contractors Payment,38.32,0,VENDOR
03-04-2023,Adults & Health,Chosen Care Group Ltd,Reablement,167.65,0,VENDOR
03-04-2023,Adults & Health,Chosen Care Group Ltd,Home Care - Private Contractors Payment,215.55,0,VENDOR
03-04-2023,Adults & Health,Chosen Care Group Ltd,Home Care - Private Contractors Payment,100.59,0,VENDOR
03-04-2023,Adults & Health,Chosen Care Group Ltd,Home Care - Private Contractors Payment,268.24,0,VENDOR
03-04-2023,Adults & Health,Chosen Care Group Ltd,Home Care - Private Contractors Payment,43.11,0,VENDOR
03-04-2023,Adults & Health,Chosen Care Group Ltd,Home Care - Private Contractors Payment,301.77,0,VENDOR
03-04-2023,Adults & Health,Chosen Care Group Ltd,Home Care - Private Contractors Payment,301.77,0,VENDOR
03-04-2023,Adults & Health,Chosen Care Group Ltd,Home Care - Private Contractors Payment,19.16,0,VENDOR
03-04-2023,Adults & Health,Chosen Care Group Ltd,Home Care - Private Contractors Payment,215.55,0,VENDOR
03-04-2023,Adults & Health,Chosen Care Group Ltd,Daycare - Private Contractors Payment,172.44,0,VENDOR
03-04-2023,Adults & Health,Chosen Care Group Ltd,Home Care - Private Contractors Payment,43.11,0,VENDOR
03-04-2023,Adults & Health,Chosen Care Group Ltd,Home Care - Private Contractors Payment,28.74,0,VENDOR
03-04-2023,Adults & Health,Chosen Care Group Ltd,Home Care - Private Contractors Payment,167.65,0,VENDOR
03-04-2023,Adults & Health,Chosen Care Group Ltd,Home Care - Private Contractors Payment,100.59,0,VENDOR
03-04-2023,Adults & Health,Chosen Care Group Ltd,Home Care - Private Contractors Payment,191.6,0,VENDOR
03-04-2023,Adults & Health,Chosen Care Group Ltd,Home Care - Private Contractors Payment,282.61,0,VENDOR
03-04-2023,Adults & Health,Chosen Care Group Ltd,Reablement,234.71,0,VENDOR
03-04-2023,Adults & Health,Chosen Care Group Ltd,Home Care - Private Contractors Payment,225.13,0,VENDOR
03-04-2023,Adults & Health,Chosen Care Group Ltd,Home Care - Private Contractors Payment,201.18,0,VENDOR
03-04-2023,Adults & Health,Chosen Care Group Ltd,Respite Care - Private Contractors Payment,134.12,0,VENDOR
03-04-2023,Adults & Health,Chosen Care Group Ltd,Home Care - Private Contractors Payment,311.35,0,VENDOR
03-04-2023,Adults & Health,Chosen Care Group Ltd,Home Care - Private Contractors Payment,234.71,0,VENDOR
03-04-2023,Adults & Health,Chosen Care Group Ltd,Home Care - Private Contractors Payment,368.83,0,VENDOR
03-04-2023,Adults & Health,Chosen Care Group Ltd,Home Care - Private Contractors Payment,134.12,0,VENDOR
03-04-2023,Adults & Health,Chosen Care Group Ltd,Daycare - Private Contractors Payment,57.48,0,VENDOR
03-04-2023,Adults & Health,Chosen Care Group Ltd,Home Care - Private Contractors Payment,167.65,0,VENDOR
03-04-2023,Adults & Health,Chosen Care Group Ltd,Home Care - Private Contractors Payment,536.48,0,VENDOR
03-04-2023,Adults & Health,Chosen Care Group Ltd,Home Care - Private Contractors Payment,67.06,0,VENDOR
03-04-2023,Adults & Health,Chosen Care Group Ltd,Home Care - Private Contractors Payment,167.65,0,VENDOR
03-04-2023,Adults & Health,Chosen Care Group Ltd,Home Care - Private Contractors Payment,301.77,0,VENDOR
03-04-2023,Adults & Health,Chosen Care Group Ltd,Home Care - Private Contractors Payment,14.37,0,VENDOR
03-04-2023,Adults & Health,Chosen Care Group Ltd,Home Care - Private Contractors Payment,301.77,0,VENDOR
03-04-2023,Adults & Health,Chosen Care Group Ltd,Home Care - Private Contractors Payment,301.77,0,VENDOR
03-04-2023,Adults & Health,Chosen Care Group Ltd,Home Care - Private Contractors Payment,536.48,0,VENDOR
03-04-2023,Adults & Health,Chosen Care Group Ltd,Respite Care - Private Contractors Payment,172.44,0,VENDOR
03-04-2023,Adults & Health,Chosen Care Group Ltd,Home Care - Private Contractors Payment,114.96,0,VENDOR
03-04-2023,Adults & Health,Chosen Care Group Ltd,Home Care - Private Contractors Payment,153.28,0,VENDOR
03-04-2023,Adults & Health,Chosen Care Group Ltd,Daycare - Private Contractors Payment,47.9,0,VENDOR
03-04-2023,Adults & Health,Chosen Care Group Ltd,Reablement,100.59,0,VENDOR
03-04-2023,Adults & Health,Chosen Care Group Ltd,Home Care - Private Contractors Payment,301.77,0,VENDOR
03-04-2023,Adults & Health,Chosen Care Group Ltd,Home Care - Private Contractors Payment,1719.92,0,VENDOR
03-04-2023,Adults & Health,Chosen Care Group Ltd,Home Care - Private Contractors Payment,225.13,0,VENDOR
03-04-2023,Adults & Health,Chosen Care Group Ltd,Home Care - Private Contractors Payment,19.16,0,VENDOR
03-04-2023,RMS,A M Forktrucks Ltd,Purchase Of Vehicles Related Costs,810.33,0,COMMERCIAL SUPPLIER
03-04-2023,RMS,A M Forktrucks Ltd,Purchase Of Vehicles Related Costs,433.33,0,COMMERCIAL SUPPLIER
03-04-2023,RMS,Master Locking Systems Ltd,Building Alterations And Materials,687.72,0,COMMERCIAL SUPPLIER
03-04-2023,RMS,Master Locking Systems Ltd,Building Alterations And Materials,55.94,0,COMMERCIAL SUPPLIER
03-04-2023,RMS,Master Locking Systems Ltd,Building Alterations And Materials,55.94,0,COMMERCIAL SUPPLIER
03-04-2023,RMS,Master Locking Systems Ltd,Building Alterations And Materials,416.8,0,COMMERCIAL SUPPLIER
03-04-2023,RMS,L & F Plant Hire Co Ltd T/A Ti,"Purchase - Equipment, Furniture And Materials",684,0,VENDOR
03-04-2023,RMS,L & F Plant Hire Co Ltd T/A Ti,"Purchase - Equipment, Furniture And Materials",684,0,VENDOR
03-04-2023,RMS,L & F Plant Hire Co Ltd T/A Ti,"Purchase - Equipment, Furniture And Materials",684,0,VENDOR
03-04-2023,RMS,L & F Plant Hire Co Ltd T/A Ti,"Purchase - Equipment, Furniture And Materials",684,0,VENDOR
03-04-2023,RMS,L & F Plant Hire Co Ltd T/A Ti,"Purchase - Equipment, Furniture And Materials",684,0,VENDOR
03-04-2023,RMS,L & F Plant Hire Co Ltd T/A Ti,"Purchase - Equipment, Furniture And Materials",684,0,VENDOR
03-04-2023,RMS,L & F Plant Hire Co Ltd T/A Ti,"Purchase - Equipment, Furniture And Materials",684,0,VENDOR
03-04-2023,RMS,L & F Plant Hire Co Ltd T/A Ti,"Purchase - Equipment, Furniture And Materials",612,0,VENDOR
03-04-2023,RMS,L & F Plant Hire Co Ltd T/A Ti,"Purchase - Equipment, Furniture And Materials",612,0,VENDOR
03-04-2023,RMS,L & F Plant Hire Co Ltd T/A Ti,"Purchase - Equipment, Furniture And Materials",576,0,VENDOR
03-04-2023,RMS,L & F Plant Hire Co Ltd T/A Ti,"Purchase - Equipment, Furniture And Materials",576,0,VENDOR
03-04-2023,RMS,L & F Plant Hire Co Ltd T/A Ti,"Purchase - Equipment, Furniture And Materials",576,0,VENDOR
03-04-2023,RMS,L & F Plant Hire Co Ltd T/A Ti,"Purchase - Equipment, Furniture And Materials",540,0,VENDOR
03-04-2023,RMS,L & F Plant Hire Co Ltd T/A Ti,"Purchase - Equipment, Furniture And Materials",360,0,VENDOR
03-04-2023,Environment and Sustainable Transport,L & F Plant Hire Co Ltd T/A Ti,"Purchase - Equipment, Furniture And Materials",560,0,VENDOR
03-04-2023,Environment and Sustainable Transport,L & F Plant Hire Co Ltd T/A Ti,"Purchase - Equipment, Furniture And Materials",1265,0,VENDOR
03-04-2023,Environment and Sustainable Transport,L & F Plant Hire Co Ltd T/A Ti,"Purchase - Equipment, Furniture And Materials",759,0,VENDOR
03-04-2023,Environment and Sustainable Transport,L & F Plant Hire Co Ltd T/A Ti,"Purchase - Equipment, Furniture And Materials",759,0,VENDOR
03-04-2023,Environment and Sustainable Transport,L & F Plant Hire Co Ltd T/A Ti,"Purchase - Equipment, Furniture And Materials",759,0,VENDOR
03-04-2023,Environment and Sustainable Transport,L & F Plant Hire Co Ltd T/A Ti,"Purchase - Equipment, Furniture And Materials",759,0,VENDOR
03-04-2023,Environment and Sustainable Transport,L & F Plant Hire Co Ltd T/A Ti,"Purchase - Equipment, Furniture And Materials",1380,0,VENDOR
03-04-2023,Environment and Sustainable Transport,L & F Plant Hire Co Ltd T/A Ti,"Purchase - Equipment, Furniture And Materials",667,0,VENDOR
03-04-2023,Environment and Sustainable Transport,L & F Plant Hire Co Ltd T/A Ti,"Purchase - Equipment, Furniture And Materials",667,0,VENDOR
03-04-2023,Environment and Sustainable Transport,L & F Plant Hire Co Ltd T/A Ti,"Purchase - Equipment, Furniture And Materials",828,0,VENDOR
03-04-2023,Environment and Sustainable Transport,L & F Plant Hire Co Ltd T/A Ti,"Purchase - Equipment, Furniture And Materials",630,0,VENDOR
03-04-2023,Environment and Sustainable Transport,Car Hire Day of Swansea Ltd t/a Days Rental,Vehicle Hire,3387.68,0,COMMERCIAL SUPPLIER
03-04-2023,Environment and Sustainable Transport,Car Hire Day of Swansea Ltd t/a Days Rental,Vehicle Hire,6860.92,0,COMMERCIAL SUPPLIER
03-04-2023,Environment and Sustainable Transport,Car Hire Day of Swansea Ltd t/a Days Rental,Vehicle Hire,305.04,0,COMMERCIAL SUPPLIER
03-04-2023,Environment and Sustainable Transport,Car Hire Day of Swansea Ltd t/a Days Rental,Vehicle Hire,1473.12,0,COMMERCIAL SUPPLIER
03-04-2023,Environment and Sustainable Transport,Car Hire Day of Swansea Ltd t/a Days Rental,Vehicle Hire,2606.48,0,COMMERCIAL SUPPLIER
03-04-2023,Environment and Sustainable Transport,Car Hire Day of Swansea Ltd t/a Days Rental,Vehicle Hire,442.68,0,COMMERCIAL SUPPLIER
03-04-2023,Environment and Sustainable Transport,Car Hire Day of Swansea Ltd t/a Days Rental,Vehicle Hire,442.68,0,COMMERCIAL SUPPLIER
03-04-2023,Environment and Sustainable Transport,Car Hire Day of Swansea Ltd t/a Days Rental,Vehicle Hire,707.11,0,COMMERCIAL SUPPLIER
03-04-2023,Environment and Sustainable Transport,Car Hire Day of Swansea Ltd t/a Days Rental,Vehicle Hire,1110.73,0,COMMERCIAL SUPPLIER
03-04-2023,Environment and Sustainable Transport,Car Hire Day of Swansea Ltd t/a Days Rental,Vehicle Hire,939.3,0,COMMERCIAL SUPPLIER
03-04-2023,Children and Young People,Bridging Gaps Fostering Agency,Residential Placements - Private Contractors Payment,850,0,COMMERCIAL SUPPLIER
03-04-2023,Children and Young People,Bridging Gaps Fostering Agency,Residential Placements - Private Contractors Payment,850,0,COMMERCIAL SUPPLIER
03-04-2023,Children and Young People,Bridging Gaps Fostering Agency,Residential Placements - Private Contractors Payment,850,0,COMMERCIAL SUPPLIER
03-04-2023,Children and Young People,Bridging Gaps Fostering Agency,Residential Placements - Private Contractors Payment,1092.86,0,COMMERCIAL SUPPLIER
03-04-2023,Adults & Health,Futures for Shared Lives Ltd,Adult Placement Scheme - Private Contractors Payment,229.83,0,NON COMMERCIAL SUPPLIER
03-04-2023,Adults & Health,Futures for Shared Lives Ltd,Adult Placement Scheme - Private Contractors Payment,536.27,0,NON COMMERCIAL SUPPLIER
03-04-2023,Adults & Health,Futures for Shared Lives Ltd,Adult Placement Scheme - Private Contractors Payment,536.27,0,NON COMMERCIAL SUPPLIER
03-04-2023,Adults & Health,Futures for Shared Lives Ltd,Adult Placement Scheme - Private Contractors Payment,536.27,0,NON COMMERCIAL SUPPLIER
03-04-2023,Adults & Health,Futures for Shared Lives Ltd,Adult Placement Scheme - Private Contractors Payment,536.27,0,NON COMMERCIAL SUPPLIER
03-04-2023,Children and Young People,Lextox,Legal Fees,661,0,COMMERCIAL SUPPLIER
03-04-2023,oneSource,Hound Envelopes Ltd,Printing,518.25,0,COMMERCIAL SUPPLIER
03-04-2023,oneSource,Hound Envelopes Ltd,Printing,4985.25,0,COMMERCIAL SUPPLIER
03-04-2023,Children and Young People,Hinds Care And Support Services,Private Contractors Payment - Other,1092,0,FOSTER CARERS
03-04-2023,Marketing,Harwell Document Restoration Services,Professional Services - General,765,0,VENDOR
03-04-2023,RMS,Stuga Machinery Ltd,Building Alterations And Materials,324.16,0,VENDOR
03-04-2023,Housing Revenue Account,John Rowan & Partners,Facilities Management,4456.9,0,NON COMMERCIAL SUPPLIER
03-04-2023,RMS,Travis Perkins Trading Company Ltd,Building Alterations And Materials,380.84,0,COMMERCIAL SUPPLIER
03-04-2023,Environment and Sustainable Transport,Audiolink Ltd_.,Mobile Phone Costs,1240,0,COMMERCIAL SUPPLIER
03-04-2023,Inclusive Economy & Housing,Insurance Claims Accomodation Bureau Limited,Rents Payable,8669.74,0,COMMERCIAL SUPPLIER
03-04-2023,Inclusive Economy & Housing,Insurance Claims Accomodation Bureau Limited,Rents Payable,509.81,0,COMMERCIAL SUPPLIER
03-04-2023,Inclusive Economy & Housing,Insurance Claims Accomodation Bureau Limited,Rents Payable,1027.5,0,COMMERCIAL SUPPLIER
03-04-2023,Inclusive Economy & Housing,Insurance Claims Accomodation Bureau Limited,Rents Payable,4953.2,0,COMMERCIAL SUPPLIER
03-04-2023,Inclusive Economy & Housing,Insurance Claims Accomodation Bureau Limited,Rents Payable,501.71,0,COMMERCIAL SUPPLIER
03-04-2023,Inclusive Economy & Housing,Insurance Claims Accomodation Bureau Limited,Rents Payable,639.83,0,COMMERCIAL SUPPLIER
03-04-2023,Inclusive Economy & Housing,Insurance Claims Accomodation Bureau Limited,Rents Payable,740.69,0,COMMERCIAL SUPPLIER
03-04-2023,Inclusive Economy & Housing,Insurance Claims Accomodation Bureau Limited,Rents Payable,502.86,0,COMMERCIAL SUPPLIER
03-04-2023,Inclusive Economy & Housing,Insurance Claims Accomodation Bureau Limited,Rents Payable,4421.43,0,COMMERCIAL SUPPLIER
03-04-2023,Inclusive Economy & Housing,Insurance Claims Accomodation Bureau Limited,Rents Payable,2675.16,0,COMMERCIAL SUPPLIER
03-04-2023,Inclusive Economy & Housing,Insurance Claims Accomodation Bureau Limited,Rents Payable,3034.5,0,COMMERCIAL SUPPLIER
03-04-2023,Inclusive Economy & Housing,Insurance Claims Accomodation Bureau Limited,Rents Payable,1122.23,0,COMMERCIAL SUPPLIER
03-04-2023,Inclusive Economy & Housing,Insurance Claims Accomodation Bureau Limited,Rents Payable,1186.6,0,COMMERCIAL SUPPLIER
03-04-2023,Inclusive Economy & Housing,Insurance Claims Accomodation Bureau Limited,Rents Payable,1459.7,0,COMMERCIAL SUPPLIER
03-04-2023,Inclusive Economy & Housing,Insurance Claims Accomodation Bureau Limited,Rents Payable,5240.2,0,COMMERCIAL SUPPLIER
03-04-2023,Inclusive Economy & Housing,Insurance Claims Accomodation Bureau Limited,Rents Payable,1421.98,0,COMMERCIAL SUPPLIER
03-04-2023,Inclusive Economy & Housing,Insurance Claims Accomodation Bureau Limited,Rents Payable,1347.9,0,COMMERCIAL SUPPLIER
03-04-2023,Inclusive Economy & Housing,Insurance Claims Accomodation Bureau Limited,Rents Payable,2790.36,0,COMMERCIAL SUPPLIER
03-04-2023,Inclusive Economy & Housing,Insurance Claims Accomodation Bureau Limited,Rents Payable,1790.13,0,COMMERCIAL SUPPLIER
03-04-2023,Inclusive Economy & Housing,Insurance Claims Accomodation Bureau Limited,Rents Payable,4296.91,0,COMMERCIAL SUPPLIER
03-04-2023,Inclusive Economy & Housing,Insurance Claims Accomodation Bureau Limited,Rents Payable,1547.08,0,COMMERCIAL SUPPLIER
03-04-2023,Inclusive Economy & Housing,Insurance Claims Accomodation Bureau Limited,Rents Payable,1900,0,COMMERCIAL SUPPLIER
03-04-2023,Inclusive Economy & Housing,Insurance Claims Accomodation Bureau Limited,Rents Payable,1391.01,0,COMMERCIAL SUPPLIER
03-04-2023,Inclusive Economy & Housing,Insurance Claims Accomodation Bureau Limited,Rents Payable,5465.8,0,COMMERCIAL SUPPLIER
03-04-2023,Inclusive Economy & Housing,Insurance Claims Accomodation Bureau Limited,Rents Payable,1634.43,0,COMMERCIAL SUPPLIER
03-04-2023,Inclusive Economy & Housing,Insurance Claims Accomodation Bureau Limited,Rents Payable,1409.35,0,COMMERCIAL SUPPLIER
03-04-2023,Inclusive Economy & Housing,Insurance Claims Accomodation Bureau Limited,Rents Payable,4722.47,0,COMMERCIAL SUPPLIER
03-04-2023,Inclusive Economy & Housing,Insurance Claims Accomodation Bureau Limited,Rents Payable,1450.53,0,COMMERCIAL SUPPLIER
03-04-2023,Inclusive Economy & Housing,Insurance Claims Accomodation Bureau Limited,Rents Payable,710.93,0,COMMERCIAL SUPPLIER
03-04-2023,Inclusive Economy & Housing,Insurance Claims Accomodation Bureau Limited,Rents Payable,4912.43,0,COMMERCIAL SUPPLIER
03-04-2023,Inclusive Economy & Housing,Insurance Claims Accomodation Bureau Limited,Rents Payable,1268.55,0,COMMERCIAL SUPPLIER
03-04-2023,Inclusive Economy & Housing,Insurance Claims Accomodation Bureau Limited,Rents Payable,925.3,0,COMMERCIAL SUPPLIER
03-04-2023,Inclusive Economy & Housing,Insurance Claims Accomodation Bureau Limited,Rents Payable,1316.32,0,COMMERCIAL SUPPLIER
03-04-2023,Inclusive Economy & Housing,Insurance Claims Accomodation Bureau Limited,Rents Payable,1348.12,0,COMMERCIAL SUPPLIER
03-04-2023,Inclusive Economy & Housing,Insurance Claims Accomodation Bureau Limited,Rents Payable,1317.55,0,COMMERCIAL SUPPLIER
03-04-2023,Inclusive Economy & Housing,Insurance Claims Accomodation Bureau Limited,Rents Payable,4595.5,0,COMMERCIAL SUPPLIER
03-04-2023,Inclusive Economy & Housing,Insurance Claims Accomodation Bureau Limited,Rents Payable,702.6,0,COMMERCIAL SUPPLIER
03-04-2023,Inclusive Economy & Housing,Insurance Claims Accomodation Bureau Limited,Rents Payable,4708.9,0,COMMERCIAL SUPPLIER
03-04-2023,Inclusive Economy & Housing,Insurance Claims Accomodation Bureau Limited,Rents Payable,1579.68,0,COMMERCIAL SUPPLIER
03-04-2023,Inclusive Economy & Housing,Insurance Claims Accomodation Bureau Limited,Rents Payable,1026.83,0,COMMERCIAL SUPPLIER
03-04-2023,Inclusive Economy & Housing,Insurance Claims Accomodation Bureau Limited,Rents Payable,2191.99,0,COMMERCIAL SUPPLIER
03-04-2023,Inclusive Economy & Housing,Insurance Claims Accomodation Bureau Limited,Rents Payable,1353.53,0,COMMERCIAL SUPPLIER
03-04-2023,Inclusive Economy & Housing,Insurance Claims Accomodation Bureau Limited,Rents Payable,1340.73,0,COMMERCIAL SUPPLIER
03-04-2023,Inclusive Economy & Housing,Insurance Claims Accomodation Bureau Limited,Rents Payable,1244.31,0,COMMERCIAL SUPPLIER
03-04-2023,Inclusive Economy & Housing,Insurance Claims Accomodation Bureau Limited,Rents Payable,1154.92,0,COMMERCIAL SUPPLIER
03-04-2023,Inclusive Economy & Housing,Insurance Claims Accomodation Bureau Limited,Rents Payable,3843.32,0,COMMERCIAL SUPPLIER
03-04-2023,Inclusive Economy & Housing,Insurance Claims Accomodation Bureau Limited,Rents Payable,825.36,0,COMMERCIAL SUPPLIER
03-04-2023,Inclusive Economy & Housing,Insurance Claims Accomodation Bureau Limited,Rents Payable,614.76,0,COMMERCIAL SUPPLIER
03-04-2023,Inclusive Economy & Housing,Insurance Claims Accomodation Bureau Limited,Rents Payable,2016.54,0,COMMERCIAL SUPPLIER
03-04-2023,Inclusive Economy & Housing,Insurance Claims Accomodation Bureau Limited,Rents Payable,4927.5,0,COMMERCIAL SUPPLIER
03-04-2023,Inclusive Economy & Housing,Insurance Claims Accomodation Bureau Limited,Rents Payable,3138.33,0,COMMERCIAL SUPPLIER
03-04-2023,Inclusive Economy & Housing,Insurance Claims Accomodation Bureau Limited,Rents Payable,5160.8,0,COMMERCIAL SUPPLIER
03-04-2023,Inclusive Economy & Housing,Insurance Claims Accomodation Bureau Limited,Rents Payable,567.04,0,COMMERCIAL SUPPLIER
03-04-2023,Inclusive Economy & Housing,Insurance Claims Accomodation Bureau Limited,Rents Payable,2615.31,0,COMMERCIAL SUPPLIER
03-04-2023,Inclusive Economy & Housing,Insurance Claims Accomodation Bureau Limited,Rents Payable,602.87,0,COMMERCIAL SUPPLIER
03-04-2023,Inclusive Economy & Housing,Insurance Claims Accomodation Bureau Limited,Rents Payable,7674.26,0,COMMERCIAL SUPPLIER
03-04-2023,Inclusive Economy & Housing,Insurance Claims Accomodation Bureau Limited,Rents Payable,494.51,0,COMMERCIAL SUPPLIER
03-04-2023,Inclusive Economy & Housing,Insurance Claims Accomodation Bureau Limited,Rents Payable,1466.41,0,COMMERCIAL SUPPLIER
03-04-2023,Inclusive Economy & Housing,Insurance Claims Accomodation Bureau Limited,Rents Payable,2847.06,0,COMMERCIAL SUPPLIER
03-04-2023,Inclusive Economy & Housing,Insurance Claims Accomodation Bureau Limited,Rents Payable,1457.75,0,COMMERCIAL SUPPLIER
03-04-2023,Inclusive Economy & Housing,Insurance Claims Accomodation Bureau Limited,Rents Payable,875.88,0,COMMERCIAL SUPPLIER
03-04-2023,Inclusive Economy & Housing,Insurance Claims Accomodation Bureau Limited,Rents Payable,1230.25,0,COMMERCIAL SUPPLIER
03-04-2023,Marketing,Your Place (London) Ltd.,Private Contractors Payment - Other,5000,0,VENDOR
03-04-2023,Children and Young People,Hinds Care And Support Services,Private Contractors Payment - Other,1092,0,FOSTER CARERS
03-04-2023,Environment and Sustainable Transport,Sparshatt Truck & Van Ltd,Highway Services,237.8,0,COMMERCIAL SUPPLIER
03-04-2023,Environment and Sustainable Transport,Sparshatt Truck & Van Ltd,Highway Services,18.08,0,COMMERCIAL SUPPLIER
03-04-2023,Environment and Sustainable Transport,Sparshatt Truck & Van Ltd,Highway Services,140.22,0,COMMERCIAL SUPPLIER
03-04-2023,Environment and Sustainable Transport,Sparshatt Truck & Van Ltd,Highway Services,13,0,COMMERCIAL SUPPLIER
03-04-2023,Environment and Sustainable Transport,Sparshatt Truck & Van Ltd,Highway Services,30.74,0,COMMERCIAL SUPPLIER
03-04-2023,Environment and Sustainable Transport,Sparshatt Truck & Van Ltd,Highway Services,105.19,0,COMMERCIAL SUPPLIER
03-04-2023,Environment and Sustainable Transport,Sparshatt Truck & Van Ltd,Highway Services,13.54,0,COMMERCIAL SUPPLIER
03-04-2023,Environment and Sustainable Transport,Sparshatt Truck & Van Ltd,Highway Services,75.85,0,COMMERCIAL SUPPLIER
03-04-2023,Environment and Sustainable Transport,Sparshatt Truck & Van Ltd,Highway Services,138.69,0,COMMERCIAL SUPPLIER
03-04-2023,Environment and Sustainable Transport,Sparshatt Truck & Van Ltd,Highway Services,10.66,0,COMMERCIAL SUPPLIER
03-04-2023,Environment and Sustainable Transport,Sparshatt Truck & Van Ltd,Highway Services,274.7,0,COMMERCIAL SUPPLIER
03-04-2023,RMS,Travis Perkins Trading Company Ltd,Building Alterations And Materials,5128.2,0,COMMERCIAL SUPPLIER
03-04-2023,RMS,Travis Perkins Trading Company Ltd,Building Alterations And Materials,294.9,0,COMMERCIAL SUPPLIER
03-04-2023,RMS,Travis Perkins Trading Company Ltd,Building Alterations And Materials,296.5,0,COMMERCIAL SUPPLIER
03-04-2023,RMS,Travis Perkins Trading Company Ltd,Building Alterations And Materials,222.8,0,COMMERCIAL SUPPLIER
03-04-2023,RMS,Travis Perkins Trading Company Ltd,Building Alterations And Materials,174.6,0,COMMERCIAL SUPPLIER
03-04-2023,RMS,Travis Perkins Trading Company Ltd,Building Alterations And Materials,882.9,0,COMMERCIAL SUPPLIER
03-04-2023,RMS,Travis Perkins Trading Company Ltd,Building Alterations And Materials,1765.8,0,COMMERCIAL SUPPLIER
03-04-2023,RMS,Travis Perkins Trading Company Ltd,Building Alterations And Materials,121.44,0,COMMERCIAL SUPPLIER
03-04-2023,RMS,Travis Perkins Trading Company Ltd,Building Alterations And Materials,163.5,0,COMMERCIAL SUPPLIER
03-04-2023,RMS,Travis Perkins Trading Company Ltd,Building Alterations And Materials,181,0,COMMERCIAL SUPPLIER
03-04-2023,RMS,Travis Perkins Trading Company Ltd,Building Alterations And Materials,878.4,0,COMMERCIAL SUPPLIER
03-04-2023,RMS,Travis Perkins Trading Company Ltd,Building Alterations And Materials,886.71,0,COMMERCIAL SUPPLIER
03-04-2023,RMS,Travis Perkins Trading Company Ltd,Building Alterations And Materials,718.74,0,COMMERCIAL SUPPLIER
03-04-2023,RMS,Travis Perkins Trading Company Ltd,Building Alterations And Materials,882.9,0,COMMERCIAL SUPPLIER
03-04-2023,RMS,Travis Perkins Trading Company Ltd,Building Alterations And Materials,588.06,0,COMMERCIAL SUPPLIER
03-04-2023,RMS,Travis Perkins Trading Company Ltd,Building Alterations And Materials,1082.4,0,COMMERCIAL SUPPLIER
03-04-2023,RMS,Travis Perkins Trading Company Ltd,Building Alterations And Materials,328.5,0,COMMERCIAL SUPPLIER
03-04-2023,RMS,Travis Perkins Trading Company Ltd,Building Alterations And Materials,678.5,0,COMMERCIAL SUPPLIER
03-04-2023,RMS,Travis Perkins Trading Company Ltd,Building Alterations And Materials,443,0,COMMERCIAL SUPPLIER
03-04-2023,RMS,Travis Perkins Trading Company Ltd,Building Alterations And Materials,239,0,COMMERCIAL SUPPLIER
03-04-2023,RMS,Travis Perkins Trading Company Ltd,Building Alterations And Materials,47,0,COMMERCIAL SUPPLIER
03-04-2023,RMS,Travis Perkins Trading Company Ltd,Building Alterations And Materials,274.88,0,COMMERCIAL SUPPLIER
03-04-2023,RMS,Travis Perkins Trading Company Ltd,Building Alterations And Materials,1433.62,0,COMMERCIAL SUPPLIER
03-04-2023,RMS,Travis Perkins Trading Company Ltd,Building Alterations And Materials,159.2,0,COMMERCIAL SUPPLIER
03-04-2023,Environment and Sustainable Transport,Fast Forward (Factors) Ltd,Highway Services,161.88,0,COMMERCIAL SUPPLIER
03-04-2023,Environment and Sustainable Transport,Fast Forward (Factors) Ltd,Highway Services,21.8,0,COMMERCIAL SUPPLIER
03-04-2023,Environment and Sustainable Transport,Fast Forward (Factors) Ltd,Highway Services,61.92,0,COMMERCIAL SUPPLIER
03-04-2023,Environment and Sustainable Transport,Fast Forward (Factors) Ltd,Highway Services,20.89,0,COMMERCIAL SUPPLIER
03-04-2023,Environment and Sustainable Transport,Fast Forward (Factors) Ltd,Highway Services,24.15,0,COMMERCIAL SUPPLIER
03-04-2023,Environment and Sustainable Transport,Fast Forward (Factors) Ltd,Highway Services,20.65,0,COMMERCIAL SUPPLIER
03-04-2023,Environment and Sustainable Transport,Fast Forward (Factors) Ltd,Highway Services,95.05,0,COMMERCIAL SUPPLIER
03-04-2023,Environment and Sustainable Transport,Fast Forward (Factors) Ltd,Highway Services,286.39,0,COMMERCIAL SUPPLIER
03-04-2023,Environment and Sustainable Transport,Fast Forward (Factors) Ltd,Highway Services,29.64,0,COMMERCIAL SUPPLIER
03-04-2023,Children and Young People,Hinds Care And Support Services,Private Contractors Payment - Other,1017,0,FOSTER CARERS
03-04-2023,Children and Young People,Hinds Care And Support Services,Private Contractors Payment - Other,1092,0,FOSTER CARERS
03-04-2023,Adults & Health,Sayers (Car Hire),Payments To Voluntary Sector,120,0,VENDOR
03-04-2023,Adults & Health,Sayers (Car Hire),Payments To Voluntary Sector,120,0,VENDOR
03-04-2023,Adults & Health,Sayers (Car Hire),Payments To Voluntary Sector,40,0,VENDOR
03-04-2023,Adults & Health,Sayers (Car Hire),Payments To Voluntary Sector,120,0,VENDOR
03-04-2023,Adults & Health,Sayers (Car Hire),Payments To Voluntary Sector,120,0,VENDOR
03-04-2023,oneSource - Non Shared,Able Shutter Services Ltd,Facilities Management,1010,0,COMMERCIAL SUPPLIER
03-04-2023,Children and Young People,Hinds Care And Support Services,Private Contractors Payment - Other,1017,0,FOSTER CARERS
03-04-2023,Children and Young People,Hinds Care And Support Services,Private Contractors Payment - Other,3276,0,FOSTER CARERS
03-04-2023,Children and Young People,Hinds Care And Support Services,Private Contractors Payment - Other,2184,0,FOSTER CARERS
03-04-2023,Environment and Sustainable Transport,Worldline IT Services UK Ltd Re Fuel Genie,Transport Fuel,291.77,0,COMMERCIAL SUPPLIER
03-04-2023,Children and Young People,Hinds Care And Support Services,Private Contractors Payment - Other,1092,0,FOSTER CARERS
03-04-2023,Environment and Sustainable Transport,Worldline IT Services UK Ltd Re Fuel Genie,Transport Fuel,421.59,0,COMMERCIAL SUPPLIER
03-04-2023,Inclusive Economy & Housing,Castle Water Ltd,Water And Sewerage,137.97,0,COMMERCIAL SUPPLIER
03-04-2023,Inclusive Economy & Housing,Castle Water Ltd,Water And Sewerage,145.05,0,COMMERCIAL SUPPLIER
03-04-2023,RMS,AMA Security Ltd,Private Contractors Payment - Other,1736.62,0,COMMERCIAL SUPPLIER
03-04-2023,RMS,AMA Security Ltd,Private Contractors Payment - Other,2234.14,0,COMMERCIAL SUPPLIER
03-04-2023,RMS,AMA Security Ltd,Private Contractors Payment - Other,998.02,0,COMMERCIAL SUPPLIER
03-04-2023,RMS,AMA Security Ltd,Private Contractors Payment - Other,908.5,0,COMMERCIAL SUPPLIER
03-04-2023,RMS,AMA Security Ltd,Private Contractors Payment - Other,333.56,0,COMMERCIAL SUPPLIER
03-04-2023,Children and Young People,Hinds Care And Support Services,Private Contractors Payment - Other,1017,0,FOSTER CARERS
03-04-2023,oneSource - Non Shared,Building A Future (Newham Schools) Limited,"Maintenance - Equipment, Furniture And Materials",27591,0,VENDOR
03-04-2023,oneSource - Non Shared,Building A Future (Newham Schools) Limited,"Maintenance - Equipment, Furniture And Materials",31147.09,0,VENDOR
03-04-2023,oneSource - Non Shared,Building A Future (Newham Schools) Limited,"Maintenance - Equipment, Furniture And Materials",96280.8,0,VENDOR
03-04-2023,oneSource - Non Shared,Newham Learning Partnership (Project Co) Limited,"Maintenance - Equipment, Furniture And Materials",335970.71,0,VENDOR
03-04-2023,oneSource - Non Shared,Newham Learning Partnership (Project Co) Limited,"Maintenance - Equipment, Furniture And Materials",414979.31,0,VENDOR
03-04-2023,oneSource,Royal Mail Group Plc,Postage And Courier Services,326.7,0,COMMERCIAL SUPPLIER
03-04-2023,oneSource,Royal Mail Group Plc,Postage And Courier Services,53119.9,0,COMMERCIAL SUPPLIER
03-04-2023,Children and Young People,Hinds Care And Support Services,Private Contractors Payment - Other,1017,0,FOSTER CARERS
03-04-2023,Digital,NEC Software Solutions UK Ltd,Ict Software,8750,0,COMMERCIAL SUPPLIER
03-04-2023,Digital,NEC Software Solutions UK Ltd,Ict Software,12337,0,COMMERCIAL SUPPLIER
03-04-2023,RMS,Benchmarx Kitchens and Joinery,Building Alterations And Materials,413.31,0,COMMERCIAL SUPPLIER
03-04-2023,RMS,Maco Door & Window Hardware UK Ltd,Building Alterations And Materials,3363.63,0,COMMERCIAL SUPPLIER
03-04-2023,Children and Young People,Hinds Care And Support Services,Private Contractors Payment - Other,1017,0,FOSTER CARERS
03-04-2023,Environment and Sustainable Transport,Terberg Matec Uk Ltd,Highway Services,120,0,COMMERCIAL SUPPLIER
03-04-2023,Environment and Sustainable Transport,Terberg Matec Uk Ltd,Highway Services,182.44,0,COMMERCIAL SUPPLIER
03-04-2023,Environment and Sustainable Transport,Terberg Matec Uk Ltd,Highway Services,31.97,0,COMMERCIAL SUPPLIER
03-04-2023,Environment and Sustainable Transport,Terberg Matec Uk Ltd,Highway Services,166.92,0,COMMERCIAL SUPPLIER
03-04-2023,Environment and Sustainable Transport,Terberg Matec Uk Ltd,Highway Services,367.5,0,COMMERCIAL SUPPLIER
03-04-2023,Environment and Sustainable Transport,Terberg Matec Uk Ltd,Highway Services,200.25,0,COMMERCIAL SUPPLIER
03-04-2023,Children and Young People,Penna Plc,Staff Recruitment Costs,7530,0,COMMERCIAL SUPPLIER
03-04-2023,Children and Young People,Hinds Care And Support Services,Private Contractors Payment - Other,1017,0,FOSTER CARERS
03-04-2023,Housing Revenue Account,Baker Reign Client Account,Legal Fees,5875,0,COMMERCIAL SUPPLIER
03-04-2023,Adults & Health,Look Ahead Housing and Care Ltd,Supported Other Accommodation - Private Contractors Payment,842.55,0,COMMERCIAL SUPPLIER
03-04-2023,Adults & Health,Look Ahead Housing and Care Ltd,Supported Other Accommodation - Private Contractors Payment,842.55,0,COMMERCIAL SUPPLIER
03-04-2023,Adults & Health,Look Ahead Housing and Care Ltd,Supported Other Accommodation - Private Contractors Payment,842.55,0,COMMERCIAL SUPPLIER
03-04-2023,Adults & Health,Look Ahead Housing and Care Ltd,Supported Other Accommodation - Private Contractors Payment,842.55,0,COMMERCIAL SUPPLIER
03-04-2023,Adults & Health,Look Ahead Housing and Care Ltd,Supported Other Accommodation - Private Contractors Payment,853.83,0,COMMERCIAL SUPPLIER
03-04-2023,Adults & Health,Look Ahead Housing and Care Ltd,Supported Other Accommodation - Private Contractors Payment,853.83,0,COMMERCIAL SUPPLIER
03-04-2023,Adults & Health,Look Ahead Housing and Care Ltd,Supported Other Accommodation - Private Contractors Payment,853.83,0,COMMERCIAL SUPPLIER
03-04-2023,Adults & Health,Look Ahead Housing and Care Ltd,Supported Other Accommodation - Private Contractors Payment,853.83,0,COMMERCIAL SUPPLIER
03-04-2023,Adults & Health,Look Ahead Housing and Care Ltd,Supported Other Accommodation - Private Contractors Payment,842.55,0,COMMERCIAL SUPPLIER
03-04-2023,Adults & Health,Look Ahead Housing and Care Ltd,Supported Other Accommodation - Private Contractors Payment,842.55,0,COMMERCIAL SUPPLIER
03-04-2023,Adults & Health,Look Ahead Housing and Care Ltd,Supported Other Accommodation - Private Contractors Payment,842.55,0,COMMERCIAL SUPPLIER
03-04-2023,Adults & Health,Look Ahead Housing and Care Ltd,Supported Other Accommodation - Private Contractors Payment,842.55,0,COMMERCIAL SUPPLIER
03-04-2023,Adults & Health,Look Ahead Housing and Care Ltd,Supported Other Accommodation - Private Contractors Payment,842.55,0,COMMERCIAL SUPPLIER
03-04-2023,Adults & Health,Look Ahead Housing and Care Ltd,Supported Other Accommodation - Private Contractors Payment,842.55,0,COMMERCIAL SUPPLIER
03-04-2023,Adults & Health,Look Ahead Housing and Care Ltd,Supported Other Accommodation - Private Contractors Payment,842.55,0,COMMERCIAL SUPPLIER
03-04-2023,Adults & Health,Look Ahead Housing and Care Ltd,Supported Other Accommodation - Private Contractors Payment,842.55,0,COMMERCIAL SUPPLIER
03-04-2023,Adults & Health,Look Ahead Housing and Care Ltd,Supported Other Accommodation - Private Contractors Payment,842.55,0,COMMERCIAL SUPPLIER
03-04-2023,Adults & Health,Look Ahead Housing and Care Ltd,Supported Other Accommodation - Private Contractors Payment,842.55,0,COMMERCIAL SUPPLIER
03-04-2023,Adults & Health,Look Ahead Housing and Care Ltd,Supported Other Accommodation - Private Contractors Payment,842.55,0,COMMERCIAL SUPPLIER
03-04-2023,Adults & Health,Look Ahead Housing and Care Ltd,Supported Other Accommodation - Private Contractors Payment,842.55,0,COMMERCIAL SUPPLIER
03-04-2023,Adults & Health,Look Ahead Housing and Care Ltd,Supported Other Accommodation - Private Contractors Payment,888.14,0,COMMERCIAL SUPPLIER
03-04-2023,Adults & Health,Look Ahead Housing and Care Ltd,Supported Other Accommodation - Private Contractors Payment,888.14,0,COMMERCIAL SUPPLIER
03-04-2023,Adults & Health,Look Ahead Housing and Care Ltd,Supported Other Accommodation - Private Contractors Payment,888.14,0,COMMERCIAL SUPPLIER
03-04-2023,Adults & Health,Look Ahead Housing and Care Ltd,Supported Other Accommodation - Private Contractors Payment,889.78,0,COMMERCIAL SUPPLIER
03-04-2023,Adults & Health,Look Ahead Housing and Care Ltd,Supported Other Accommodation - Private Contractors Payment,239.4,0,COMMERCIAL SUPPLIER
03-04-2023,Adults & Health,Look Ahead Housing and Care Ltd,Supported Other Accommodation - Private Contractors Payment,237,0,COMMERCIAL SUPPLIER
03-04-2023,Adults & Health,Look Ahead Housing and Care Ltd,Supported Other Accommodation - Private Contractors Payment,237,0,COMMERCIAL SUPPLIER
03-04-2023,Adults & Health,Look Ahead Housing and Care Ltd,Supported Other Accommodation - Private Contractors Payment,237,0,COMMERCIAL SUPPLIER
03-04-2023,Adults & Health,Look Ahead Housing and Care Ltd,Supported Other Accommodation - Private Contractors Payment,602.52,0,COMMERCIAL SUPPLIER
03-04-2023,Adults & Health,Look Ahead Housing and Care Ltd,Supported Other Accommodation - Private Contractors Payment,602.52,0,COMMERCIAL SUPPLIER
03-04-2023,Adults & Health,Look Ahead Housing and Care Ltd,Supported Other Accommodation - Private Contractors Payment,602.52,0,COMMERCIAL SUPPLIER
03-04-2023,Adults & Health,Look Ahead Housing and Care Ltd,Supported Other Accommodation - Private Contractors Payment,602.52,0,COMMERCIAL SUPPLIER
03-04-2023,Adults & Health,Look Ahead Housing and Care Ltd,Supported Other Accommodation - Private Contractors Payment,906.74,0,COMMERCIAL SUPPLIER
03-04-2023,Adults & Health,Look Ahead Housing and Care Ltd,Supported Other Accommodation - Private Contractors Payment,906.74,0,COMMERCIAL SUPPLIER
03-04-2023,Adults & Health,Look Ahead Housing and Care Ltd,Supported Other Accommodation - Private Contractors Payment,906.74,0,COMMERCIAL SUPPLIER
03-04-2023,Adults & Health,Look Ahead Housing and Care Ltd,Supported Other Accommodation - Private Contractors Payment,906.74,0,COMMERCIAL SUPPLIER
03-04-2023,Adults & Health,Look Ahead Housing and Care Ltd,Supported Other Accommodation - Private Contractors Payment,707.2,0,COMMERCIAL SUPPLIER
03-04-2023,Adults & Health,Look Ahead Housing and Care Ltd,Supported Other Accommodation - Private Contractors Payment,707.2,0,COMMERCIAL SUPPLIER
03-04-2023,Adults & Health,Look Ahead Housing and Care Ltd,Supported Other Accommodation - Private Contractors Payment,707.2,0,COMMERCIAL SUPPLIER
03-04-2023,Adults & Health,Look Ahead Housing and Care Ltd,Supported Other Accommodation - Private Contractors Payment,707.2,0,COMMERCIAL SUPPLIER
03-04-2023,Adults & Health,Look Ahead Housing and Care Ltd,Supported Other Accommodation - Private Contractors Payment,431.35,0,COMMERCIAL SUPPLIER
03-04-2023,Adults & Health,Look Ahead Housing and Care Ltd,Supported Other Accommodation - Private Contractors Payment,431.35,0,COMMERCIAL SUPPLIER
03-04-2023,Adults & Health,Look Ahead Housing and Care Ltd,Supported Other Accommodation - Private Contractors Payment,431.35,0,COMMERCIAL SUPPLIER
03-04-2023,Adults & Health,Look Ahead Housing and Care Ltd,Supported Other Accommodation - Private Contractors Payment,431.35,0,COMMERCIAL SUPPLIER
03-04-2023,Adults & Health,Look Ahead Housing and Care Ltd,Supported Other Accommodation - Private Contractors Payment,707.2,0,COMMERCIAL SUPPLIER
03-04-2023,Adults & Health,Look Ahead Housing and Care Ltd,Supported Other Accommodation - Private Contractors Payment,707.2,0,COMMERCIAL SUPPLIER
03-04-2023,Adults & Health,Look Ahead Housing and Care Ltd,Supported Other Accommodation - Private Contractors Payment,707.2,0,COMMERCIAL SUPPLIER
03-04-2023,Adults & Health,Look Ahead Housing and Care Ltd,Supported Other Accommodation - Private Contractors Payment,707.2,0,COMMERCIAL SUPPLIER
03-04-2023,Adults & Health,Look Ahead Housing and Care Ltd,Supported Other Accommodation - Private Contractors Payment,707.2,0,COMMERCIAL SUPPLIER
03-04-2023,Adults & Health,Look Ahead Housing and Care Ltd,Supported Other Accommodation - Private Contractors Payment,707.2,0,COMMERCIAL SUPPLIER
03-04-2023,Adults & Health,Look Ahead Housing and Care Ltd,Supported Other Accommodation - Private Contractors Payment,707.2,0,COMMERCIAL SUPPLIER
03-04-2023,Adults & Health,Look Ahead Housing and Care Ltd,Supported Other Accommodation - Private Contractors Payment,707.2,0,COMMERCIAL SUPPLIER
03-04-2023,oneSource - Non Shared,Digitec Security Ltd,Security Services (Excluding Premises),2974.1,0,COMMERCIAL SUPPLIER
03-04-2023,Environment and Sustainable Transport,Alliance Automotive UK CV Ltd t/a C V Components,Highway Services,637.32,0,COMMERCIAL SUPPLIER
03-04-2023,RMS,Beacon Scaffolding Ltd,Private Contractors Payment - Other,619.2,0,CIS
03-04-2023,RMS,Beacon Scaffolding Ltd,Private Contractors Payment - Other,619.2,0,CIS
03-04-2023,RMS,Beacon Scaffolding Ltd,Private Contractors Payment - Other,619.2,0,CIS
03-04-2023,RMS,Beacon Scaffolding Ltd,Private Contractors Payment - Other,1500,0,CIS
03-04-2023,RMS,Beacon Scaffolding Ltd,Private Contractors Payment - Other,1719.84,0,CIS
03-04-2023,RMS,Beacon Scaffolding Ltd,Private Contractors Payment - Other,1500,0,CIS
03-04-2023,RMS,Beacon Scaffolding Ltd,Private Contractors Payment - Other,1957.92,0,CIS
03-04-2023,RMS,Beacon Scaffolding Ltd,Private Contractors Payment - Other,1500,0,CIS
03-04-2023,RMS,Beacon Scaffolding Ltd,Private Contractors Payment - Other,1400.64,0,CIS
03-04-2023,RMS,Beacon Scaffolding Ltd,Private Contractors Payment - Other,1362.24,0,CIS
03-04-2023,Inclusive Economy & Housing,Ronin Ltd,Staff Recruitment Costs,2875,0,COMMERCIAL SUPPLIER
03-04-2023,Adults & Health,Posturite Uk Ltd,Stationery,374.4,0,VENDOR
03-04-2023,RMS,Door-Stop International Ltd,Building Alterations And Materials,616.98,0,VENDOR
03-04-2023,Children and Young People,Newham Partnership Working Ltd,Professional Services - General,2248,0,VENDOR
03-04-2023,Children and Young People,Personal Information - Redacted,Ict Software,7.99,0,Employee
03-04-2023,Children and Young People,Personal Information - Redacted,Ict Software,76.67,0,Employee
03-04-2023,Adults & Health,Redspot Care Ltd.,Home Care - Private Contractors Payment,71.85,0,VENDOR
03-04-2023,Adults & Health,Redspot Care Ltd.,Home Care - Private Contractors Payment,215.55,0,VENDOR
03-04-2023,Adults & Health,Redspot Care Ltd.,Home Care - Private Contractors Payment,215.55,0,VENDOR
03-04-2023,Adults & Health,Redspot Care Ltd.,Home Care - Private Contractors Payment,215.55,0,VENDOR
03-04-2023,Adults & Health,Redspot Care Ltd.,Home Care - Private Contractors Payment,38.32,0,VENDOR
03-04-2023,Adults & Health,Redspot Care Ltd.,Home Care - Private Contractors Payment,100.59,0,VENDOR
03-04-2023,Adults & Health,Redspot Care Ltd.,Home Care - Private Contractors Payment,33.53,0,VENDOR
03-04-2023,Adults & Health,Redspot Care Ltd.,Home Care - Private Contractors Payment,100.59,0,VENDOR
03-04-2023,Adults & Health,Redspot Care Ltd.,Home Care - Private Contractors Payment,100.59,0,VENDOR
03-04-2023,Adults & Health,Redspot Care Ltd.,Home Care - Private Contractors Payment,100.59,0,VENDOR
03-04-2023,Adults & Health,Redspot Care Ltd.,Home Care - Private Contractors Payment,38.32,0,VENDOR
03-04-2023,Adults & Health,Redspot Care Ltd.,Home Care - Private Contractors Payment,67.06,0,VENDOR
03-04-2023,Adults & Health,Redspot Care Ltd.,Daycare - Private Contractors Payment,28.74,0,VENDOR
03-04-2023,Adults & Health,Redspot Care Ltd.,Home Care - Private Contractors Payment,67.06,0,VENDOR
03-04-2023,Adults & Health,Redspot Care Ltd.,Daycare - Private Contractors Payment,28.74,0,VENDOR
03-04-2023,Adults & Health,Redspot Care Ltd.,Home Care - Private Contractors Payment,67.06,0,VENDOR
03-04-2023,Adults & Health,Redspot Care Ltd.,Daycare - Private Contractors Payment,28.74,0,VENDOR
03-04-2023,Adults & Health,Redspot Care Ltd.,Home Care - Private Contractors Payment,67.06,0,VENDOR
03-04-2023,Adults & Health,Redspot Care Ltd.,Daycare - Private Contractors Payment,28.74,0,VENDOR
03-04-2023,Adults & Health,Redspot Care Ltd.,Daycare - Private Contractors Payment,86.22,0,VENDOR
03-04-2023,Adults & Health,Redspot Care Ltd.,Daycare - Private Contractors Payment,76.64,0,VENDOR
03-04-2023,Adults & Health,Redspot Care Ltd.,Daycare - Private Contractors Payment,76.64,0,VENDOR
03-04-2023,Adults & Health,Redspot Care Ltd.,Daycare - Private Contractors Payment,76.64,0,VENDOR
03-04-2023,Adults & Health,Redspot Care Ltd.,Home Care - Private Contractors Payment,536.48,0,VENDOR
03-04-2023,Adults & Health,Redspot Care Ltd.,Home Care - Private Contractors Payment,536.48,0,VENDOR
03-04-2023,Adults & Health,Redspot Care Ltd.,Home Care - Private Contractors Payment,536.48,0,VENDOR
03-04-2023,Adults & Health,Redspot Care Ltd.,Home Care - Private Contractors Payment,536.48,0,VENDOR
03-04-2023,Adults & Health,Redspot Care Ltd.,Home Care - Private Contractors Payment,268.24,0,VENDOR
03-04-2023,Adults & Health,Redspot Care Ltd.,Home Care - Private Contractors Payment,268.24,0,VENDOR
03-04-2023,Adults & Health,Redspot Care Ltd.,Home Care - Private Contractors Payment,38.32,0,VENDOR
03-04-2023,Adults & Health,Redspot Care Ltd.,Home Care - Private Contractors Payment,268.24,0,VENDOR
03-04-2023,Adults & Health,Redspot Care Ltd.,Home Care - Private Contractors Payment,19.16,0,VENDOR
03-04-2023,Adults & Health,Redspot Care Ltd.,Home Care - Private Contractors Payment,234.71,0,VENDOR
03-04-2023,Adults & Health,Redspot Care Ltd.,Home Care - Private Contractors Payment,234.71,0,VENDOR
03-04-2023,Adults & Health,Redspot Care Ltd.,Home Care - Private Contractors Payment,234.71,0,VENDOR
03-04-2023,Adults & Health,Redspot Care Ltd.,Home Care - Private Contractors Payment,234.71,0,VENDOR
03-04-2023,Adults & Health,Redspot Care Ltd.,Home Care - Private Contractors Payment,201.18,0,VENDOR
03-04-2023,Adults & Health,Redspot Care Ltd.,Home Care - Private Contractors Payment,201.18,0,VENDOR
03-04-2023,Adults & Health,Redspot Care Ltd.,Home Care - Private Contractors Payment,114.96,0,VENDOR
03-04-2023,Adults & Health,Redspot Care Ltd.,Home Care - Private Contractors Payment,201.18,0,VENDOR
03-04-2023,Adults & Health,Redspot Care Ltd.,Home Care - Private Contractors Payment,134.12,0,VENDOR
03-04-2023,Adults & Health,Redspot Care Ltd.,Home Care - Private Contractors Payment,134.12,0,VENDOR
03-04-2023,Adults & Health,Redspot Care Ltd.,Home Care - Private Contractors Payment,134.12,0,VENDOR
03-04-2023,Adults & Health,Redspot Care Ltd.,Home Care - Private Contractors Payment,134.12,0,VENDOR
03-04-2023,Adults & Health,Redspot Care Ltd.,Home Care - Private Contractors Payment,67.06,0,VENDOR
03-04-2023,Adults & Health,Redspot Care Ltd.,Home Care - Private Contractors Payment,67.06,0,VENDOR
03-04-2023,Adults & Health,Redspot Care Ltd.,Home Care - Private Contractors Payment,19.16,0,VENDOR
03-04-2023,Adults & Health,Redspot Care Ltd.,Home Care - Private Contractors Payment,57.48,0,VENDOR
03-04-2023,Adults & Health,Redspot Care Ltd.,Home Care - Private Contractors Payment,67.06,0,VENDOR
03-04-2023,Adults & Health,Redspot Care Ltd.,Home Care - Private Contractors Payment,57.48,0,VENDOR
03-04-2023,Adults & Health,Redspot Care Ltd.,Home Care - Private Contractors Payment,67.06,0,VENDOR
03-04-2023,Adults & Health,Redspot Care Ltd.,Home Care - Private Contractors Payment,57.48,0,VENDOR
03-04-2023,Adults & Health,Redspot Care Ltd.,Home Care - Private Contractors Payment,383.2,0,VENDOR
03-04-2023,Adults & Health,Redspot Care Ltd.,Home Care - Private Contractors Payment,268.24,0,VENDOR
03-04-2023,Adults & Health,Redspot Care Ltd.,Home Care - Private Contractors Payment,268.24,0,VENDOR
03-04-2023,Adults & Health,Redspot Care Ltd.,Home Care - Private Contractors Payment,19.16,0,VENDOR
03-04-2023,Adults & Health,Redspot Care Ltd.,Home Care - Private Contractors Payment,536.48,0,VENDOR
03-04-2023,Adults & Health,Redspot Care Ltd.,Home Care - Private Contractors Payment,19.16,0,VENDOR
03-04-2023,Adults & Health,Redspot Care Ltd.,Home Care - Private Contractors Payment,536.48,0,VENDOR
03-04-2023,Adults & Health,Redspot Care Ltd.,Daycare - Private Contractors Payment,38.32,0,VENDOR
03-04-2023,Adults & Health,Redspot Care Ltd.,Home Care - Private Contractors Payment,19.16,0,VENDOR
03-04-2023,Adults & Health,Redspot Care Ltd.,Home Care - Private Contractors Payment,536.48,0,VENDOR
03-04-2023,Adults & Health,Redspot Care Ltd.,Home Care - Private Contractors Payment,536.48,0,VENDOR
03-04-2023,Adults & Health,Redspot Care Ltd.,Home Care - Private Contractors Payment,19.16,0,VENDOR
03-04-2023,Adults & Health,Redspot Care Ltd.,Daycare - Private Contractors Payment,47.9,0,VENDOR
03-04-2023,Adults & Health,Redspot Care Ltd.,Home Care - Private Contractors Payment,737.66,0,VENDOR
03-04-2023,Adults & Health,Redspot Care Ltd.,Home Care - Private Contractors Payment,19.16,0,VENDOR
03-04-2023,Adults & Health,Redspot Care Ltd.,Home Care - Private Contractors Payment,737.66,0,VENDOR
03-04-2023,Adults & Health,Redspot Care Ltd.,Home Care - Private Contractors Payment,19.16,0,VENDOR
03-04-2023,Adults & Health,Redspot Care Ltd.,Home Care - Private Contractors Payment,737.66,0,VENDOR
03-04-2023,Adults & Health,Redspot Care Ltd.,Home Care - Private Contractors Payment,19.16,0,VENDOR
03-04-2023,Adults & Health,Redspot Care Ltd.,Home Care - Private Contractors Payment,737.66,0,VENDOR
03-04-2023,Adults & Health,Redspot Care Ltd.,Home Care - Private Contractors Payment,19.16,0,VENDOR
03-04-2023,Adults & Health,Redspot Care Ltd.,Home Care - Private Contractors Payment,134.12,0,VENDOR
03-04-2023,Adults & Health,Redspot Care Ltd.,Home Care - Private Contractors Payment,19.16,0,VENDOR
03-04-2023,Adults & Health,Redspot Care Ltd.,Daycare - Private Contractors Payment,38.32,0,VENDOR
03-04-2023,Adults & Health,Redspot Care Ltd.,Home Care - Private Contractors Payment,19.16,0,VENDOR
03-04-2023,Adults & Health,Redspot Care Ltd.,Home Care - Private Contractors Payment,134.12,0,VENDOR
03-04-2023,Adults & Health,Redspot Care Ltd.,Daycare - Private Contractors Payment,38.32,0,VENDOR
03-04-2023,Adults & Health,Redspot Care Ltd.,Home Care - Private Contractors Payment,134.12,0,VENDOR
03-04-2023,Adults & Health,Redspot Care Ltd.,Daycare - Private Contractors Payment,38.32,0,VENDOR
03-04-2023,Adults & Health,Redspot Care Ltd.,Home Care - Private Contractors Payment,19.16,0,VENDOR
03-04-2023,Adults & Health,Redspot Care Ltd.,Home Care - Private Contractors Payment,19.16,0,VENDOR
03-04-2023,Adults & Health,Redspot Care Ltd.,Daycare - Private Contractors Payment,38.32,0,VENDOR
03-04-2023,Adults & Health,Redspot Care Ltd.,Home Care - Private Contractors Payment,134.12,0,VENDOR
03-04-2023,Adults & Health,Redspot Care Ltd.,Home Care - Private Contractors Payment,67.06,0,VENDOR
03-04-2023,Adults & Health,Redspot Care Ltd.,Home Care - Private Contractors Payment,67.06,0,VENDOR
03-04-2023,Adults & Health,Redspot Care Ltd.,Home Care - Private Contractors Payment,67.06,0,VENDOR
03-04-2023,Adults & Health,Redspot Care Ltd.,Home Care - Private Contractors Payment,67.06,0,VENDOR
03-04-2023,Adults & Health,Redspot Care Ltd.,Home Care - Private Contractors Payment,134.12,0,VENDOR
03-04-2023,Adults & Health,Redspot Care Ltd.,Home Care - Private Contractors Payment,14.37,0,VENDOR
03-04-2023,Adults & Health,Redspot Care Ltd.,Daycare - Private Contractors Payment,38.32,0,VENDOR
03-04-2023,Adults & Health,Redspot Care Ltd.,Home Care - Private Contractors Payment,134.12,0,VENDOR
03-04-2023,Adults & Health,Redspot Care Ltd.,Home Care - Private Contractors Payment,14.37,0,VENDOR
03-04-2023,Adults & Health,Redspot Care Ltd.,Daycare - Private Contractors Payment,38.32,0,VENDOR
03-04-2023,Adults & Health,Redspot Care Ltd.,Home Care - Private Contractors Payment,134.12,0,VENDOR
03-04-2023,Adults & Health,Redspot Care Ltd.,Home Care - Private Contractors Payment,14.37,0,VENDOR
03-04-2023,Adults & Health,Redspot Care Ltd.,Home Care - Private Contractors Payment,14.37,0,VENDOR
03-04-2023,Adults & Health,Redspot Care Ltd.,Daycare - Private Contractors Payment,38.32,0,VENDOR
03-04-2023,Adults & Health,Redspot Care Ltd.,Home Care - Private Contractors Payment,105.38,0,VENDOR
03-04-2023,Adults & Health,Redspot Care Ltd.,Daycare - Private Contractors Payment,38.32,0,VENDOR
03-04-2023,Adults & Health,Redspot Care Ltd.,Daycare - Private Contractors Payment,191.6,0,VENDOR
03-04-2023,Adults & Health,Redspot Care Ltd.,Home Care - Private Contractors Payment,637.07,0,VENDOR
03-04-2023,Adults & Health,Redspot Care Ltd.,Daycare - Private Contractors Payment,191.6,0,VENDOR
03-04-2023,Adults & Health,Redspot Care Ltd.,Home Care - Private Contractors Payment,637.07,0,VENDOR
03-04-2023,Adults & Health,Redspot Care Ltd.,Daycare - Private Contractors Payment,52.69,0,VENDOR
03-04-2023,Adults & Health,Redspot Care Ltd.,Home Care - Private Contractors Payment,637.07,0,VENDOR
03-04-2023,Adults & Health,Redspot Care Ltd.,Daycare - Private Contractors Payment,191.6,0,VENDOR
03-04-2023,Adults & Health,Redspot Care Ltd.,Home Care - Private Contractors Payment,637.07,0,VENDOR
03-04-2023,Adults & Health,Redspot Care Ltd.,Home Care - Private Contractors Payment,670.6,0,VENDOR
03-04-2023,Adults & Health,Redspot Care Ltd.,Home Care - Private Contractors Payment,670.6,0,VENDOR
03-04-2023,Adults & Health,Redspot Care Ltd.,Home Care - Private Contractors Payment,670.6,0,VENDOR
03-04-2023,Adults & Health,Redspot Care Ltd.,Home Care - Private Contractors Payment,364.04,0,VENDOR
03-04-2023,Adults & Health,Redspot Care Ltd.,Home Care - Private Contractors Payment,368.83,0,VENDOR
03-04-2023,Adults & Health,Redspot Care Ltd.,Home Care - Private Contractors Payment,19.16,0,VENDOR
03-04-2023,Adults & Health,Redspot Care Ltd.,Home Care - Private Contractors Payment,19.16,0,VENDOR
03-04-2023,Adults & Health,Redspot Care Ltd.,Home Care - Private Contractors Payment,368.83,0,VENDOR
03-04-2023,Adults & Health,Redspot Care Ltd.,Home Care - Private Contractors Payment,368.83,0,VENDOR
03-04-2023,Adults & Health,Redspot Care Ltd.,Home Care - Private Contractors Payment,368.83,0,VENDOR
03-04-2023,Adults & Health,Redspot Care Ltd.,Home Care - Private Contractors Payment,19.16,0,VENDOR
03-04-2023,Adults & Health,Redspot Care Ltd.,Home Care - Private Contractors Payment,19.16,0,VENDOR
03-04-2023,Adults & Health,Redspot Care Ltd.,Home Care - Private Contractors Payment,368.83,0,VENDOR
03-04-2023,Adults & Health,Redspot Care Ltd.,Home Care - Private Contractors Payment,220.34,0,VENDOR
03-04-2023,Adults & Health,Redspot Care Ltd.,Home Care - Private Contractors Payment,105.38,0,VENDOR
03-04-2023,Adults & Health,Redspot Care Ltd.,Home Care - Private Contractors Payment,263.45,0,VENDOR
03-04-2023,Adults & Health,Redspot Care Ltd.,Home Care - Private Contractors Payment,277.82,0,VENDOR
03-04-2023,Adults & Health,Redspot Care Ltd.,Home Care - Private Contractors Payment,301.77,0,VENDOR
03-04-2023,Adults & Health,Redspot Care Ltd.,Home Care - Private Contractors Payment,301.77,0,VENDOR
03-04-2023,Adults & Health,Redspot Care Ltd.,Home Care - Private Contractors Payment,301.77,0,VENDOR
03-04-2023,Adults & Health,Redspot Care Ltd.,Home Care - Private Contractors Payment,134.12,0,VENDOR
03-04-2023,Adults & Health,Redspot Care Ltd.,Home Care - Private Contractors Payment,134.12,0,VENDOR
03-04-2023,Adults & Health,Redspot Care Ltd.,Home Care - Private Contractors Payment,229.92,0,VENDOR
03-04-2023,Adults & Health,Redspot Care Ltd.,Home Care - Private Contractors Payment,76.64,0,VENDOR
03-04-2023,Adults & Health,Redspot Care Ltd.,Home Care - Private Contractors Payment,570.01,0,VENDOR
03-04-2023,Adults & Health,Redspot Care Ltd.,Home Care - Private Contractors Payment,512.53,0,VENDOR
03-04-2023,Adults & Health,Redspot Care Ltd.,Home Care - Private Contractors Payment,570.01,0,VENDOR
03-04-2023,Adults & Health,Redspot Care Ltd.,Home Care - Private Contractors Payment,570.01,0,VENDOR
03-04-2023,Adults & Health,Redspot Care Ltd.,Home Care - Private Contractors Payment,134.12,0,VENDOR
03-04-2023,Adults & Health,Redspot Care Ltd.,Daycare - Private Contractors Payment,76.64,0,VENDOR
03-04-2023,Adults & Health,Redspot Care Ltd.,Daycare - Private Contractors Payment,76.64,0,VENDOR
03-04-2023,Adults & Health,Redspot Care Ltd.,Home Care - Private Contractors Payment,134.12,0,VENDOR
03-04-2023,Adults & Health,Redspot Care Ltd.,Home Care - Private Contractors Payment,134.12,0,VENDOR
03-04-2023,Adults & Health,Redspot Care Ltd.,Daycare - Private Contractors Payment,76.64,0,VENDOR
03-04-2023,Adults & Health,Redspot Care Ltd.,Home Care - Private Contractors Payment,38.32,0,VENDOR
03-04-2023,Adults & Health,Redspot Care Ltd.,Home Care - Private Contractors Payment,134.12,0,VENDOR
03-04-2023,Adults & Health,Redspot Care Ltd.,Daycare - Private Contractors Payment,76.64,0,VENDOR
03-04-2023,Adults & Health,Redspot Care Ltd.,Home Care - Private Contractors Payment,38.32,0,VENDOR
03-04-2023,Adults & Health,Redspot Care Ltd.,Home Care - Private Contractors Payment,234.71,0,VENDOR
03-04-2023,Adults & Health,Redspot Care Ltd.,Home Care - Private Contractors Payment,234.71,0,VENDOR
03-04-2023,Adults & Health,Redspot Care Ltd.,Home Care - Private Contractors Payment,234.71,0,VENDOR
03-04-2023,Adults & Health,Redspot Care Ltd.,Home Care - Private Contractors Payment,234.71,0,VENDOR
03-04-2023,Adults & Health,Redspot Care Ltd.,Daycare - Private Contractors Payment,114.96,0,VENDOR
03-04-2023,Adults & Health,Redspot Care Ltd.,Home Care - Private Contractors Payment,167.65,0,VENDOR
03-04-2023,Adults & Health,Redspot Care Ltd.,Daycare - Private Contractors Payment,114.96,0,VENDOR
03-04-2023,Adults & Health,Redspot Care Ltd.,Home Care - Private Contractors Payment,167.65,0,VENDOR
03-04-2023,Adults & Health,Redspot Care Ltd.,Daycare - Private Contractors Payment,114.96,0,VENDOR
03-04-2023,Adults & Health,Redspot Care Ltd.,Home Care - Private Contractors Payment,167.65,0,VENDOR
03-04-2023,Adults & Health,Redspot Care Ltd.,Daycare - Private Contractors Payment,114.96,0,VENDOR
03-04-2023,Adults & Health,Redspot Care Ltd.,Home Care - Private Contractors Payment,167.65,0,VENDOR
03-04-2023,Adults & Health,Redspot Care Ltd.,Daycare - Private Contractors Payment,19.16,0,VENDOR
03-04-2023,Adults & Health,Redspot Care Ltd.,Home Care - Private Contractors Payment,19.16,0,VENDOR
03-04-2023,Adults & Health,Redspot Care Ltd.,Home Care - Private Contractors Payment,368.83,0,VENDOR
03-04-2023,Adults & Health,Redspot Care Ltd.,Daycare - Private Contractors Payment,19.16,0,VENDOR
03-04-2023,Adults & Health,Redspot Care Ltd.,Home Care - Private Contractors Payment,368.83,0,VENDOR
03-04-2023,Adults & Health,Redspot Care Ltd.,Home Care - Private Contractors Payment,19.16,0,VENDOR
03-04-2023,Adults & Health,Redspot Care Ltd.,Daycare - Private Contractors Payment,19.16,0,VENDOR
03-04-2023,Adults & Health,Redspot Care Ltd.,Home Care - Private Contractors Payment,368.83,0,VENDOR
03-04-2023,Adults & Health,Redspot Care Ltd.,Home Care - Private Contractors Payment,19.16,0,VENDOR
03-04-2023,Adults & Health,Redspot Care Ltd.,Daycare - Private Contractors Payment,19.16,0,VENDOR
03-04-2023,Adults & Health,Redspot Care Ltd.,Home Care - Private Contractors Payment,368.83,0,VENDOR
03-04-2023,Adults & Health,Redspot Care Ltd.,Home Care - Private Contractors Payment,19.16,0,VENDOR
03-04-2023,Adults & Health,Redspot Care Ltd.,Respite Care - Private Contractors Payment,67.06,0,VENDOR
03-04-2023,Adults & Health,Redspot Care Ltd.,Home Care - Private Contractors Payment,201.18,0,VENDOR
03-04-2023,Adults & Health,Redspot Care Ltd.,Respite Care - Private Contractors Payment,67.06,0,VENDOR
03-04-2023,Adults & Health,Redspot Care Ltd.,Home Care - Private Contractors Payment,201.18,0,VENDOR
03-04-2023,Adults & Health,Redspot Care Ltd.,Reablement,134.12,0,VENDOR
03-04-2023,Adults & Health,Redspot Care Ltd.,Respite Care - Private Contractors Payment,67.06,0,VENDOR
03-04-2023,Adults & Health,Redspot Care Ltd.,Home Care - Private Contractors Payment,201.18,0,VENDOR
03-04-2023,Adults & Health,Redspot Care Ltd.,Home Care - Private Contractors Payment,570.01,0,VENDOR
03-04-2023,Adults & Health,Redspot Care Ltd.,Home Care - Private Contractors Payment,570.01,0,VENDOR
03-04-2023,Adults & Health,Redspot Care Ltd.,Home Care - Private Contractors Payment,435.89,0,VENDOR
03-04-2023,Adults & Health,Redspot Care Ltd.,Home Care - Private Contractors Payment,570.01,0,VENDOR
03-04-2023,Adults & Health,Redspot Care Ltd.,Home Care - Private Contractors Payment,469.42,0,VENDOR
03-04-2023,Adults & Health,Redspot Care Ltd.,Home Care - Private Contractors Payment,469.42,0,VENDOR
03-04-2023,Adults & Health,Redspot Care Ltd.,Home Care - Private Contractors Payment,469.42,0,VENDOR
03-04-2023,Adults & Health,Redspot Care Ltd.,Home Care - Private Contractors Payment,335.3,0,VENDOR
03-04-2023,Adults & Health,Redspot Care Ltd.,Home Care - Private Contractors Payment,143.7,0,VENDOR
03-04-2023,Adults & Health,Redspot Care Ltd.,Home Care - Private Contractors Payment,277.82,0,VENDOR
03-04-2023,Adults & Health,Redspot Care Ltd.,Home Care - Private Contractors Payment,301.77,0,VENDOR
03-04-2023,Adults & Health,Redspot Care Ltd.,Home Care - Private Contractors Payment,301.77,0,VENDOR
03-04-2023,Adults & Health,Redspot Care Ltd.,Home Care - Private Contractors Payment,167.65,0,VENDOR
03-04-2023,Adults & Health,Redspot Care Ltd.,Home Care - Private Contractors Payment,19.16,0,VENDOR
03-04-2023,Adults & Health,Redspot Care Ltd.,Home Care - Private Contractors Payment,167.65,0,VENDOR
03-04-2023,Adults & Health,Redspot Care Ltd.,Home Care - Private Contractors Payment,19.16,0,VENDOR
03-04-2023,Adults & Health,Redspot Care Ltd.,Home Care - Private Contractors Payment,167.65,0,VENDOR
03-04-2023,Adults & Health,Redspot Care Ltd.,Home Care - Private Contractors Payment,19.16,0,VENDOR
03-04-2023,Adults & Health,Redspot Care Ltd.,Home Care - Private Contractors Payment,158.07,0,VENDOR
03-04-2023,Adults & Health,Redspot Care Ltd.,Home Care - Private Contractors Payment,19.16,0,VENDOR
03-04-2023,Adults & Health,Redspot Care Ltd.,Home Care - Private Contractors Payment,239.5,0,VENDOR
03-04-2023,Adults & Health,Redspot Care Ltd.,Home Care - Private Contractors Payment,38.32,0,VENDOR
03-04-2023,Adults & Health,Redspot Care Ltd.,Home Care - Private Contractors Payment,234.71,0,VENDOR
03-04-2023,Adults & Health,Redspot Care Ltd.,Home Care - Private Contractors Payment,38.32,0,VENDOR
03-04-2023,Adults & Health,Redspot Care Ltd.,Home Care - Private Contractors Payment,234.71,0,VENDOR
03-04-2023,Adults & Health,Redspot Care Ltd.,Home Care - Private Contractors Payment,38.32,0,VENDOR
03-04-2023,Adults & Health,Redspot Care Ltd.,Home Care - Private Contractors Payment,234.71,0,VENDOR
03-04-2023,Adults & Health,Redspot Care Ltd.,Home Care - Private Contractors Payment,38.32,0,VENDOR
03-04-2023,Adults & Health,Redspot Care Ltd.,Home Care - Private Contractors Payment,76.64,0,VENDOR
03-04-2023,Adults & Health,Redspot Care Ltd.,Home Care - Private Contractors Payment,19.16,0,VENDOR
03-04-2023,Adults & Health,Redspot Care Ltd.,Daycare - Private Contractors Payment,57.48,0,VENDOR
03-04-2023,Adults & Health,Redspot Care Ltd.,Home Care - Private Contractors Payment,76.64,0,VENDOR
03-04-2023,Adults & Health,Redspot Care Ltd.,Daycare - Private Contractors Payment,57.48,0,VENDOR
03-04-2023,Adults & Health,Redspot Care Ltd.,Home Care - Private Contractors Payment,76.64,0,VENDOR
03-04-2023,Adults & Health,Redspot Care Ltd.,Home Care - Private Contractors Payment,76.64,0,VENDOR
03-04-2023,Adults & Health,Redspot Care Ltd.,Daycare - Private Contractors Payment,57.48,0,VENDOR
03-04-2023,Adults & Health,Redspot Care Ltd.,Home Care - Private Contractors Payment,19.16,0,VENDOR
03-04-2023,Adults & Health,Redspot Care Ltd.,Daycare - Private Contractors Payment,57.48,0,VENDOR
03-04-2023,Adults & Health,Redspot Care Ltd.,Home Care - Private Contractors Payment,19.16,0,VENDOR
03-04-2023,Adults & Health,Redspot Care Ltd.,Home Care - Private Contractors Payment,182.02,0,VENDOR
03-04-2023,Adults & Health,Redspot Care Ltd.,Daycare - Private Contractors Payment,57.48,0,VENDOR
03-04-2023,Adults & Health,Redspot Care Ltd.,Home Care - Private Contractors Payment,19.16,0,VENDOR
03-04-2023,Adults & Health,Redspot Care Ltd.,Home Care - Private Contractors Payment,182.02,0,VENDOR
03-04-2023,Adults & Health,Redspot Care Ltd.,Daycare - Private Contractors Payment,57.48,0,VENDOR
03-04-2023,Adults & Health,Redspot Care Ltd.,Home Care - Private Contractors Payment,19.16,0,VENDOR
03-04-2023,Adults & Health,Redspot Care Ltd.,Home Care - Private Contractors Payment,182.02,0,VENDOR
03-04-2023,Adults & Health,Redspot Care Ltd.,Daycare - Private Contractors Payment,57.48,0,VENDOR
03-04-2023,Adults & Health,Redspot Care Ltd.,Home Care - Private Contractors Payment,19.16,0,VENDOR
03-04-2023,Adults & Health,Redspot Care Ltd.,Home Care - Private Contractors Payment,182.02,0,VENDOR
03-04-2023,Adults & Health,Redspot Care Ltd.,Home Care - Private Contractors Payment,19.16,0,VENDOR
03-04-2023,Adults & Health,Redspot Care Ltd.,Home Care - Private Contractors Payment,234.71,0,VENDOR
03-04-2023,Adults & Health,Redspot Care Ltd.,Home Care - Private Contractors Payment,19.16,0,VENDOR
03-04-2023,Adults & Health,Redspot Care Ltd.,Home Care - Private Contractors Payment,234.71,0,VENDOR
03-04-2023,Adults & Health,Redspot Care Ltd.,Home Care - Private Contractors Payment,19.16,0,VENDOR
03-04-2023,Adults & Health,Redspot Care Ltd.,Home Care - Private Contractors Payment,234.71,0,VENDOR
03-04-2023,Adults & Health,Redspot Care Ltd.,Home Care - Private Contractors Payment,19.16,0,VENDOR
03-04-2023,Adults & Health,Redspot Care Ltd.,Home Care - Private Contractors Payment,234.71,0,VENDOR
03-04-2023,Adults & Health,Redspot Care Ltd.,Home Care - Private Contractors Payment,201.18,0,VENDOR
03-04-2023,Adults & Health,Redspot Care Ltd.,Daycare - Private Contractors Payment,38.32,0,VENDOR
03-04-2023,Adults & Health,Redspot Care Ltd.,Home Care - Private Contractors Payment,201.18,0,VENDOR
03-04-2023,Adults & Health,Redspot Care Ltd.,Daycare - Private Contractors Payment,38.32,0,VENDOR
03-04-2023,Adults & Health,Redspot Care Ltd.,Home Care - Private Contractors Payment,201.18,0,VENDOR
03-04-2023,Adults & Health,Redspot Care Ltd.,Daycare - Private Contractors Payment,38.32,0,VENDOR
03-04-2023,Adults & Health,Redspot Care Ltd.,Daycare - Private Contractors Payment,38.32,0,VENDOR
03-04-2023,Adults & Health,Redspot Care Ltd.,Home Care - Private Contractors Payment,201.18,0,VENDOR
03-04-2023,Adults & Health,Redspot Care Ltd.,Daycare - Private Contractors Payment,19.16,0,VENDOR
03-04-2023,Adults & Health,Redspot Care Ltd.,Home Care - Private Contractors Payment,301.77,0,VENDOR
03-04-2023,Adults & Health,Redspot Care Ltd.,Home Care - Private Contractors Payment,301.77,0,VENDOR
03-04-2023,Adults & Health,Redspot Care Ltd.,Home Care - Private Contractors Payment,301.77,0,VENDOR
03-04-2023,Adults & Health,Redspot Care Ltd.,Daycare - Private Contractors Payment,67.06,0,VENDOR
03-04-2023,Adults & Health,Redspot Care Ltd.,Home Care - Private Contractors Payment,301.77,0,VENDOR
03-04-2023,Adults & Health,Redspot Care Ltd.,Daycare - Private Contractors Payment,67.06,0,VENDOR
03-04-2023,Adults & Health,Redspot Care Ltd.,Home Care - Private Contractors Payment,134.12,0,VENDOR
03-04-2023,Adults & Health,Redspot Care Ltd.,Home Care - Private Contractors Payment,134.12,0,VENDOR
03-04-2023,Adults & Health,Redspot Care Ltd.,Home Care - Private Contractors Payment,134.12,0,VENDOR
03-04-2023,Adults & Health,Redspot Care Ltd.,Home Care - Private Contractors Payment,134.12,0,VENDOR
03-04-2023,Adults & Health,Redspot Care Ltd.,Daycare - Private Contractors Payment,38.32,0,VENDOR
03-04-2023,Adults & Health,Redspot Care Ltd.,Home Care - Private Contractors Payment,134.12,0,VENDOR
03-04-2023,Adults & Health,Redspot Care Ltd.,Home Care - Private Contractors Payment,134.12,0,VENDOR
03-04-2023,Adults & Health,Redspot Care Ltd.,Daycare - Private Contractors Payment,38.32,0,VENDOR
03-04-2023,Adults & Health,Redspot Care Ltd.,Daycare - Private Contractors Payment,38.32,0,VENDOR
03-04-2023,Adults & Health,Redspot Care Ltd.,Home Care - Private Contractors Payment,134.12,0,VENDOR
03-04-2023,Adults & Health,Redspot Care Ltd.,Daycare - Private Contractors Payment,38.32,0,VENDOR
03-04-2023,Adults & Health,Redspot Care Ltd.,Home Care - Private Contractors Payment,134.12,0,VENDOR
03-04-2023,Adults & Health,Redspot Care Ltd.,Home Care - Private Contractors Payment,335.3,0,VENDOR
03-04-2023,Adults & Health,Redspot Care Ltd.,Home Care - Private Contractors Payment,335.3,0,VENDOR
03-04-2023,Adults & Health,Redspot Care Ltd.,Home Care - Private Contractors Payment,335.3,0,VENDOR
03-04-2023,Adults & Health,Redspot Care Ltd.,Home Care - Private Contractors Payment,335.3,0,VENDOR
03-04-2023,Adults & Health,Redspot Care Ltd.,Daycare - Private Contractors Payment,19.16,0,VENDOR
03-04-2023,Adults & Health,Redspot Care Ltd.,Home Care - Private Contractors Payment,167.65,0,VENDOR
03-04-2023,Adults & Health,Redspot Care Ltd.,Home Care - Private Contractors Payment,19.16,0,VENDOR
03-04-2023,Adults & Health,Redspot Care Ltd.,Daycare - Private Contractors Payment,19.16,0,VENDOR
03-04-2023,Adults & Health,Redspot Care Ltd.,Home Care - Private Contractors Payment,19.16,0,VENDOR
03-04-2023,Adults & Health,Redspot Care Ltd.,Home Care - Private Contractors Payment,167.65,0,VENDOR
03-04-2023,Adults & Health,Redspot Care Ltd.,Daycare - Private Contractors Payment,19.16,0,VENDOR
03-04-2023,Adults & Health,Redspot Care Ltd.,Home Care - Private Contractors Payment,19.16,0,VENDOR
03-04-2023,Adults & Health,Redspot Care Ltd.,Home Care - Private Contractors Payment,167.65,0,VENDOR
03-04-2023,Adults & Health,Redspot Care Ltd.,Daycare - Private Contractors Payment,19.16,0,VENDOR
03-04-2023,Adults & Health,Redspot Care Ltd.,Home Care - Private Contractors Payment,19.16,0,VENDOR
03-04-2023,Adults & Health,Redspot Care Ltd.,Home Care - Private Contractors Payment,167.65,0,VENDOR
03-04-2023,Adults & Health,Redspot Care Ltd.,Home Care - Private Contractors Payment,234.71,0,VENDOR
03-04-2023,Adults & Health,Redspot Care Ltd.,Home Care - Private Contractors Payment,234.71,0,VENDOR
03-04-2023,Adults & Health,Redspot Care Ltd.,Home Care - Private Contractors Payment,234.71,0,VENDOR
03-04-2023,Adults & Health,Redspot Care Ltd.,Home Care - Private Contractors Payment,234.71,0,VENDOR
03-04-2023,Adults & Health,Redspot Care Ltd.,Home Care - Private Contractors Payment,71.85,0,VENDOR
03-04-2023,Adults & Health,Redspot Care Ltd.,Home Care - Private Contractors Payment,71.85,0,VENDOR
03-04-2023,Adults & Health,Redspot Care Ltd.,Home Care - Private Contractors Payment,71.85,0,VENDOR
03-04-2023,Adults & Health,Redspot Care Ltd.,Home Care - Private Contractors Payment,71.85,0,VENDOR
03-04-2023,Adults & Health,Redspot Care Ltd.,Home Care - Private Contractors Payment,134.12,0,VENDOR
03-04-2023,Adults & Health,Redspot Care Ltd.,Home Care - Private Contractors Payment,95.8,0,VENDOR
03-04-2023,Adults & Health,Redspot Care Ltd.,Home Care - Private Contractors Payment,134.12,0,VENDOR
03-04-2023,Adults & Health,Redspot Care Ltd.,Home Care - Private Contractors Payment,95.8,0,VENDOR
03-04-2023,Adults & Health,Redspot Care Ltd.,Home Care - Private Contractors Payment,134.12,0,VENDOR
03-04-2023,Adults & Health,Redspot Care Ltd.,Home Care - Private Contractors Payment,95.8,0,VENDOR
03-04-2023,Adults & Health,Redspot Care Ltd.,Home Care - Private Contractors Payment,134.12,0,VENDOR
03-04-2023,Adults & Health,Redspot Care Ltd.,Home Care - Private Contractors Payment,95.8,0,VENDOR
03-04-2023,Adults & Health,Redspot Care Ltd.,Home Care - Private Contractors Payment,57.48,0,VENDOR
03-04-2023,Adults & Health,Redspot Care Ltd.,Home Care - Private Contractors Payment,234.71,0,VENDOR
03-04-2023,Adults & Health,Redspot Care Ltd.,Home Care - Private Contractors Payment,57.48,0,VENDOR
03-04-2023,Adults & Health,Redspot Care Ltd.,Home Care - Private Contractors Payment,234.71,0,VENDOR
03-04-2023,Adults & Health,Redspot Care Ltd.,Home Care - Private Contractors Payment,234.71,0,VENDOR
03-04-2023,Adults & Health,Redspot Care Ltd.,Home Care - Private Contractors Payment,57.48,0,VENDOR
03-04-2023,Adults & Health,Redspot Care Ltd.,Home Care - Private Contractors Payment,234.71,0,VENDOR
03-04-2023,Adults & Health,Redspot Care Ltd.,Home Care - Private Contractors Payment,57.48,0,VENDOR
03-04-2023,Adults & Health,Redspot Care Ltd.,Home Care - Private Contractors Payment,459.84,0,VENDOR
03-04-2023,Adults & Health,Redspot Care Ltd.,Daycare - Private Contractors Payment,57.48,0,VENDOR
03-04-2023,Adults & Health,Redspot Care Ltd.,Home Care - Private Contractors Payment,268.24,0,VENDOR
03-04-2023,Adults & Health,Redspot Care Ltd.,Daycare - Private Contractors Payment,38.32,0,VENDOR
03-04-2023,Adults & Health,Redspot Care Ltd.,Home Care - Private Contractors Payment,833.46,0,VENDOR
03-04-2023,Adults & Health,Redspot Care Ltd.,Home Care - Private Contractors Payment,536.48,0,VENDOR
03-04-2023,Adults & Health,Redspot Care Ltd.,Home Care - Private Contractors Payment,383.2,0,VENDOR
03-04-2023,Adults & Health,Redspot Care Ltd.,Home Care - Private Contractors Payment,383.2,0,VENDOR
03-04-2023,Adults & Health,Redspot Care Ltd.,Home Care - Private Contractors Payment,383.2,0,VENDOR
03-04-2023,Adults & Health,Redspot Care Ltd.,Home Care - Private Contractors Payment,33.53,0,VENDOR
03-04-2023,Adults & Health,Redspot Care Ltd.,Home Care - Private Contractors Payment,306.56,0,VENDOR
03-04-2023,Adults & Health,Redspot Care Ltd.,Home Care - Private Contractors Payment,383.2,0,VENDOR
03-04-2023,Adults & Health,Trees Park (Eastham) Limited,Nursing Homes - Private Contractors Payment,683.17,0,VENDOR
03-04-2023,Adults & Health,Trees Park (Eastham) Limited,Nursing Homes - Private Contractors Payment,683.17,0,VENDOR
03-04-2023,Adults & Health,Trees Park (Eastham) Limited,Nursing Homes - Private Contractors Payment,683.17,0,VENDOR
03-04-2023,Adults & Health,Trees Park (Eastham) Limited,Nursing Homes - Private Contractors Payment,683.17,0,VENDOR
03-04-2023,Adults & Health,Trees Park (Eastham) Limited,Nursing Homes - Private Contractors Payment,683.17,0,VENDOR
03-04-2023,Adults & Health,Trees Park (Eastham) Limited,Nursing Homes - Private Contractors Payment,683.17,0,VENDOR
03-04-2023,Adults & Health,Trees Park (Eastham) Limited,Nursing Homes - Private Contractors Payment,683.17,0,VENDOR
03-04-2023,Adults & Health,Trees Park (Eastham) Limited,Nursing Homes - Private Contractors Payment,683.17,0,VENDOR
03-04-2023,Adults & Health,Trees Park (Eastham) Limited,Nursing Homes - Private Contractors Payment,683.17,0,VENDOR
03-04-2023,Adults & Health,Trees Park (Eastham) Limited,Nursing Homes - Private Contractors Payment,683.17,0,VENDOR
03-04-2023,Adults & Health,Trees Park (Eastham) Limited,Nursing Homes - Private Contractors Payment,683.17,0,VENDOR
03-04-2023,Adults & Health,Trees Park (Eastham) Limited,Nursing Homes - Private Contractors Payment,487.98,0,VENDOR
03-04-2023,Adults & Health,Trees Park (Eastham) Limited,Nursing Homes - Private Contractors Payment,683.17,0,VENDOR
03-04-2023,Adults & Health,Trees Park (Eastham) Limited,Nursing Homes - Private Contractors Payment,683.17,0,VENDOR
03-04-2023,Adults & Health,Trees Park (Eastham) Limited,Nursing Homes - Private Contractors Payment,683.17,0,VENDOR
03-04-2023,Adults & Health,Trees Park (Eastham) Limited,Nursing Homes - Private Contractors Payment,683.17,0,VENDOR
03-04-2023,Adults & Health,Trees Park (Eastham) Limited,Nursing Homes - Private Contractors Payment,683.17,0,VENDOR
03-04-2023,Adults & Health,Trees Park (Eastham) Limited,Nursing Homes - Private Contractors Payment,683.17,0,VENDOR
03-04-2023,Adults & Health,Trees Park (Eastham) Limited,Nursing Homes - Private Contractors Payment,683.17,0,VENDOR
03-04-2023,Adults & Health,Trees Park (Eastham) Limited,Nursing Homes - Private Contractors Payment,683.17,0,VENDOR
03-04-2023,Adults & Health,Trees Park (Eastham) Limited,Nursing Homes - Private Contractors Payment,683.17,0,VENDOR
03-04-2023,Adults & Health,Trees Park (Eastham) Limited,Nursing Homes - Private Contractors Payment,683.17,0,VENDOR
03-04-2023,Adults & Health,Trees Park (Eastham) Limited,Nursing Homes - Private Contractors Payment,683.17,0,VENDOR
03-04-2023,Adults & Health,Trees Park (Eastham) Limited,Nursing Homes - Private Contractors Payment,683.17,0,VENDOR
03-04-2023,Adults & Health,Trees Park (Eastham) Limited,Nursing Homes - Private Contractors Payment,683.17,0,VENDOR
03-04-2023,Adults & Health,Trees Park (Eastham) Limited,Nursing Homes - Private Contractors Payment,683.17,0,VENDOR
03-04-2023,Adults & Health,Trees Park (Eastham) Limited,Nursing Homes - Private Contractors Payment,683.17,0,VENDOR
03-04-2023,Adults & Health,Trees Park (Eastham) Limited,Nursing Homes - Private Contractors Payment,683.17,0,VENDOR
03-04-2023,Adults & Health,Mornington Care Ltd,Residential Placements - Private Contractors Payment,602.48,0,NON COMMERCIAL SUPPLIER
03-04-2023,Adults & Health,Mornington Care Ltd,Residential Placements - Private Contractors Payment,602.48,0,NON COMMERCIAL SUPPLIER
03-04-2023,Adults & Health,Mornington Care Ltd,Residential Placements - Private Contractors Payment,430.34,0,NON COMMERCIAL SUPPLIER
03-04-2023,Adults & Health,Larchwood Care Homes (South) Ltd t/a Great Horkesley Manor Park,Residential Placements - Private Contractors Payment,595,0,COMMERCIAL SUPPLIER
03-04-2023,Adults & Health,Larchwood Care Homes (South) Ltd t/a Great Horkesley Manor Park,Residential Placements - Private Contractors Payment,7435.01,0,COMMERCIAL SUPPLIER
03-04-2023,Adults & Health,Larchwood Care Homes (South) Ltd t/a Great Horkesley Manor Park,Residential Placements - Private Contractors Payment,595,0,COMMERCIAL SUPPLIER
03-04-2023,Adults & Health,Larchwood Care Homes (South) Ltd t/a Great Horkesley Manor Park,Residential Placements - Private Contractors Payment,595,0,COMMERCIAL SUPPLIER
03-04-2023,Adults & Health,Barchester Healthcare Homes Limited t/a Westgate House,Nursing Homes - Private Contractors Payment,1090.84,0,NON COMMERCIAL SUPPLIER
03-04-2023,Adults & Health,Barchester Healthcare Homes Limited t/a Westgate House,Nursing Homes - Private Contractors Payment,1090.84,0,NON COMMERCIAL SUPPLIER
03-04-2023,Adults & Health,Barchester Healthcare Homes Limited t/a Westgate House,Nursing Homes - Private Contractors Payment,1090.84,0,NON COMMERCIAL SUPPLIER
03-04-2023,Adults & Health,Barchester Healthcare Homes Limited t/a Westgate House,Nursing Homes - Private Contractors Payment,1090.84,0,NON COMMERCIAL SUPPLIER
03-04-2023,Adults & Health,Trees Park (Eastham) Limited,Residential Placements - Private Contractors Payment,639.53,0,VENDOR
03-04-2023,Adults & Health,Trees Park (Eastham) Limited,Residential Placements - Private Contractors Payment,639.53,0,VENDOR
03-04-2023,Adults & Health,Trees Park (Eastham) Limited,Residential Placements - Private Contractors Payment,639.53,0,VENDOR
03-04-2023,Adults & Health,Trees Park (Eastham) Limited,Residential Placements - Private Contractors Payment,639.53,0,VENDOR
03-04-2023,Adults & Health,Trees Park (Eastham) Limited,Residential Placements - Private Contractors Payment,639.53,0,VENDOR
03-04-2023,Adults & Health,Trees Park (Eastham) Limited,Residential Placements - Private Contractors Payment,639.53,0,VENDOR
03-04-2023,Adults & Health,Trees Park (Eastham) Limited,Residential Placements - Private Contractors Payment,548.17,0,VENDOR
03-04-2023,Adults & Health,Trees Park (Eastham) Limited,Residential Placements - Private Contractors Payment,639.53,0,VENDOR
03-04-2023,Adults & Health,Trees Park (Eastham) Limited,Residential Placements - Private Contractors Payment,639.53,0,VENDOR
03-04-2023,Adults & Health,Trees Park (Eastham) Limited,Residential Placements - Private Contractors Payment,639.53,0,VENDOR
03-04-2023,Adults & Health,Trees Park (Eastham) Limited,Residential Placements - Private Contractors Payment,639.53,0,VENDOR
03-04-2023,Adults & Health,Trees Park (Eastham) Limited,Residential Placements - Private Contractors Payment,639.53,0,VENDOR
03-04-2023,Adults & Health,Trees Park (Eastham) Limited,Residential Placements - Private Contractors Payment,639.53,0,VENDOR
03-04-2023,Adults & Health,Trees Park (Eastham) Limited,Residential Placements - Private Contractors Payment,639.53,0,VENDOR
03-04-2023,Adults & Health,Trees Park (Eastham) Limited,Residential Placements - Private Contractors Payment,639.53,0,VENDOR
03-04-2023,Adults & Health,Trees Park (Eastham) Limited,Residential Placements - Private Contractors Payment,639.53,0,VENDOR
03-04-2023,Adults & Health,Trees Park (Eastham) Limited,Residential Placements - Private Contractors Payment,639.53,0,VENDOR
03-04-2023,Adults & Health,Westminster Health Care Limited,Residential Placements - Private Contractors Payment,1250,0,COMMERCIAL SUPPLIER
03-04-2023,Adults & Health,Westminster Health Care Limited,Residential Placements - Private Contractors Payment,1250,0,COMMERCIAL SUPPLIER
03-04-2023,Adults & Health,Westminster Health Care Limited,Residential Placements - Private Contractors Payment,1250,0,COMMERCIAL SUPPLIER
03-04-2023,Adults & Health,Westminster Health Care Limited,Residential Placements - Private Contractors Payment,1250,0,COMMERCIAL SUPPLIER
03-04-2023,Adults & Health,Westminster Health Care Limited,Residential Placements - Private Contractors Payment,1250,0,COMMERCIAL SUPPLIER
03-04-2023,Adults & Health,Westminster Health Care Limited,Residential Placements - Private Contractors Payment,1250,0,COMMERCIAL SUPPLIER
03-04-2023,Adults & Health,Westminster Health Care Limited,Residential Placements - Private Contractors Payment,1250,0,COMMERCIAL SUPPLIER
03-04-2023,Adults & Health,Westminster Health Care Limited,Residential Placements - Private Contractors Payment,1250,0,COMMERCIAL SUPPLIER
03-04-2023,Adults & Health,Westminster Health Care Limited,Residential Placements - Private Contractors Payment,1250,0,COMMERCIAL SUPPLIER
03-04-2023,Adults & Health,Westminster Health Care Limited,Residential Placements - Private Contractors Payment,1250,0,COMMERCIAL SUPPLIER
03-04-2023,Adults & Health,Westminster Health Care Limited,Residential Placements - Private Contractors Payment,535.71,0,COMMERCIAL SUPPLIER
03-04-2023,Adults & Health,Westminster Health Care Limited,Residential Placements - Private Contractors Payment,1250,0,COMMERCIAL SUPPLIER
03-04-2023,Adults & Health,Westminster Health Care Limited,Residential Placements - Private Contractors Payment,1250,0,COMMERCIAL SUPPLIER
03-04-2023,Adults & Health,Ranc Care Homes Ltd,Residential Placements - Private Contractors Payment,1300,0,COMMERCIAL SUPPLIER
03-04-2023,Adults & Health,Seabrooke Manor Ltd t/a Seabrooke Manor Care Home,Nursing Homes - Private Contractors Payment,578.57,0,NON COMMERCIAL SUPPLIER
03-04-2023,Adults & Health,Seabrooke Manor Ltd t/a Seabrooke Manor Care Home,Nursing Homes - Private Contractors Payment,1350,0,NON COMMERCIAL SUPPLIER
03-04-2023,Adults & Health,Seabrooke Manor Ltd t/a Seabrooke Manor Care Home,Nursing Homes - Private Contractors Payment,1350,0,NON COMMERCIAL SUPPLIER
03-04-2023,Adults & Health,Seabrooke Manor Ltd t/a Seabrooke Manor Care Home,Nursing Homes - Private Contractors Payment,1350,0,NON COMMERCIAL SUPPLIER
03-04-2023,Adults & Health,Ranc Care Homes Ltd,Residential Placements - Private Contractors Payment,1300,0,COMMERCIAL SUPPLIER
03-04-2023,Adults & Health,Seabrooke Manor Ltd t/a Seabrooke Manor Care Home,Nursing Homes - Private Contractors Payment,1350,0,NON COMMERCIAL SUPPLIER
03-04-2023,Adults & Health,Seabrooke Manor Ltd t/a Seabrooke Manor Care Home,Nursing Homes - Private Contractors Payment,1350,0,NON COMMERCIAL SUPPLIER
03-04-2023,Adults & Health,Seabrooke Manor Ltd t/a Seabrooke Manor Care Home,Nursing Homes - Private Contractors Payment,1350,0,NON COMMERCIAL SUPPLIER
03-04-2023,Adults & Health,Seabrooke Manor Ltd t/a Seabrooke Manor Care Home,Nursing Homes - Private Contractors Payment,1350,0,NON COMMERCIAL SUPPLIER
03-04-2023,Adults & Health,Seabrooke Manor Ltd t/a Seabrooke Manor Care Home,Nursing Homes - Private Contractors Payment,1350,0,NON COMMERCIAL SUPPLIER
03-04-2023,Adults & Health,Seabrooke Manor Ltd t/a Seabrooke Manor Care Home,Nursing Homes - Private Contractors Payment,1350,0,NON COMMERCIAL SUPPLIER
03-04-2023,Adults & Health,Seabrooke Manor Ltd t/a Seabrooke Manor Care Home,Nursing Homes - Private Contractors Payment,1350,0,NON COMMERCIAL SUPPLIER
03-04-2023,Adults & Health,Seabrooke Manor Ltd t/a Seabrooke Manor Care Home,Nursing Homes - Private Contractors Payment,1350,0,NON COMMERCIAL SUPPLIER
03-04-2023,Adults & Health,Seabrooke Manor Ltd t/a Seabrooke Manor Care Home,Nursing Homes - Private Contractors Payment,1350,0,NON COMMERCIAL SUPPLIER
03-04-2023,Adults & Health,Ranc Care Homes Ltd,Residential Placements - Private Contractors Payment,928.57,0,COMMERCIAL SUPPLIER
03-04-2023,Adults & Health,Seabrooke Manor Ltd t/a Seabrooke Manor Care Home,Nursing Homes - Private Contractors Payment,1350,0,NON COMMERCIAL SUPPLIER
03-04-2023,Adults & Health,Seabrooke Manor Ltd t/a Seabrooke Manor Care Home,Nursing Homes - Private Contractors Payment,1350,0,NON COMMERCIAL SUPPLIER
03-04-2023,Adults & Health,Seabrooke Manor Ltd t/a Seabrooke Manor Care Home,Nursing Homes - Private Contractors Payment,1350,0,NON COMMERCIAL SUPPLIER
03-04-2023,Adults & Health,Ranc Care Homes Ltd,Residential Placements - Private Contractors Payment,1300,0,COMMERCIAL SUPPLIER
03-04-2023,Adults & Health,Seabrooke Manor Ltd t/a Seabrooke Manor Care Home,Nursing Homes - Private Contractors Payment,1559.19,0,NON COMMERCIAL SUPPLIER
03-04-2023,Adults & Health,Seabrooke Manor Ltd t/a Seabrooke Manor Care Home,Nursing Homes - Private Contractors Payment,668.22,0,NON COMMERCIAL SUPPLIER
03-04-2023,Adults & Health,Seabrooke Manor Ltd t/a Seabrooke Manor Care Home,Nursing Homes - Private Contractors Payment,1559.19,0,NON COMMERCIAL SUPPLIER
03-04-2023,Adults & Health,Seabrooke Manor Ltd t/a Seabrooke Manor Care Home,Nursing Homes - Private Contractors Payment,1559.19,0,NON COMMERCIAL SUPPLIER
03-04-2023,Adults & Health,Leyton House Community Care Ltd,Supported Other Accommodation - Private Contractors Payment,990,0,COMMERCIAL SUPPLIER
03-04-2023,Adults & Health,Leyton House Community Care Ltd,Supported Other Accommodation - Private Contractors Payment,990,0,COMMERCIAL SUPPLIER
03-04-2023,Adults & Health,Leyton House Community Care Ltd,Supported Other Accommodation - Private Contractors Payment,990,0,COMMERCIAL SUPPLIER
03-04-2023,Adults & Health,Leyton House Community Care Ltd,Supported Other Accommodation - Private Contractors Payment,990,0,COMMERCIAL SUPPLIER
03-04-2023,Adults & Health,Leyton House Community Care Ltd,Supported Other Accommodation - Private Contractors Payment,565.71,0,COMMERCIAL SUPPLIER
03-04-2023,Adults & Health,Leyton House Community Care Ltd,Supported Other Accommodation - Private Contractors Payment,990,0,COMMERCIAL SUPPLIER
03-04-2023,Adults & Health,Leyton House Community Care Ltd,Supported Other Accommodation - Private Contractors Payment,990,0,COMMERCIAL SUPPLIER
03-04-2023,Adults & Health,Leyton House Community Care Ltd,Supported Other Accommodation - Private Contractors Payment,990,0,COMMERCIAL SUPPLIER
03-04-2023,Adults & Health,Leyton House Community Care Ltd,Supported Other Accommodation - Private Contractors Payment,990,0,COMMERCIAL SUPPLIER
03-04-2023,Adults & Health,Leyton House Community Care Ltd,Supported Other Accommodation - Private Contractors Payment,990,0,COMMERCIAL SUPPLIER
03-04-2023,Adults & Health,Leyton House Community Care Ltd,Supported Other Accommodation - Private Contractors Payment,990,0,COMMERCIAL SUPPLIER
03-04-2023,Adults & Health,Leyton House Community Care Ltd,Supported Other Accommodation - Private Contractors Payment,990,0,COMMERCIAL SUPPLIER
03-04-2023,Adults & Health,Leyton House Community Care Ltd,Supported Other Accommodation - Private Contractors Payment,990,0,COMMERCIAL SUPPLIER
03-04-2023,Adults & Health,Trees Park (Eastham) Limited,Nursing Homes - Private Contractors Payment,683.17,0,VENDOR
03-04-2023,Adults & Health,Trees Park (Eastham) Limited,Nursing Homes - Private Contractors Payment,683.17,0,VENDOR
03-04-2023,Adults & Health,Trees Park (Eastham) Limited,Nursing Homes - Private Contractors Payment,683.17,0,VENDOR
03-04-2023,Adults & Health,Trees Park (Eastham) Limited,Nursing Homes - Private Contractors Payment,683.17,0,VENDOR
03-04-2023,Adults & Health,Trees Park (Eastham) Limited,Nursing Homes - Private Contractors Payment,683.17,0,VENDOR
03-04-2023,Adults & Health,Trees Park (Eastham) Limited,Nursing Homes - Private Contractors Payment,683.17,0,VENDOR
03-04-2023,Adults & Health,Trees Park (Eastham) Limited,Nursing Homes - Private Contractors Payment,683.17,0,VENDOR
03-04-2023,Adults & Health,Trees Park (Eastham) Limited,Nursing Homes - Private Contractors Payment,683.17,0,VENDOR
03-04-2023,Adults & Health,Trees Park (Eastham) Limited,Nursing Homes - Private Contractors Payment,683.17,0,VENDOR
03-04-2023,Adults & Health,Trees Park (Eastham) Limited,Nursing Homes - Private Contractors Payment,683.17,0,VENDOR
03-04-2023,Adults & Health,Trees Park (Eastham) Limited,Nursing Homes - Private Contractors Payment,683.17,0,VENDOR
03-04-2023,Adults & Health,Trees Park (Eastham) Limited,Nursing Homes - Private Contractors Payment,683.17,0,VENDOR
03-04-2023,Adults & Health,Trees Park (Eastham) Limited,Nursing Homes - Private Contractors Payment,683.17,0,VENDOR
03-04-2023,Adults & Health,Trees Park (Eastham) Limited,Nursing Homes - Private Contractors Payment,683.17,0,VENDOR
03-04-2023,Adults & Health,Trees Park (Eastham) Limited,Nursing Homes - Private Contractors Payment,683.17,0,VENDOR
03-04-2023,Adults & Health,Trees Park (Eastham) Limited,Nursing Homes - Private Contractors Payment,683.17,0,VENDOR
03-04-2023,Adults & Health,Trees Park (Eastham) Limited,Nursing Homes - Private Contractors Payment,683.17,0,VENDOR
03-04-2023,Adults & Health,Trees Park (Eastham) Limited,Nursing Homes - Private Contractors Payment,683.17,0,VENDOR
03-04-2023,Adults & Health,Trees Park (Eastham) Limited,Nursing Homes - Private Contractors Payment,683.17,0,VENDOR
03-04-2023,Adults & Health,Trees Park (Eastham) Limited,Nursing Homes - Private Contractors Payment,683.17,0,VENDOR
03-04-2023,Adults & Health,Trees Park (Eastham) Limited,Nursing Homes - Private Contractors Payment,683.17,0,VENDOR
03-04-2023,Adults & Health,Churchill House,Residential Placements - Private Contractors Payment,678.57,0,NON COMMERCIAL SUPPLIER
03-04-2023,Adults & Health,Churchill House,Residential Placements - Private Contractors Payment,950,0,NON COMMERCIAL SUPPLIER
03-04-2023,Adults & Health,Churchill House,Residential Placements - Private Contractors Payment,950,0,NON COMMERCIAL SUPPLIER
03-04-2023,Adults & Health,Churchill House,Residential Placements - Private Contractors Payment,950,0,NON COMMERCIAL SUPPLIER
03-04-2023,Adults & Health,Churchill House,Residential Placements - Private Contractors Payment,950,0,NON COMMERCIAL SUPPLIER
03-04-2023,Adults & Health,Churchill House,Residential Placements - Private Contractors Payment,950,0,NON COMMERCIAL SUPPLIER
03-04-2023,Adults & Health,Churchill House,Residential Placements - Private Contractors Payment,950,0,NON COMMERCIAL SUPPLIER
03-04-2023,Adults & Health,Churchill House,Residential Placements - Private Contractors Payment,950,0,NON COMMERCIAL SUPPLIER
03-04-2023,Adults & Health,Churchill House,Residential Placements - Private Contractors Payment,950,0,NON COMMERCIAL SUPPLIER
03-04-2023,Adults & Health,Churchill House,Residential Placements - Private Contractors Payment,950,0,NON COMMERCIAL SUPPLIER
03-04-2023,Adults & Health,Churchill House,Residential Placements - Private Contractors Payment,950,0,NON COMMERCIAL SUPPLIER
03-04-2023,Adults & Health,Churchill House,Residential Placements - Private Contractors Payment,950,0,NON COMMERCIAL SUPPLIER
03-04-2023,Adults & Health,Churchill House,Residential Placements - Private Contractors Payment,950,0,NON COMMERCIAL SUPPLIER
03-04-2023,Adults & Health,Churchill House,Residential Placements - Private Contractors Payment,950,0,NON COMMERCIAL SUPPLIER
03-04-2023,Adults & Health,Churchill House,Residential Placements - Private Contractors Payment,950,0,NON COMMERCIAL SUPPLIER
03-04-2023,Adults & Health,Churchill House,Residential Placements - Private Contractors Payment,950,0,NON COMMERCIAL SUPPLIER
03-04-2023,Adults & Health,Churchill House,Residential Placements - Private Contractors Payment,950,0,NON COMMERCIAL SUPPLIER
03-04-2023,Adults & Health,HC-One,Nursing Homes - Private Contractors Payment,695,0,COMMERCIAL SUPPLIER
03-04-2023,Adults & Health,HC-One,Nursing Homes - Private Contractors Payment,695,0,COMMERCIAL SUPPLIER
03-04-2023,Adults & Health,HC-One,Nursing Homes - Private Contractors Payment,695,0,COMMERCIAL SUPPLIER
03-04-2023,Adults & Health,Nightingale Residential Care Home Ltd,Residential Placements - Private Contractors Payment,950,0,COMMERCIAL SUPPLIER
03-04-2023,Adults & Health,HC-One,Nursing Homes - Private Contractors Payment,695,0,COMMERCIAL SUPPLIER
03-04-2023,Adults & Health,HC-One,Nursing Homes - Private Contractors Payment,695,0,COMMERCIAL SUPPLIER
03-04-2023,Adults & Health,HC-One,Nursing Homes - Private Contractors Payment,695,0,COMMERCIAL SUPPLIER
03-04-2023,Adults & Health,Nightingale Residential Care Home Ltd,Residential Placements - Private Contractors Payment,950,0,COMMERCIAL SUPPLIER
03-04-2023,Adults & Health,HC-One,Nursing Homes - Private Contractors Payment,695,0,COMMERCIAL SUPPLIER
03-04-2023,Adults & Health,HC-One,Nursing Homes - Private Contractors Payment,695,0,COMMERCIAL SUPPLIER
03-04-2023,Adults & Health,HC-One,Nursing Homes - Private Contractors Payment,695,0,COMMERCIAL SUPPLIER
03-04-2023,Adults & Health,Nightingale Residential Care Home Ltd,Residential Placements - Private Contractors Payment,950,0,COMMERCIAL SUPPLIER
03-04-2023,Adults & Health,HC-One,Nursing Homes - Private Contractors Payment,695,0,COMMERCIAL SUPPLIER
03-04-2023,Adults & Health,HC-One,Nursing Homes - Private Contractors Payment,695,0,COMMERCIAL SUPPLIER
03-04-2023,Adults & Health,HC-One,Nursing Homes - Private Contractors Payment,695,0,COMMERCIAL SUPPLIER
03-04-2023,Adults & Health,HC-One,Nursing Homes - Private Contractors Payment,695,0,COMMERCIAL SUPPLIER
03-04-2023,Adults & Health,Nightingale Residential Care Home Ltd,Residential Placements - Private Contractors Payment,950,0,COMMERCIAL SUPPLIER
03-04-2023,Adults & Health,HC-One,Nursing Homes - Private Contractors Payment,695,0,COMMERCIAL SUPPLIER
03-04-2023,Adults & Health,HC-One,Nursing Homes - Private Contractors Payment,695,0,COMMERCIAL SUPPLIER
03-04-2023,Adults & Health,HC-One,Nursing Homes - Private Contractors Payment,695,0,COMMERCIAL SUPPLIER
03-04-2023,Adults & Health,Nightingale Residential Care Home Ltd,Residential Placements - Private Contractors Payment,407.14,0,COMMERCIAL SUPPLIER
03-04-2023,Adults & Health,Nightingale Residential Care Home Ltd,Residential Placements - Private Contractors Payment,950,0,COMMERCIAL SUPPLIER
03-04-2023,Adults & Health,HC-One,Nursing Homes - Private Contractors Payment,695,0,COMMERCIAL SUPPLIER
03-04-2023,Adults & Health,Leyton House Community Care Ltd,Supported Other Accommodation - Private Contractors Payment,882.26,0,COMMERCIAL SUPPLIER
03-04-2023,Adults & Health,Leyton House Community Care Ltd,Supported Other Accommodation - Private Contractors Payment,950,0,COMMERCIAL SUPPLIER
03-04-2023,Adults & Health,Leyton House Community Care Ltd,Supported Other Accommodation - Private Contractors Payment,858.23,0,COMMERCIAL SUPPLIER
03-04-2023,Adults & Health,Leyton House Community Care Ltd,Supported Other Accommodation - Private Contractors Payment,858.23,0,COMMERCIAL SUPPLIER
03-04-2023,Adults & Health,Leyton House Community Care Ltd,Supported Other Accommodation - Private Contractors Payment,950,0,COMMERCIAL SUPPLIER
03-04-2023,Adults & Health,Leyton House Community Care Ltd,Supported Other Accommodation - Private Contractors Payment,1270,0,COMMERCIAL SUPPLIER
03-04-2023,Adults & Health,Leyton House Community Care Ltd,Supported Other Accommodation - Private Contractors Payment,950,0,COMMERCIAL SUPPLIER
03-04-2023,Adults & Health,Leyton House Community Care Ltd,Supported Other Accommodation - Private Contractors Payment,950,0,COMMERCIAL SUPPLIER
03-04-2023,Adults & Health,Leyton House Community Care Ltd,Supported Other Accommodation - Private Contractors Payment,1270,0,COMMERCIAL SUPPLIER
03-04-2023,Adults & Health,Leyton House Community Care Ltd,Supported Other Accommodation - Private Contractors Payment,882.26,0,COMMERCIAL SUPPLIER
03-04-2023,Adults & Health,Leyton House Community Care Ltd,Supported Other Accommodation - Private Contractors Payment,858.23,0,COMMERCIAL SUPPLIER
03-04-2023,Adults & Health,Leyton House Community Care Ltd,Supported Other Accommodation - Private Contractors Payment,882.26,0,COMMERCIAL SUPPLIER
03-04-2023,Adults & Health,Leyton House Community Care Ltd,Supported Other Accommodation - Private Contractors Payment,882.26,0,COMMERCIAL SUPPLIER
03-04-2023,Adults & Health,Leyton House Community Care Ltd,Supported Other Accommodation - Private Contractors Payment,950,0,COMMERCIAL SUPPLIER
03-04-2023,Adults & Health,Leyton House Community Care Ltd,Supported Other Accommodation - Private Contractors Payment,950,0,COMMERCIAL SUPPLIER
03-04-2023,Adults & Health,Leyton House Community Care Ltd,Supported Other Accommodation - Private Contractors Payment,950,0,COMMERCIAL SUPPLIER
03-04-2023,Adults & Health,Leyton House Community Care Ltd,Supported Other Accommodation - Private Contractors Payment,950,0,COMMERCIAL SUPPLIER
03-04-2023,Adults & Health,Leyton House Community Care Ltd,Supported Other Accommodation - Private Contractors Payment,1270,0,COMMERCIAL SUPPLIER
03-04-2023,Adults & Health,Leyton House Community Care Ltd,Supported Other Accommodation - Private Contractors Payment,858.23,0,COMMERCIAL SUPPLIER
03-04-2023,Adults & Health,Leyton House Community Care Ltd,Supported Other Accommodation - Private Contractors Payment,882.26,0,COMMERCIAL SUPPLIER
03-04-2023,Adults & Health,Leyton House Community Care Ltd,Supported Other Accommodation - Private Contractors Payment,1270,0,COMMERCIAL SUPPLIER
03-04-2023,Adults & Health,Leyton House Community Care Ltd,Supported Other Accommodation - Private Contractors Payment,882.26,0,COMMERCIAL SUPPLIER
03-04-2023,Adults & Health,Leyton House Community Care Ltd,Supported Other Accommodation - Private Contractors Payment,950,0,COMMERCIAL SUPPLIER
03-04-2023,Adults & Health,Leyton House Community Care Ltd,Supported Other Accommodation - Private Contractors Payment,950,0,COMMERCIAL SUPPLIER
03-04-2023,Adults & Health,Leyton House Community Care Ltd,Supported Other Accommodation - Private Contractors Payment,950,0,COMMERCIAL SUPPLIER
03-04-2023,Adults & Health,Leyton House Community Care Ltd,Supported Other Accommodation - Private Contractors Payment,882.26,0,COMMERCIAL SUPPLIER
03-04-2023,Adults & Health,Leyton House Community Care Ltd,Supported Other Accommodation - Private Contractors Payment,950,0,COMMERCIAL SUPPLIER
03-04-2023,Adults & Health,Leyton House Community Care Ltd,Supported Other Accommodation - Private Contractors Payment,950,0,COMMERCIAL SUPPLIER
03-04-2023,Adults & Health,Leyton House Community Care Ltd,Supported Other Accommodation - Private Contractors Payment,858.23,0,COMMERCIAL SUPPLIER
03-04-2023,Adults & Health,Leyton House Community Care Ltd,Supported Other Accommodation - Private Contractors Payment,882.26,0,COMMERCIAL SUPPLIER
03-04-2023,Adults & Health,Leyton House Community Care Ltd,Supported Other Accommodation - Private Contractors Payment,950,0,COMMERCIAL SUPPLIER
03-04-2023,Adults & Health,Leyton House Community Care Ltd,Supported Other Accommodation - Private Contractors Payment,1270,0,COMMERCIAL SUPPLIER
03-04-2023,Adults & Health,Leyton House Community Care Ltd,Supported Other Accommodation - Private Contractors Payment,950,0,COMMERCIAL SUPPLIER
03-04-2023,Adults & Health,Leyton House Community Care Ltd,Supported Other Accommodation - Private Contractors Payment,950,0,COMMERCIAL SUPPLIER
03-04-2023,Adults & Health,Leyton House Community Care Ltd,Supported Other Accommodation - Private Contractors Payment,950,0,COMMERCIAL SUPPLIER
03-04-2023,Adults & Health,Leyton House Community Care Ltd,Supported Other Accommodation - Private Contractors Payment,1270,0,COMMERCIAL SUPPLIER
03-04-2023,Adults & Health,Leyton House Community Care Ltd,Supported Other Accommodation - Private Contractors Payment,613.02,0,COMMERCIAL SUPPLIER
03-04-2023,Adults & Health,Leyton House Community Care Ltd,Supported Other Accommodation - Private Contractors Payment,858.23,0,COMMERCIAL SUPPLIER
03-04-2023,Adults & Health,Leyton House Community Care Ltd,Supported Other Accommodation - Private Contractors Payment,950,0,COMMERCIAL SUPPLIER
03-04-2023,Adults & Health,Leyton House Community Care Ltd,Supported Other Accommodation - Private Contractors Payment,882.26,0,COMMERCIAL SUPPLIER
03-04-2023,Adults & Health,Leyton House Community Care Ltd,Supported Other Accommodation - Private Contractors Payment,950,0,COMMERCIAL SUPPLIER
03-04-2023,Adults & Health,Leyton House Community Care Ltd,Supported Other Accommodation - Private Contractors Payment,950,0,COMMERCIAL SUPPLIER
03-04-2023,Adults & Health,Leyton House Community Care Ltd,Supported Other Accommodation - Private Contractors Payment,1270,0,COMMERCIAL SUPPLIER
03-04-2023,Adults & Health,Leyton House Community Care Ltd,Supported Other Accommodation - Private Contractors Payment,1270,0,COMMERCIAL SUPPLIER
03-04-2023,Adults & Health,Leyton House Community Care Ltd,Supported Other Accommodation - Private Contractors Payment,882.26,0,COMMERCIAL SUPPLIER
03-04-2023,Adults & Health,Leyton House Community Care Ltd,Supported Other Accommodation - Private Contractors Payment,950,0,COMMERCIAL SUPPLIER
03-04-2023,Adults & Health,Leyton House Community Care Ltd,Supported Other Accommodation - Private Contractors Payment,950,0,COMMERCIAL SUPPLIER
03-04-2023,Adults & Health,Leyton House Community Care Ltd,Supported Other Accommodation - Private Contractors Payment,882.26,0,COMMERCIAL SUPPLIER
03-04-2023,Adults & Health,Leyton House Community Care Ltd,Supported Other Accommodation - Private Contractors Payment,950,0,COMMERCIAL SUPPLIER
03-04-2023,Adults & Health,Leyton House Community Care Ltd,Supported Other Accommodation - Private Contractors Payment,858.23,0,COMMERCIAL SUPPLIER
03-04-2023,Adults & Health,Leyton House Community Care Ltd,Supported Other Accommodation - Private Contractors Payment,882.26,0,COMMERCIAL SUPPLIER
03-04-2023,Adults & Health,Leyton House Community Care Ltd,Supported Other Accommodation - Private Contractors Payment,950,0,COMMERCIAL SUPPLIER
03-04-2023,Adults & Health,Leyton House Community Care Ltd,Supported Other Accommodation - Private Contractors Payment,1270,0,COMMERCIAL SUPPLIER
03-04-2023,Adults & Health,Leyton House Community Care Ltd,Supported Other Accommodation - Private Contractors Payment,950,0,COMMERCIAL SUPPLIER
03-04-2023,Adults & Health,Leyton House Community Care Ltd,Supported Other Accommodation - Private Contractors Payment,950,0,COMMERCIAL SUPPLIER
03-04-2023,Adults & Health,Leyton House Community Care Ltd,Supported Other Accommodation - Private Contractors Payment,1270,0,COMMERCIAL SUPPLIER
03-04-2023,Adults & Health,Leyton House Community Care Ltd,Supported Other Accommodation - Private Contractors Payment,882.26,0,COMMERCIAL SUPPLIER
03-04-2023,Adults & Health,Leyton House Community Care Ltd,Supported Other Accommodation - Private Contractors Payment,858.23,0,COMMERCIAL SUPPLIER
03-04-2023,Adults & Health,Leyton House Community Care Ltd,Supported Other Accommodation - Private Contractors Payment,882.26,0,COMMERCIAL SUPPLIER
03-04-2023,Adults & Health,Leyton House Community Care Ltd,Supported Other Accommodation - Private Contractors Payment,882.26,0,COMMERCIAL SUPPLIER
03-04-2023,Adults & Health,Leyton House Community Care Ltd,Supported Other Accommodation - Private Contractors Payment,950,0,COMMERCIAL SUPPLIER
03-04-2023,Adults & Health,Leyton House Community Care Ltd,Supported Other Accommodation - Private Contractors Payment,950,0,COMMERCIAL SUPPLIER
03-04-2023,Adults & Health,Leyton House Community Care Ltd,Supported Other Accommodation - Private Contractors Payment,950,0,COMMERCIAL SUPPLIER
03-04-2023,Adults & Health,Leyton House Community Care Ltd,Supported Other Accommodation - Private Contractors Payment,950,0,COMMERCIAL SUPPLIER
03-04-2023,Adults & Health,Leyton House Community Care Ltd,Supported Other Accommodation - Private Contractors Payment,950,0,COMMERCIAL SUPPLIER
03-04-2023,Adults & Health,Leyton House Community Care Ltd,Supported Other Accommodation - Private Contractors Payment,1270,0,COMMERCIAL SUPPLIER
03-04-2023,Adults & Health,Leyton House Community Care Ltd,Supported Other Accommodation - Private Contractors Payment,950,0,COMMERCIAL SUPPLIER
03-04-2023,Adults & Health,Leyton House Community Care Ltd,Supported Other Accommodation - Private Contractors Payment,858.23,0,COMMERCIAL SUPPLIER
03-04-2023,Adults & Health,Leyton House Community Care Ltd,Supported Other Accommodation - Private Contractors Payment,882.26,0,COMMERCIAL SUPPLIER
03-04-2023,Adults & Health,Leyton House Community Care Ltd,Supported Other Accommodation - Private Contractors Payment,1270,0,COMMERCIAL SUPPLIER
03-04-2023,Adults & Health,Leyton House Community Care Ltd,Supported Other Accommodation - Private Contractors Payment,882.26,0,COMMERCIAL SUPPLIER
03-04-2023,Adults & Health,Leyton House Community Care Ltd,Supported Other Accommodation - Private Contractors Payment,950,0,COMMERCIAL SUPPLIER
03-04-2023,Adults & Health,Leyton House Community Care Ltd,Supported Other Accommodation - Private Contractors Payment,950,0,COMMERCIAL SUPPLIER
03-04-2023,Adults & Health,Leyton House Community Care Ltd,Supported Other Accommodation - Private Contractors Payment,950,0,COMMERCIAL SUPPLIER
03-04-2023,Adults & Health,Leyton House Community Care Ltd,Supported Other Accommodation - Private Contractors Payment,882.26,0,COMMERCIAL SUPPLIER
03-04-2023,Adults & Health,Leyton House Community Care Ltd,Supported Other Accommodation - Private Contractors Payment,950,0,COMMERCIAL SUPPLIER
03-04-2023,Adults & Health,Leyton House Community Care Ltd,Supported Other Accommodation - Private Contractors Payment,950,0,COMMERCIAL SUPPLIER
03-04-2023,Adults & Health,Leyton House Community Care Ltd,Supported Other Accommodation - Private Contractors Payment,858.23,0,COMMERCIAL SUPPLIER
03-04-2023,Adults & Health,Leyton House Community Care Ltd,Supported Other Accommodation - Private Contractors Payment,882.26,0,COMMERCIAL SUPPLIER
03-04-2023,Adults & Health,Leyton House Community Care Ltd,Supported Other Accommodation - Private Contractors Payment,950,0,COMMERCIAL SUPPLIER
03-04-2023,Adults & Health,Leyton House Community Care Ltd,Supported Other Accommodation - Private Contractors Payment,950,0,COMMERCIAL SUPPLIER
03-04-2023,Adults & Health,Leyton House Community Care Ltd,Supported Other Accommodation - Private Contractors Payment,950,0,COMMERCIAL SUPPLIER
03-04-2023,Adults & Health,Leyton House Community Care Ltd,Supported Other Accommodation - Private Contractors Payment,882.26,0,COMMERCIAL SUPPLIER
03-04-2023,Adults & Health,Leyton House Community Care Ltd,Supported Other Accommodation - Private Contractors Payment,1270,0,COMMERCIAL SUPPLIER
03-04-2023,Adults & Health,Leyton House Community Care Ltd,Supported Other Accommodation - Private Contractors Payment,858.23,0,COMMERCIAL SUPPLIER
03-04-2023,Adults & Health,Leyton House Community Care Ltd,Supported Other Accommodation - Private Contractors Payment,858.23,0,COMMERCIAL SUPPLIER
03-04-2023,Adults & Health,Leyton House Community Care Ltd,Supported Other Accommodation - Private Contractors Payment,950,0,COMMERCIAL SUPPLIER
03-04-2023,Adults & Health,Leyton House Community Care Ltd,Supported Other Accommodation - Private Contractors Payment,950,0,COMMERCIAL SUPPLIER
03-04-2023,Adults & Health,Leyton House Community Care Ltd,Supported Other Accommodation - Private Contractors Payment,1270,0,COMMERCIAL SUPPLIER
03-04-2023,Adults & Health,Leyton House Community Care Ltd,Supported Other Accommodation - Private Contractors Payment,858.23,0,COMMERCIAL SUPPLIER
03-04-2023,Adults & Health,Leyton House Community Care Ltd,Supported Other Accommodation - Private Contractors Payment,858.23,0,COMMERCIAL SUPPLIER
03-04-2023,Adults & Health,Leyton House Community Care Ltd,Supported Other Accommodation - Private Contractors Payment,1270,0,COMMERCIAL SUPPLIER
03-04-2023,Adults & Health,Leyton House Community Care Ltd,Supported Other Accommodation - Private Contractors Payment,882.26,0,COMMERCIAL SUPPLIER
03-04-2023,Adults & Health,Leyton House Community Care Ltd,Supported Other Accommodation - Private Contractors Payment,950,0,COMMERCIAL SUPPLIER
03-04-2023,Adults & Health,Leyton House Community Care Ltd,Supported Other Accommodation - Private Contractors Payment,950,0,COMMERCIAL SUPPLIER
03-04-2023,Adults & Health,Leyton House Community Care Ltd,Supported Other Accommodation - Private Contractors Payment,882.26,0,COMMERCIAL SUPPLIER
03-04-2023,Adults & Health,Leyton House Community Care Ltd,Supported Other Accommodation - Private Contractors Payment,950,0,COMMERCIAL SUPPLIER
03-04-2023,Adults & Health,Leyton House Community Care Ltd,Supported Other Accommodation - Private Contractors Payment,858.23,0,COMMERCIAL SUPPLIER
03-04-2023,Adults & Health,Leyton House Community Care Ltd,Supported Other Accommodation - Private Contractors Payment,882.26,0,COMMERCIAL SUPPLIER
03-04-2023,Adults & Health,Leyton House Community Care Ltd,Supported Other Accommodation - Private Contractors Payment,950,0,COMMERCIAL SUPPLIER
03-04-2023,Adults & Health,Leyton House Community Care Ltd,Supported Other Accommodation - Private Contractors Payment,1270,0,COMMERCIAL SUPPLIER
03-04-2023,Adults & Health,Leyton House Community Care Ltd,Supported Other Accommodation - Private Contractors Payment,950,0,COMMERCIAL SUPPLIER
03-04-2023,Adults & Health,Leyton House Community Care Ltd,Supported Other Accommodation - Private Contractors Payment,950,0,COMMERCIAL SUPPLIER
03-04-2023,Adults & Health,Leyton House Community Care Ltd,Supported Other Accommodation - Private Contractors Payment,1270,0,COMMERCIAL SUPPLIER
03-04-2023,Adults & Health,Leyton House Community Care Ltd,Supported Other Accommodation - Private Contractors Payment,882.26,0,COMMERCIAL SUPPLIER
03-04-2023,Adults & Health,Leyton House Community Care Ltd,Supported Other Accommodation - Private Contractors Payment,950,0,COMMERCIAL SUPPLIER
03-04-2023,Adults & Health,Leyton House Community Care Ltd,Supported Other Accommodation - Private Contractors Payment,858.23,0,COMMERCIAL SUPPLIER
03-04-2023,Adults & Health,Leyton House Community Care Ltd,Supported Other Accommodation - Private Contractors Payment,882.26,0,COMMERCIAL SUPPLIER
03-04-2023,Adults & Health,Leyton House Community Care Ltd,Supported Other Accommodation - Private Contractors Payment,882.26,0,COMMERCIAL SUPPLIER
03-04-2023,Adults & Health,Leyton House Community Care Ltd,Supported Other Accommodation - Private Contractors Payment,950,0,COMMERCIAL SUPPLIER
03-04-2023,Adults & Health,Leyton House Community Care Ltd,Supported Other Accommodation - Private Contractors Payment,950,0,COMMERCIAL SUPPLIER
03-04-2023,Adults & Health,Leyton House Community Care Ltd,Supported Other Accommodation - Private Contractors Payment,950,0,COMMERCIAL SUPPLIER
03-04-2023,Adults & Health,Leyton House Community Care Ltd,Supported Other Accommodation - Private Contractors Payment,950,0,COMMERCIAL SUPPLIER
03-04-2023,Adults & Health,Leyton House Community Care Ltd,Supported Other Accommodation - Private Contractors Payment,950,0,COMMERCIAL SUPPLIER
03-04-2023,Adults & Health,Leyton House Community Care Ltd,Supported Other Accommodation - Private Contractors Payment,1270,0,COMMERCIAL SUPPLIER
03-04-2023,Adults & Health,Leyton House Community Care Ltd,Supported Other Accommodation - Private Contractors Payment,950,0,COMMERCIAL SUPPLIER
03-04-2023,Adults & Health,Leyton House Community Care Ltd,Supported Other Accommodation - Private Contractors Payment,858.23,0,COMMERCIAL SUPPLIER
03-04-2023,Adults & Health,Leyton House Community Care Ltd,Supported Other Accommodation - Private Contractors Payment,882.26,0,COMMERCIAL SUPPLIER
03-04-2023,Adults & Health,Leyton House Community Care Ltd,Supported Other Accommodation - Private Contractors Payment,1270,0,COMMERCIAL SUPPLIER
03-04-2023,Adults & Health,Leyton House Community Care Ltd,Supported Other Accommodation - Private Contractors Payment,882.26,0,COMMERCIAL SUPPLIER
03-04-2023,Adults & Health,Leyton House Community Care Ltd,Supported Other Accommodation - Private Contractors Payment,950,0,COMMERCIAL SUPPLIER
03-04-2023,Adults & Health,Leyton House Community Care Ltd,Supported Other Accommodation - Private Contractors Payment,950,0,COMMERCIAL SUPPLIER
03-04-2023,Adults & Health,Leyton House Community Care Ltd,Supported Other Accommodation - Private Contractors Payment,950,0,COMMERCIAL SUPPLIER
03-04-2023,Adults & Health,Leyton House Community Care Ltd,Supported Other Accommodation - Private Contractors Payment,882.26,0,COMMERCIAL SUPPLIER
03-04-2023,Adults & Health,Leyton House Community Care Ltd,Supported Other Accommodation - Private Contractors Payment,858.23,0,COMMERCIAL SUPPLIER
03-04-2023,Adults & Health,Leyton House Community Care Ltd,Supported Other Accommodation - Private Contractors Payment,858.23,0,COMMERCIAL SUPPLIER
03-04-2023,Adults & Health,Leyton House Community Care Ltd,Supported Other Accommodation - Private Contractors Payment,1270,0,COMMERCIAL SUPPLIER
03-04-2023,Adults & Health,Leyton House Community Care Ltd,Supported Other Accommodation - Private Contractors Payment,950,0,COMMERCIAL SUPPLIER
03-04-2023,Adults & Health,Leyton House Community Care Ltd,Supported Other Accommodation - Private Contractors Payment,950,0,COMMERCIAL SUPPLIER
03-04-2023,Adults & Health,Leyton House Community Care Ltd,Supported Other Accommodation - Private Contractors Payment,950,0,COMMERCIAL SUPPLIER
03-04-2023,Adults & Health,Leyton House Community Care Ltd,Supported Other Accommodation - Private Contractors Payment,882.26,0,COMMERCIAL SUPPLIER
03-04-2023,Adults & Health,Leyton House Community Care Ltd,Supported Other Accommodation - Private Contractors Payment,882.26,0,COMMERCIAL SUPPLIER
03-04-2023,Adults & Health,Leyton House Community Care Ltd,Supported Other Accommodation - Private Contractors Payment,950,0,COMMERCIAL SUPPLIER
03-04-2023,Adults & Health,Leyton House Community Care Ltd,Supported Other Accommodation - Private Contractors Payment,950,0,COMMERCIAL SUPPLIER
03-04-2023,Adults & Health,Leyton House Community Care Ltd,Supported Other Accommodation - Private Contractors Payment,950,0,COMMERCIAL SUPPLIER
03-04-2023,Adults & Health,Leyton House Community Care Ltd,Supported Other Accommodation - Private Contractors Payment,950,0,COMMERCIAL SUPPLIER
03-04-2023,Adults & Health,Leyton House Community Care Ltd,Supported Other Accommodation - Private Contractors Payment,1270,0,COMMERCIAL SUPPLIER
03-04-2023,Adults & Health,Leyton House Community Care Ltd,Supported Other Accommodation - Private Contractors Payment,858.23,0,COMMERCIAL SUPPLIER
03-04-2023,Adults & Health,Leyton House Community Care Ltd,Supported Other Accommodation - Private Contractors Payment,882.26,0,COMMERCIAL SUPPLIER
03-04-2023,Adults & Health,Leyton House Community Care Ltd,Supported Other Accommodation - Private Contractors Payment,1270,0,COMMERCIAL SUPPLIER
03-04-2023,Adults & Health,Leyton House Community Care Ltd,Supported Other Accommodation - Private Contractors Payment,882.26,0,COMMERCIAL SUPPLIER
03-04-2023,Adults & Health,Leyton House Community Care Ltd,Supported Other Accommodation - Private Contractors Payment,950,0,COMMERCIAL SUPPLIER
03-04-2023,Adults & Health,Leyton House Community Care Ltd,Supported Other Accommodation - Private Contractors Payment,950,0,COMMERCIAL SUPPLIER
03-04-2023,Adults & Health,Leyton House Community Care Ltd,Supported Other Accommodation - Private Contractors Payment,882.26,0,COMMERCIAL SUPPLIER
03-04-2023,Adults & Health,Leyton House Community Care Ltd,Supported Other Accommodation - Private Contractors Payment,950,0,COMMERCIAL SUPPLIER
03-04-2023,Adults & Health,Leyton House Community Care Ltd,Supported Other Accommodation - Private Contractors Payment,858.23,0,COMMERCIAL SUPPLIER
03-04-2023,Adults & Health,Leyton House Community Care Ltd,Supported Other Accommodation - Private Contractors Payment,882.26,0,COMMERCIAL SUPPLIER
03-04-2023,Adults & Health,Leyton House Community Care Ltd,Supported Other Accommodation - Private Contractors Payment,950,0,COMMERCIAL SUPPLIER
03-04-2023,Adults & Health,Leyton House Community Care Ltd,Supported Other Accommodation - Private Contractors Payment,1270,0,COMMERCIAL SUPPLIER
03-04-2023,Adults & Health,Leyton House Community Care Ltd,Supported Other Accommodation - Private Contractors Payment,950,0,COMMERCIAL SUPPLIER
03-04-2023,Adults & Health,Leyton House Community Care Ltd,Supported Other Accommodation - Private Contractors Payment,950,0,COMMERCIAL SUPPLIER
03-04-2023,Adults & Health,Leyton House Community Care Ltd,Supported Other Accommodation - Private Contractors Payment,950,0,COMMERCIAL SUPPLIER
03-04-2023,Adults & Health,Leyton House Community Care Ltd,Supported Other Accommodation - Private Contractors Payment,1270,0,COMMERCIAL SUPPLIER
03-04-2023,Adults & Health,Leyton House Community Care Ltd,Supported Other Accommodation - Private Contractors Payment,882.26,0,COMMERCIAL SUPPLIER
03-04-2023,Adults & Health,Leyton House Community Care Ltd,Supported Other Accommodation - Private Contractors Payment,950,0,COMMERCIAL SUPPLIER
03-04-2023,Adults & Health,Leyton House Community Care Ltd,Supported Other Accommodation - Private Contractors Payment,858.23,0,COMMERCIAL SUPPLIER
03-04-2023,Adults & Health,Leyton House Community Care Ltd,Supported Other Accommodation - Private Contractors Payment,882.26,0,COMMERCIAL SUPPLIER
03-04-2023,Adults & Health,Leyton House Community Care Ltd,Supported Other Accommodation - Private Contractors Payment,882.26,0,COMMERCIAL SUPPLIER
03-04-2023,Adults & Health,Leyton House Community Care Ltd,Supported Other Accommodation - Private Contractors Payment,950,0,COMMERCIAL SUPPLIER
03-04-2023,Adults & Health,Leyton House Community Care Ltd,Supported Other Accommodation - Private Contractors Payment,950,0,COMMERCIAL SUPPLIER
03-04-2023,Adults & Health,Leyton House Community Care Ltd,Supported Other Accommodation - Private Contractors Payment,950,0,COMMERCIAL SUPPLIER
03-04-2023,Adults & Health,Leyton House Community Care Ltd,Supported Other Accommodation - Private Contractors Payment,950,0,COMMERCIAL SUPPLIER
03-04-2023,Adults & Health,Leyton House Community Care Ltd,Supported Other Accommodation - Private Contractors Payment,950,0,COMMERCIAL SUPPLIER
03-04-2023,Adults & Health,Leyton House Community Care Ltd,Supported Other Accommodation - Private Contractors Payment,1270,0,COMMERCIAL SUPPLIER
03-04-2023,Adults & Health,Leyton House Community Care Ltd,Supported Other Accommodation - Private Contractors Payment,950,0,COMMERCIAL SUPPLIER
03-04-2023,Adults & Health,Leyton House Community Care Ltd,Supported Other Accommodation - Private Contractors Payment,858.23,0,COMMERCIAL SUPPLIER
03-04-2023,Adults & Health,Leyton House Community Care Ltd,Supported Other Accommodation - Private Contractors Payment,882.26,0,COMMERCIAL SUPPLIER
03-04-2023,Adults & Health,Leyton House Community Care Ltd,Supported Other Accommodation - Private Contractors Payment,1270,0,COMMERCIAL SUPPLIER
03-04-2023,Adults & Health,Leyton House Community Care Ltd,Supported Other Accommodation - Private Contractors Payment,950,0,COMMERCIAL SUPPLIER
03-04-2023,Adults & Health,Leyton House Community Care Ltd,Supported Other Accommodation - Private Contractors Payment,950,0,COMMERCIAL SUPPLIER
03-04-2023,Adults & Health,Leyton House Community Care Ltd,Supported Other Accommodation - Private Contractors Payment,950,0,COMMERCIAL SUPPLIER
03-04-2023,Adults & Health,Leyton House Community Care Ltd,Supported Other Accommodation - Private Contractors Payment,882.26,0,COMMERCIAL SUPPLIER
03-04-2023,Adults & Health,Leyton House Community Care Ltd,Supported Other Accommodation - Private Contractors Payment,858.23,0,COMMERCIAL SUPPLIER
03-04-2023,Adults & Health,Leyton House Community Care Ltd,Supported Other Accommodation - Private Contractors Payment,858.23,0,COMMERCIAL SUPPLIER
03-04-2023,Adults & Health,Leyton House Community Care Ltd,Supported Other Accommodation - Private Contractors Payment,1270,0,COMMERCIAL SUPPLIER
03-04-2023,Adults & Health,Leyton House Community Care Ltd,Supported Other Accommodation - Private Contractors Payment,1270,0,COMMERCIAL SUPPLIER
03-04-2023,Adults & Health,Leyton House Community Care Ltd,Supported Other Accommodation - Private Contractors Payment,882.26,0,COMMERCIAL SUPPLIER
03-04-2023,Adults & Health,Leyton House Community Care Ltd,Supported Other Accommodation - Private Contractors Payment,858.23,0,COMMERCIAL SUPPLIER
03-04-2023,Adults & Health,Leyton House Community Care Ltd,Supported Other Accommodation - Private Contractors Payment,858.23,0,COMMERCIAL SUPPLIER
03-04-2023,Adults & Health,Leyton House Community Care Ltd,Supported Other Accommodation - Private Contractors Payment,882.26,0,COMMERCIAL SUPPLIER
03-04-2023,Adults & Health,Leyton House Community Care Ltd,Supported Other Accommodation - Private Contractors Payment,950,0,COMMERCIAL SUPPLIER
03-04-2023,Adults & Health,Leyton House Community Care Ltd,Supported Other Accommodation - Private Contractors Payment,950,0,COMMERCIAL SUPPLIER
03-04-2023,Adults & Health,Leyton House Community Care Ltd,Supported Other Accommodation - Private Contractors Payment,950,0,COMMERCIAL SUPPLIER
03-04-2023,Adults & Health,Leyton House Community Care Ltd,Supported Other Accommodation - Private Contractors Payment,950,0,COMMERCIAL SUPPLIER
03-04-2023,Adults & Health,Leyton House Community Care Ltd,Supported Other Accommodation - Private Contractors Payment,1270,0,COMMERCIAL SUPPLIER
03-04-2023,Adults & Health,Leyton House Community Care Ltd,Supported Other Accommodation - Private Contractors Payment,858.23,0,COMMERCIAL SUPPLIER
03-04-2023,Adults & Health,Leyton House Community Care Ltd,Supported Other Accommodation - Private Contractors Payment,882.26,0,COMMERCIAL SUPPLIER
03-04-2023,Adults & Health,Leyton House Community Care Ltd,Supported Other Accommodation - Private Contractors Payment,1270,0,COMMERCIAL SUPPLIER
03-04-2023,Adults & Health,Leyton House Community Care Ltd,Supported Other Accommodation - Private Contractors Payment,882.26,0,COMMERCIAL SUPPLIER
03-04-2023,Adults & Health,Leyton House Community Care Ltd,Supported Other Accommodation - Private Contractors Payment,950,0,COMMERCIAL SUPPLIER
03-04-2023,Adults & Health,Leyton House Community Care Ltd,Supported Other Accommodation - Private Contractors Payment,950,0,COMMERCIAL SUPPLIER
03-04-2023,Adults & Health,Leyton House Community Care Ltd,Supported Other Accommodation - Private Contractors Payment,882.26,0,COMMERCIAL SUPPLIER
03-04-2023,Adults & Health,Leyton House Community Care Ltd,Supported Other Accommodation - Private Contractors Payment,950,0,COMMERCIAL SUPPLIER
